Workbook

Sheet BDI
B3: PREFEITURA DO MUNICÍPIO DE PORTO VELHO
B4: Secretaria Municipal de Trânsito, Mobilidade e Transporte – SEMTRAN
B5: Departamento de Trafego – DET
A9: COMPOSIÇÃO DE BDI SEM DESONERAÇÃO
A11: DESCRIÇÃO | B11: VALORES DE REFERÊNCIA - % | E11: BDI ADOTADO %
B12: 1º QUARTIL | C12: MÉDIO | D12: 3º QUARTIL
A13: Administração Central | B13: 3.8 | C13: 4.01 | D13: 4.67 | E13: 4.01
A14: Seguro e Garantia | B14: 0.32 | C14: 0.4 | D14: 0.74 | E14: 0.4
A15: Risco | B15: 0.5 | C15: 0.56 | D15: 0.97 | E15: 0.56
A16: Despesas Financeiras | B16: 1.02 | C16: 1.11 | D16: 1.21 | E16: 1.11
A17: Lucro | B17: 6.64 | C17: 7.3 | D17: 8.69 | E17: 7.3
A18: Tributos (soma dos itens abaixo) + 4,5% | B18: =SUM(B19:B21) -> 5.15 | C18: 6.65 | D18: 8.65 | E18: 6.15
A19: COFINS | B19: 3 | C19: 3 | D19: 3 | E19: 3
A20: PIS | B20: 0.65 | C20: 0.65 | D20: 0.65 | E20: 0.65
A21: ISSQN (Porto Velho) | B21: 1.5 | C21: 3 | D21: 5 | E21: 2.5 | H21: AGUARDAR ZACARIAS
A22: TOTAL | E22: =(ROUND((((((1+E13/100+E14/100+E15/100)*(1+E16/100)*(1+E17/100))/(1-E18/100))-1)*100),2))/100 -> 0.2135
A23: Acórdão TCU 2622/2013 e Desoneração
A25: Fonte da composição, valores de referência e fórmula do BDI: Acórdão 2622/2013 - TCU - Plenário
A27: Os valores de BDI acima foram calculados com emprego da fórmula abaixo:
A33: Onde:
A34: AC = taxa de rateio da Administração Central;
A35: DF = taxa das despesas financeiras;
A36: S = taxa de seguro; R = taxa de risco e G = garantia do empreendimento;
A37: I = taxa de tributos;
A38: L = taxa de lucro.

Sheet CRONOGRAMA
B1: PREFEITURA DO MUNICÍPIO DE PORTO VELHO
B4: Secretaria Municipal de Trânsito, Mobilidade e Transporte – SEMTRAN
B6: Departamento de Trafego – DET
A8: CRONOGRAMA FISICO FINANCEIRO
A10: ITENS | B10: NATUREZA DOS SERVIÇOS | C10: MÊS | O10: VALOR EM R$. | P10: %
C12: 1 | D12: 2 | E12: 3 | F12: 4 | G12: 5 | H12: 6 | I12: 7 | J12: 8 | K12: 9 | L12: 10 | M12: 11 | N12: 12
A14: 1 a 36 | B14: SIN HORIZONTAL E VERTICAL | C14: =$C$15/$O$15 -> 0.08333333333 | D14: 0.08333333333 | E14: 0.08333333333 | F14: 0.08333333333 | G14: 0.08333333333 | H14: 0.08333333333 | I14: 0.08333333333 | J14: 0.08333333333 | K14: 0.08333333333 | L14: 0.08333333333 | M14: 0.08333333333 | N14: 0.08333333333
B15: SEM BDI | C15: ='PLANILHA RESUMO'!$J$47/12 -> 897462.1167 | D15: ='PLANILHA RESUMO'!$J$47/12 -> 897462.1167 | E15: ='PLANILHA RESUMO'!$J$47/12 -> 897462.1167 | F15: ='PLANILHA RESUMO'!$J$47/12 -> 897462.1167 | G15: ='PLANILHA RESUMO'!$J$47/12 -> 897462.1167 | H15: ='PLANILHA RESUMO'!$J$47/12 -> 897462.1167 | I15: ='PLANILHA RESUMO'!$J$47/12 -> 897462.1167 | J15: ='PLANILHA RESUMO'!$J$47/12 -> 897462.1167 | K15: ='PLANILHA RESUMO'!$J$47/12 -> 897462.1167 | L15: ='PLANILHA RESUMO'!$J$47/12 -> 897462.1167 | M15: ='PLANILHA RESUMO'!$J$47/12 -> 897462.1167 | N15: ='PLANILHA RESUMO'!$J$47/12 -> 897462.1167 | O15: ='PLANILHA RESUMO'!J47 -> 10769545.4 | P15: =O15/$N$19 -> 0.9999999972
A18: TOTAL SEM BDI R$ | C18: =C15 -> 897462.1167 | D18: 897462.1167 | E18: 897462.1167 | F18: 897462.1167 | G18: 897462.1167 | H18: 897462.1167 | I18: 897462.1167 | J18: 897462.1167 | K18: 897462.1167 | L18: 897462.1167 | M18: 897462.1167 | N18: 897462.1167 | O18: =SUM(O14:O17) -> 10769545.4 | P18: 0.9999999972
A19: TOTAL ACUMULADO SEM BDI R$ | C19: =C18 -> 897462.1167 | D19: =ROUND(C19+D18,2) -> 1794924.23 | E19: 2692386.35 | F19: 3589848.47 | G19: 4487310.59 | H19: 5384772.71 | I19: 6282234.83 | J19: 7179696.95 | K19: 8077159.07 | L19: 8974621.19 | M19: 9872083.31 | N19: 10769545.43
A20: TOTAL ACUMULADO COM BDI R$ | C20: =(C19*BDI!$E$22)+C19 -> 1089070.279 | D20: =(D19*BDI!$E$22)+D19 -> 2178140.553 | E20: =(E19*BDI!$E$22)+E19 -> 3267210.836 | F20: =(F19*BDI!$E$22)+F19 -> 4356281.118 | G20: =(G19*BDI!$E$22)+G19 -> 5445351.401 | H20: =(H19*BDI!$E$22)+H19 -> 6534421.684 | I20: =(I19*BDI!$E$22)+I19 -> 7623491.966 | J20: =(J19*BDI!$E$22)+J19 -> 8712562.249 | K20: =(K19*BDI!$E$22)+K19 -> 9801632.531 | L20: =(L19*BDI!$E$22)+L19 -> 10890702.81 | M20: =(M19*BDI!$E$22)+M19 -> 11979773.1 | N20: =(N19*BDI!$E$22)+N19 -> 13068843.38 | O20: =O18*BDI!E22+O18 -> 13068843.34
A21: PERCENTUAL (%) | C21: =ROUND(C18/'PLANILHA RESUMO'!J47,12) -> 0.08333333333 | D21: =ROUND(D18/'PLANILHA RESUMO'!J47,12) -> 0.08333333333 | E21: =ROUND(E18/$N$19,12) -> 0.0833333331 | F21: 0.0833333331 | G21: 0.0833333331 | H21: 0.0833333331 | I21: 0.0833333331 | J21: 0.0833333331 | K21: 0.0833333331 | L21: 0.0833333331 | M21: 0.0833333331 | N21: 0.0833333331
A22: TOTAL ACUMULADO (%) | C22: =C21 -> 0.08333333333 | D22: =D21+C22 -> 0.1666666667 | E22: 0.2499999998 | F22: 0.3333333329 | G22: 0.416666666 | H22: 0.4999999991 | I22: 0.5833333322 | J22: 0.6666666653 | K22: 0.7499999984 | L22: 0.8333333315 | M22: 0.9166666646 | N22: 0.9999999977

Sheet COMPOSIÇÃO
A2: PREFEITURA DO MUNICÍPIO DE PORTO VELHO
A3: SECRETARIA MUNICIPAL DE TRÂNSITO, MOBILIDADE E TRANSPORTES – SEMTRAN
A4: DEPARTAMENTO DE TRÁFEGO – DET
A5: DATA BASE DA TABELA SINAPI: 04/2023 / DATA BASE DA TABELA SICRO: 01/2023
A6: COMPOSIÇÕES UNITÁRIAS DE CUSTO
A8: ='PLANILHA RESUMO'!B10 -> COMPOSIÇÃO 1 (SICRO 5213440) | B8: ='PLANILHA RESUMO'!C10 -> Fornecimento e implantação de placa de regulamentação em aço diametro = 0,50m – película retrorrefletiva tipo I e I
B9: Unidade: | C9: Unid. | K9: 162.36 | L9: 0.2135 | M9: =K9*(1+L9) -> 197.02386
A10: Código | B10: Componentes | C10: Unid. | D10: Consumo | E10: Preço unit. | F10: Preço total | K10: 153.34 | L10: 0.2746 | M10: 195.447164
B11: EQUIPAMENTO | E11: Prod. Equipe: 3,00 Unid.
A12: E9687 | B12: Caminhão carroceria com capacidade de 5 t - 115 kW | C12: CHP | D12: 0.3 | E12: =TRUNC(H12,2) -> 158.29 | F12: =D12*E12 -> 47.487 | G12: E SICRO | H12: =VLOOKUP(A12,'EQUIP. SICRO'!$A$2:$K$523,10,0) -> 158.2909
A13: E9687 | B13: Caminhão carroceria com capacidade de 5 t - 115 kW | C13: CHI | D13: 0.7 | E13: 54.62 | F13: 38.234 | H13: =VLOOKUP(A13,'EQUIP. SICRO'!$A$2:$K$523,11,0) -> 54.6252
B15: MÃO DE OBRA | E15: Prod. Equipe: 3,00 Unid.
A16: 88316 | B16: SERVENTE COM ENCARGOS COMPLEMENTARES | C16: h | D16: 2 | E16: =TRUNC(H16,2) -> 21.87 | F16: =D16*E16 -> 43.74 | G16: SINAPI | H16: =VLOOKUP(A16,'COMP. SINTÉTICO SINAPI'!$A$2:$E$7212,5,0) -> 21.87
A17: 88278 | B17: MONTADOR DE ESTRUTURA METÁLICA COM ENCARGOS COMPLEMENTARES | C17: h | D17: 1 | E17: 24.73 | F17: 24.73 | H17: =VLOOKUP(A17,'COMP. SINTÉTICO SINAPI'!$A$2:$E$7212,5,0) -> 24.73
B19: MATERIAL
A20: M0789 | B20: Conjunto de cantoneiras e parafusos para fixação de placas (cant. abas iguais 1.1/4”x3/16”, 40cm de comp., 2,20kg/m) | C20: kg | D20: 1.05812 | E20: =TRUNC(H20,2) -> 24.88 | F20: =E20*D20 -> 26.3260256 | G20: M SICRO | H20: =VLOOKUP(A20,'MATERIAL SICRO'!$A$2:$D$1656,4,0) -> 24.8898
B22: ATIVIDADES AUXILIARES
A23: 5213416 | B23: Confecção de placa em aço nº 16 galvanizado, com pelicula retrorrefletiva tipo I+I | C23: m² | D23: =3.1416*(0.25*0.25) -> 0.19635 | E23: =TRUNC(H23,2) -> 431.05 | F23: =D23*E23 -> 84.6366675 | G23: INS SICRO | H23: =VLOOKUP(A23,'COMP. SICRO'!$A$1:$D$6372,4,0) -> 431.05
D25: TOTAL SEM BDI | F25: =ROUND(((F12+F13+F16+F17)/3)+F23+F20,2) -> 162.36
A26: Obs. Esta composição foi adaptada apartir da referência da Tabela Sicro supracitada, os indices de equipamentos utilizados, bem como os indices para a mão de obra empregada rendem a produção de 3,00 unidades, os custos com veículos utilizados, Materiais e equipamentos foram coletados da tabela SICRO. Os custos da mão de Obra empregada, foram coletados da Tabela SINAPI. Foram removidos os custos com transportes, pois a execução dos serviços se dará somente em Porto Velho e seus Distritos.
A29: ='PLANILHA RESUMO'!B11 -> COMPOSIÇÃO 2 (SICRO 5213444) | B29: ='PLANILHA RESUMO'!C11 -> Fornecimento e implantação de placa de regulamentação em aço “R1”, lado=0,248m, com película retrorefletiva tipo I e I
B30: Unidade: | C30: Unid.
A31: Código | B31: Componentes | C31: Unid. | D31: Consumo | E31: Preço unit. | F31: Preço total
B32: EQUIPAMENTO | E32: Prod. Equipe: 3,00 Unid.
A33: E9687 | B33: Caminhão carroceria com capacidade de 5 t - 115 kW | C33: CHP | D33: 0.3 | E33: =TRUNC(H33,2) -> 158.29 | F33: =D33*E33 -> 47.487 | G33: E SICRO | H33: =VLOOKUP(A33,'EQUIP. SICRO'!$A$2:$K$523,10,0) -> 158.2909
A34: E9687 | B34: Caminhão carroceria com capacidade de 5 t - 115 kW | C34: CHI | D34: 0.7 | E34: 54.62 | F34: 38.234 | H34: =VLOOKUP(A34,'EQUIP. SICRO'!$A$2:$K$523,11,0) -> 54.6252
B36: MÃO DE OBRA | E36: Prod. Equipe: 3,00 Unid.
A37: 88316 | B37: SERVENTE COM ENCARGOS COMPLEMENTARES | C37: h | D37: 2 | E37: =TRUNC(H37,2) -> 21.87 | F37: =E37*D37 -> 43.74 | G37: SINAPI | H37: =VLOOKUP(A37,'COMP. SINTÉTICO SINAPI'!$A$2:$E$7212,5,0) -> 21.87
A38: 88278 | B38: MONTADOR DE ESTRUTURA METÁLICA COM ENCARGOS COMPLEMENTARES | C38: h | D38: 1 | E38: 24.73 | F38: =(E38*D38) -> 24.73 | H38: =VLOOKUP(A38,'COMP. SINTÉTICO SINAPI'!$A$2:$E$7212,5,0) -> 24.73
B40: MATERIAL
A41: M0789 | B41: Conjunto de cantoneiras e parafusos para fixação de placas (cant. abas iguais 1.1/4”x3/16”, 40cm de comp., 2,20kg/m) | C41: kg | D41: 1.05812 | E41: =TRUNC(H41,2) -> 24.88 | F41: =E41*D41 -> 26.3260256 | G41: M SICRO | H41: =VLOOKUP(A41,'MATERIAL SICRO'!$A$2:$D$1656,4,0) -> 24.8898
B43: ATIVIDADES AUXILIARES
A44: 5213416 | B44: Confecção de placa em aço nº 16 galvanizado, com pelicula retrorrefletiva tipo I+I | C44: m² | D44: 0.358 | E44: =TRUNC(H44,2) -> 431.05 | F44: =E44*D44 -> 154.3159 | G44: INS SICRO | H44: =VLOOKUP(A44,'COMP. SICRO'!$A$1:$D$6372,4,0) -> 431.05
D46: TOTAL SEM BDI | F46: =ROUND(((F33+F34+F37+F38)/3)+F44+F41,2) -> 232.04
A47: Obs. Esta composição foi adaptada apartir da referência da Tabela Sicro supracitada, os indices de equipamentos utilizados, bem como os indices para a mão de obra empregada rendem a produção de 3,00 unidades, os custos com veículos utilizados, Materiais e equipamentos foram coletados da tabela SICRO. Os custos da mão de Obra empregada, foram coletados da Tabela SINAPI. Foram removidos os custos com transportes, pois a execução dos serviços se dará somente em Porto Velho e seus Distritos.
A50: ='PLANILHA RESUMO'!B12 -> COMPOSIÇÃO 3 (SICRO 5213449) | B50: ='PLANILHA RESUMO'!C12 -> Fornecimento e implantação de placa de Regulamentação”R2” triangular em aço lado=0,80m, com película retrorefletiva tipo I e I
B51: Unidade: | C51: Unid.
A52: Código | B52: Componentes | C52: Unid. | D52: Consumo | E52: Preço unit. | F52: Preço total
B53: EQUIPAMENTO | E53: Prod. Equipe: 3,00 Unid.
A54: E9687 | B54: Caminhão carroceria com capacidade de 5 t - 115 kW | C54: CHP | D54: 0.3 | E54: =TRUNC(H54,2) -> 158.29 | F54: =D54*E54 -> 47.487 | G54: E SICRO | H54: =VLOOKUP(A54,'EQUIP. SICRO'!$A$2:$K$523,10,0) -> 158.2909
A55: E9687 | B55: Caminhão carroceria com capacidade de 5 t - 115 kW | C55: CHI | D55: 0.7 | E55: 54.62 | F55: 38.234 | H55: =VLOOKUP(A55,'EQUIP. SICRO'!$A$2:$K$523,11,0) -> 54.6252
B57: MÃO DE OBRA | E57: Prod. Equipe: 3,00 Unid.
A58: 88316 | B58: SERVENTE COM ENCARGOS COMPLEMENTARES | C58: h | D58: 2 | E58: =TRUNC(H58,2) -> 21.87 | F58: =E58*D58 -> 43.74 | G58: SINAPI | H58: =VLOOKUP(A58,'COMP. SINTÉTICO SINAPI'!$A$2:$E$7212,5,0) -> 21.87
A59: 88278 | B59: MONTADOR DE ESTRUTURA METÁLICA COM ENCARGOS COMPLEMENTARES | C59: h | D59: 1 | E59: 24.73 | F59: =(E59*D59) -> 24.73 | H59: =VLOOKUP(A59,'COMP. SINTÉTICO SINAPI'!$A$2:$E$7212,5,0) -> 24.73
B61: MATERIAL
A62: M0789 | B62: Conjunto de cantoneiras e parafusos para fixação de placas (cant. abas iguais 1.1/4”x3/16”, 40cm de comp., 2,20kg/m) | C62: kg | D62: 1.05812 | E62: =TRUNC(H62,2) -> 24.88 | F62: =E62*D62 -> 26.3260256 | G62: M SICRO | H62: =VLOOKUP(A62,'MATERIAL SICRO'!$A$2:$D$1656,4,0) -> 24.8898
B64: ATIVIDADES AUXILIARES
A65: 5213416 | B65: Confecção de placa em aço nº 16 galvanizado, com película retrorrefletiva tipo I+I | C65: m² | D65: 0.28 | E65: =TRUNC(H65,2) -> 431.05 | F65: =E65*D65 -> 120.694 | G65: INS SICRO | H65: =VLOOKUP(A65,'COMP. SICRO'!$A$1:$D$6372,4,0) -> 431.05
D67: TOTAL SEM BDI | F67: =ROUND(((F54+F55+F58+F59)/3)+F65+F62,2) -> 198.42
A68: Obs. Esta composição foi adaptada apartir da referência da Tabela Sicro supracitada, os indices de equipamentos utilizados, bem como os indices para a mão de obra empregada rendem a produção de 3,00 unidades, os custos com veículos utilizados, Materiais e equipamentos foram coletados da tabela SICRO. Os custos da mão de Obra empregada, foram coletados da Tabela SINAPI. Foram removidos os custos com transportes, pois a execução dos serviços se dará somente em Porto Velho e seus Distritos.
A71: ='PLANILHA RESUMO'!B13 -> COMPOSIÇÃO 4 (SICRO 5213464) | B71: ='PLANILHA RESUMO'!C13 -> Fornecimento e implantação de placa de advertência quadrada em aço lado=0,50m, com película retrorrefletiva tipo I e I
B72: Unidade: | C72: Unid.
A73: Código | B73: Componentes | C73: Unid. | D73: Consumo | E73: Preço unit. | F73: Preço total
B74: EQUIPAMENTO | E74: Prod. Equipe: 3,00 Unid.
A75: E9687 | B75: Caminhão carroceria com capacidade de 5 t - 115 kW | C75: CHP | D75: 0.3 | E75: =TRUNC(H75,2) -> 158.29 | F75: =D75*E75 -> 47.487 | G75: E SICRO | H75: =VLOOKUP(A75,'EQUIP. SICRO'!$A$2:$K$523,10,0) -> 158.2909
A76: E9687 | B76: Caminhão carroceria com capacidade de 5 t - 115 kW | C76: CHI | D76: 0.7 | E76: 54.62 | F76: 38.234 | H76: =VLOOKUP(A76,'EQUIP. SICRO'!$A$2:$K$523,11,0) -> 54.6252
B78: MÃO DE OBRA | E78: Prod. Equipe: 3,00 Unid.
A79: 88316 | B79: SERVENTE COM ENCARGOS COMPLEMENTARES | C79: h | D79: 2 | E79: =TRUNC(H79,2) -> 21.87 | F79: =E79*D79 -> 43.74 | G79: SINAPI | H79: =VLOOKUP(A79,'COMP. SINTÉTICO SINAPI'!$A$2:$E$7212,5,0) -> 21.87
A80: 88278 | B80: MONTADOR DE ESTRUTURA METÁLICA COM ENCARGOS COMPLEMENTARES | C80: h | D80: 1 | E80: 24.73 | F80: =(E80*D80) -> 24.73 | H80: =VLOOKUP(A80,'COMP. SINTÉTICO SINAPI'!$A$2:$E$7212,5,0) -> 24.73
B82: MATERIAL
A83: M0789 | B83: Conjunto de cantoneiras e parafusos para fixação de placas (cant. abas iguais 1.1/4”x3/16”, 40cm de comp., 2,20kg/m) | C83: kg | D83: 1.05812 | E83: =TRUNC(H83,2) -> 24.88 | F83: =E83*D83 -> 26.3260256 | G83: M SICRO | H83: =VLOOKUP(A83,'MATERIAL SICRO'!$A$2:$D$1656,4,0) -> 24.8898
B85: ATIVIDADES AUXILIARES
A86: 5213416 | B86: Confecção de placa em aço nº 16 galvanizado, com película retrorrefletiva tipo I+I | C86: m² | D86: =0.5*0.5 -> 0.25 | E86: =TRUNC(H86,2) -> 431.05 | F86: =E86*D86 -> 107.7625 | G86: INS SICRO | H86: =VLOOKUP(A86,'COMP. SICRO'!$A$1:$D$6372,4,0) -> 431.05
D88: TOTAL SEM BDI | F88: =ROUND(((F75+F76+F79+F80)/3)+F86+F83,2) -> 185.49
A89: Obs. Esta composição foi adaptada apartir da referência da Tabela Sicro supracitada, os indices de equipamentos utilizados, bem como os indices para a mão de obra empregada rendem a produção de 3,00 unidades, os custos com veículos utilizados, Materiais e equipamentos foram coletados da tabela SICRO. Os custos da mão de Obra empregada, foram coletados da Tabela SINAPI. Foram removidos os custos com transportes, pois a execução dos serviços se dará somente em Porto Velho e seus Distritos.
A92: ='PLANILHA RESUMO'!B14 -> COMPOSIÇÃO 5 (SICRO 5213473) | B92: ='PLANILHA RESUMO'!C14 -> Fornecimento e implantação de placa de Regulamentação retangular em aço com dimensões = 0,60 x 1,00m, com película retrorrefletiva tipo I e I
B93: Unidade: | C93: Unid.
A94: Código | B94: Componentes | C94: Unid. | D94: Consumo | E94: Preço unit. | F94: Preço total
B95: EQUIPAMENTO | E95: Prod. Equipe: 3,00 Unid.
A96: E9687 | B96: Caminhão carroceria com capacidade de 5 t - 115 kW | C96: CHP | D96: 0.3 | E96: =TRUNC(H96,2) -> 158.29 | F96: =D96*E96 -> 47.487 | G96: E SICRO | H96: =VLOOKUP(A96,'EQUIP. SICRO'!$A$2:$K$523,10,0) -> 158.2909
A97: E9687 | B97: Caminhão carroceria com capacidade de 5 t - 115 kW | C97: CHI | D97: 0.7 | E97: 54.62 | F97: 38.234 | H97: =VLOOKUP(A97,'EQUIP. SICRO'!$A$2:$K$523,11,0) -> 54.6252
B99: MÃO DE OBRA | E99: Prod. Equipe: 3,00 Unid.
A100: 88316 | B100: SERVENTE COM ENCARGOS COMPLEMENTARES | C100: h | D100: 2 | E100: =TRUNC(H100,2) -> 21.87 | F100: =E100*D100 -> 43.74 | G100: SINAPI | H100: =VLOOKUP(A100,'COMP. SINTÉTICO SINAPI'!$A$2:$E$7212,5,0) -> 21.87
A101: 88278 | B101: MONTADOR DE ESTRUTURA METÁLICA COM ENCARGOS COMPLEMENTARES | C101: h | D101: 1 | E101: 24.73 | F101: =(E101*D101) -> 24.73 | H101: =VLOOKUP(A101,'COMP. SINTÉTICO SINAPI'!$A$2:$E$7212,5,0) -> 24.73
B103: MATERIAL
A104: M0789 | B104: Conjunto de cantoneiras e parafusos para fixação de placas (cant. abas iguais 1.1/4”x3/16”, 2x40cm de comp., 2,20kg/m) | C104: kg | D104: =(1.05812*2) -> 2.11624 | E104: =TRUNC(H104,2) -> 24.88 | F104: =E104*D104 -> 52.6520512 | G104: M SICRO | H104: =VLOOKUP(A104,'MATERIAL SICRO'!$A$2:$D$1656,4,0) -> 24.8898
B106: ATIVIDADES AUXILIARES
A107: 5213416 | B107: Confecção de placa em aço nº 16 galvanizado, com pelicula retrorrefletiva tipo I+I | C107: m² | D107: 0.6 | E107: =TRUNC(H107,2) -> 431.05 | F107: =E107*D107 -> 258.63 | G107: INS SICRO | H107: =VLOOKUP(A107,'COMP. SICRO'!$A$1:$D$6372,4,0) -> 431.05
D109: TOTAL SEM BDI | F109: =ROUND(((F96+F97+F100+F101)/3)+F107+F104,2) -> 362.68
A110: Obs. Esta composição foi adaptada apartir da referência da Tabela Sicro supracitada, os indices de equipamentos utilizados, bem como os indices para a mão de obra empregada rendem a produção de 3,00 unidades, os custos com veículos utilizados, Materiais e equipamentos foram coletados da tabela SICRO. Os custos da mão de Obra empregada, foram coletados da Tabela SINAPI. Foram removidos os custos com transportes, pois a execução dos serviços se dará somente em Porto Velho e seus Distritos.
A113: ='PLANILHA RESUMO'!B15 -> COMPOSIÇÃO 6 (SICRO 5213572) | B113: ='PLANILHA RESUMO'!C15 -> Fornecimento e implantação de placa retangular simples em dimensão a ser definida em projeto, em aço, com película retrorrefletiva tipo III + III
B114: Unidade: | C114: Unid.
A115: Código | B115: Componentes | C115: Unid. | D115: Consumo | E115: Preço unit. | F115: Preço total
B116: EQUIPAMENTO | E116: Prod. Equipe: 3,00 Unid.
A117: E9687 | B117: Caminhão carroceria com capacidade de 5 t - 115 kW | C117: CHP | D117: 0.3 | E117: =TRUNC(H117,2) -> 158.29 | F117: =D117*E117 -> 47.487 | G117: E SICRO | H117: =VLOOKUP(A117,'EQUIP. SICRO'!$A$2:$K$523,10,0) -> 158.2909
A118: E9687 | B118: Caminhão carroceria com capacidade de 5 t - 115 kW | C118: CHI | D118: 0.7 | E118: 54.62 | F118: 38.234 | H118: =VLOOKUP(A118,'EQUIP. SICRO'!$A$2:$K$523,11,0) -> 54.6252
B120: MÃO DE OBRA | E120: Prod. Equipe: 3,00 Unid.
A121: 88316 | B121: SERVENTE COM ENCARGOS COMPLEMENTARES | C121: h | D121: 2 | E121: =TRUNC(H121,2) -> 21.87 | F121: =E121*D121 -> 43.74 | G121: SINAPI | H121: =VLOOKUP(A121,'COMP. SINTÉTICO SINAPI'!$A$2:$E$7212,5,0) -> 21.87
A122: 88278 | B122: MONTADOR DE ESTRUTURA METÁLICA COM ENCARGOS COMPLEMENTARES | C122: h | D122: 1 | E122: 24.73 | F122: =(E122*D122) -> 24.73 | H122: =VLOOKUP(A122,'COMP. SINTÉTICO SINAPI'!$A$2:$E$7212,5,0) -> 24.73
B124: ATIVIDADES AUXILIARES
A125: 5213418 | B125: Confecção de placa em aço nº 16 galvanizado, com pelicula retrorrefletiva tipo III+III | C125: m² | D125: 1 | E125: =TRUNC(H125,2) -> 545.08 | F125: =F181 -> 755.65 | G125: INS SICRO | H125: =VLOOKUP(A125,'COMP. SICRO'!$A$1:$D$6372,4,0) -> 545.08
D127: TOTAL SEM BDI | F127: =ROUND(((F117+F118+F121+F122)/3)+F125,2) -> 807.05
A128: Obs. Esta composição foi adaptada apartir da referência da Tabela Sicro supracitada, os indices de equipamentos utilizados, bem como os indices para a mão de obra empregada rendem a produção de 3,00 unidades, os custos com veículos utilizados, Materiais e equipamentos foram coletados da tabela SICRO. Os custos da mão de Obra empregada, foram coletados da Tabela SINAPI. Foram removidos os custos com transportes, pois a execução dos serviços se dará somente em Porto Velho e seus Distritos.
A131: ='PLANILHA RESUMO'!B16 -> COMPOSIÇÃO 7 (SICRO 5213472) | B131: ='PLANILHA RESUMO'!C16 -> Fornecimento e implantação de placa Indicativa retangular para parada de ônibus em aço com dimensões = 0,60 x 0,40m, A=0,24m², com película retrorrefletiva tipo I + I
B132: Unidade: | C132: Unid.
A133: Código | B133: Componentes | C133: Unid. | D133: Consumo | E133: Preço unit. | F133: Preço total
B134: EQUIPAMENTO | E134: Prod. Equipe: 3,00 Unid.
A135: E9687 | B135: Caminhão carroceria com capacidade de 5 t - 115 kW | C135: CHP | D135: 0.3 | E135: =TRUNC(H135,2) -> 158.29 | F135: =D135*E135 -> 47.487 | G135: E SICRO | H135: =VLOOKUP(A135,'EQUIP. SICRO'!$A$2:$K$523,10,0) -> 158.2909
A136: E9687 | B136: Caminhão carroceria com capacidade de 5 t - 115 kW | C136: CHI | D136: 0.7 | E136: 54.62 | F136: 38.234 | H136: =VLOOKUP(A136,'EQUIP. SICRO'!$A$2:$K$523,11,0) -> 54.6252
B138: MÃO DE OBRA | E138: Prod. Equipe: 3,00 Unid.
A139: 88316 | B139: SERVENTE COM ENCARGOS COMPLEMENTARES | C139: h | D139: 2 | E139: =TRUNC(H139,2) -> 21.87 | F139: =E139*D139 -> 43.74 | G139: SINAPI | H139: =VLOOKUP(A139,'COMP. SINTÉTICO SINAPI'!$A$2:$E$7212,5,0) -> 21.87
A140: 88278 | B140: MONTADOR DE ESTRUTURA METÁLICA COM ENCARGOS COMPLEMENTARES | C140: h | D140: 1 | E140: 24.73 | F140: =(E140*D140) -> 24.73 | H140: =VLOOKUP(A140,'COMP. SINTÉTICO SINAPI'!$A$2:$E$7212,5,0) -> 24.73
B142: MATERIAL
A143: M0789 | B143: Conjunto de cantoneiras e parafusos para fixação de placas (cant. abas iguais 1.1/4”x3/16”, 40cm de comp., 2,20kg/m) | C143: kg | D143: 1.05812 | E143: =TRUNC(H143,2) -> 24.88 | F143: =E143*D143 -> 26.3260256 | G143: M SICRO | H143: =VLOOKUP(A143,'MATERIAL SICRO'!$A$2:$D$1656,4,0) -> 24.8898
B145: ATIVIDADES AUXILIARES
A146: 5213416 | B146: Confecção de placa em aço nº 16 galvanizado, com película retrorrefletiva tipo I+I | C146: m² | D146: =0.6*0.4 -> 0.24 | E146: =TRUNC(H146,2) -> 431.05 | F146: =E146*D146 -> 103.452 | G146: INS SICRO | H146: =VLOOKUP(A146,'COMP. SICRO'!$A$1:$D$6372,4,0) -> 431.05
D148: TOTAL SEM BDI | F148: =ROUND(((F135+F136+F139+F140)/3)+F146+F143,2) -> 181.18
A149: Obs. Esta composição foi adaptada apartir da referência da Tabela Sicro supracitada, os indices de equipamentos utilizados, bem como os indices para a mão de obra empregada rendem a produção de 3,00 unidades, os custos com veículos utilizados, Materiais e equipamentos foram coletados da tabela SICRO. Os custos da mão de Obra empregada, foram coletados da Tabela SINAPI. Foram removidos os custos com transportes, pois a execução dos serviços se dará somente em Porto Velho e seus Distritos.
A152: COMPOSIÇÃO AUXILIAR PLACAS 01 (SICRO 5213418) | B152: =B125 -> Confecção de placa em aço nº 16 galvanizado, com pelicula retrorrefletiva tipo III+III
B153: Unidade: | C153: m²
A154: Código | B154: Componentes | C154: Unid. | D154: Consumo | E154: Preço unit. | F154: Preço total
B155: EQUIPAMENTO | E155: Prod. Equipe: 4,00 m²
A156: E9507 | B156: Computador, plotter de recorte e software | C156: CHP | D156: 0.48193 | E156: =TRUNC(H156,2) -> 23.67 | F156: =D156*E156 -> 11.4072831 | G156: E SICRO | H156: =VLOOKUP(A156,'EQUIP. SICRO'!$A$2:$K$523,10,0) -> 23.6723
A157: E9507 | B157: Computador, plotter de recorte e software | C157: CHI | D157: 0 | E157: 14.92 | F157: 0 | H157: =VLOOKUP(A157,'EQUIP. SICRO'!$A$2:$K$523,11,0) -> 14.9231
A158: E9568 | B158: Furadeira de impacto de 12,5mm – 0,8kw | C158: CHP | D158: 0.1506 | E158: 0.2 | F158: 0.03012 | H158: =VLOOKUP(A158,'EQUIP. SICRO'!$A$2:$K$523,10,0) -> 0.2057
A159: E9568 | B159: Furadeira de impacto de 12,5mm – 0,8kw | C159: CHI | D159: 0 | E159: 0.13 | F159: 0 | H159: =VLOOKUP(A159,'EQUIP. SICRO'!$A$2:$K$523,11,0) -> 0.1364
A160: E9066 | B160: Grupo Gerador – 13 / 14 kva | C160: CHP | D160: 0.48193 | E160: 21.12 | F160: 10.1783616 | H160: =VLOOKUP(A160,'EQUIP. SICRO'!$A$2:$K$523,10,0) -> 21.1267
A161: E9066 | B161: Grupo Gerador – 13 / 14 kva | C161: CHI | D161: 0 | E161: 4.64 | F161: 0 | H161: =VLOOKUP(A161,'EQUIP. SICRO'!$A$2:$K$523,11,0) -> 4.6472
A162: E9623 | B162: Máquina de Bancada Guilhotina – 4 kw | C162: CHP | D162: 0.2008 | E162: 15.13 | F162: 3.038104 | H162: =VLOOKUP(A162,'EQUIP. SICRO'!$A$2:$K$523,10,0) -> 15.1399
A163: E9623 | B163: Máquina de Bancada Guilhotina – 4 kw | C163: CHI | D163: 0 | E163: 9.62 | F163: 0 | H163: =VLOOKUP(A163,'EQUIP. SICRO'!$A$2:$K$523,11,0) -> 9.6238
A164: E9622 | B164: Máquina de bancada universal para corte de chapa – 1,5kw | C164: CHP | D164: 0.48193 | E164: 10.59 | F164: 5.1036387 | H164: =VLOOKUP(A164,'EQUIP. SICRO'!$A$2:$K$523,10,0) -> 10.5994
A165: E9622 | B165: Máquina de bancada universal para corte de chapa – 1,5kw | C165: CHI | D165: 0 | E165: 6.73 | F165: 0 | H165: =VLOOKUP(A165,'EQUIP. SICRO'!$A$2:$K$523,11,0) -> 6.7376
B167: MÃO DE OBRA | E167: Prod. Equipe: 4,00 m²
A168: 88243 | B168: AJUDANTE ESPECIALIZADO COM ENCARGOS COMPLEMENTARES | C168: h | D168: 2 | E168: =TRUNC(H168,2) -> 23.17 | F168: =D168*E168 -> 46.34 | G168: SINAPI | H168: =VLOOKUP(A168,'COMP. SINTÉTICO SINAPI'!$A$2:$E$7212,5,0) -> 23.17
A169: 88278 | B169: MONTADOR DE ESTRUTURA METÁLICA COM ENCARGOS COMPLEMENTARES | C169: h | D169: 1 | E169: 24.73 | F169: 24.73 | H169: =VLOOKUP(A169,'COMP. SINTÉTICO SINAPI'!$A$2:$E$7212,5,0) -> 24.73
A170: 88315 | B170: SERRALHEIRO COM ENCARGOS COMPLEMENTARES | C170: h | D170: 1 | E170: 25.67 | F170: 25.67 | H170: =VLOOKUP(A170,'COMP. SINTÉTICO SINAPI'!$A$2:$E$7212,5,0) -> 25.67
A171: 88316 | B171: SERVENTE COM ENCARGOS COMPLEMENTARES | C171: h | D171: 2 | E171: 21.87 | F171: 43.74 | H171: =VLOOKUP(A171,'COMP. SINTÉTICO SINAPI'!$A$2:$E$7212,5,0) -> 21.87
B173: MATERIAL
A174: M1367 | B174: Chapa de aço galvanizado | C174: kg | D174: 11.775 | E174: =TRUNC(H174,2) -> 13.47 | F174: =D174*E174 -> 158.60925 | G174: M SICRO | H174: =VLOOKUP(A174,'MATERIAL SICRO'!$A$2:$D$1656,4,0) -> 13.4784
A175: M3237 | B175: Película retrorrefletiva tipo III | C175: m² | D175: 1.4 | E175: 232.61 | F175: 325.654 | H175: =VLOOKUP(A175,'MATERIAL SICRO'!$A$2:$D$1656,4,0) -> 232.6198
A176: M0366 | B176: Cantoneira de aço galvanizado ASTM A-36, abas iguais de 65mm espessura de 5mm (4,98kg/m) | C176: kg | D176: =4.98*4 -> 19.92 | E176: 10.62 | F176: 211.5504 | H176: =VLOOKUP(A176,'MATERIAL SICRO'!$A$2:$D$1656,4,0) -> 10.6242
B178: ATIVIDADES AUXILIARES
A179: 5212552 | B179: Pintura eletrostática a pó com tinta poliéster em chapa de aço | C179: m² | D179: 1 | E179: =TRUNC(H179,2) -> 17.28 | F179: =E179*D179 -> 17.28 | G179: INS SICRO | H179: =VLOOKUP(A179,'COMP. SICRO'!$A$1:$D$6372,4,0) -> 17.28
D181: TOTAL SEM BDI | F181: =ROUND((((SUM(F156:F165))+(SUM(F168:F171)))/4)+(SUM(F174:F179)),2) -> 755.65
A182: Obs. Esta composição foi adaptada apartir da referência da Tabela Sicro supracitada, os indices de equipamentos utilizados, bem como os indices para a mão de obra empregada rendem a produção de 4,00m², os custos com veículos utilizados, Materiais e equipamentos foram coletados da tabela SICRO. Os custos da mão de Obra empregada, foram coletados da Tabela SINAPI. Foram removidos os custos com transportes, pois a execução dos serviços se dará somente em Porto Velho e seus Distritos.
A185: COMPOSIÇÃO AUXILIAR PLACAS 02 (SICRO 5213416) | B185: =B146 -> Confecção de placa em aço nº 16 galvanizado, com película retrorrefletiva tipo I+I
B186: Unidade: | C186: m²
A187: Código | B187: Componentes | C187: Unid. | D187: Consumo | E187: Preço unit. | F187: Preço total
B188: EQUIPAMENTO | E188: Prod. Equipe: 4,00 m²
A189: E9507 | B189: Computador, plotter de recorte e software | C189: CHP | D189: 0.50729 | E189: =TRUNC(H189,2) -> 23.67 | F189: =D189*E189 -> 12.0075543 | G189: E SICRO | H189: =VLOOKUP(A189,'EQUIP. SICRO'!$A$2:$K$523,10,0) -> 23.6723
A190: E9507 | B190: Computador, plotter de recorte e software | C190: CHI | D190: 0 | E190: 14.92 | F190: 0 | H190: =VLOOKUP(A190,'EQUIP. SICRO'!$A$2:$K$523,11,0) -> 14.9231
A191: E9568 | B191: Furadeira de impacto de 12,5mm – 0,8kw | C191: CHP | D191: 0.1506 | E191: 0.2 | F191: 0.03012 | H191: =VLOOKUP(A191,'EQUIP. SICRO'!$A$2:$K$523,10,0) -> 0.2057
A192: E9568 | B192: Furadeira de impacto de 12,5mm – 0,8kw | C192: CHI | D192: 0 | E192: 0.13 | F192: 0 | H192: =VLOOKUP(A192,'EQUIP. SICRO'!$A$2:$K$523,11,0) -> 0.1364
A193: E9066 | B193: Grupo Gerador – 13 / 14 kva | C193: CHP | D193: 0.48193 | E193: 21.12 | F193: 10.1783616 | H193: =VLOOKUP(A193,'EQUIP. SICRO'!$A$2:$K$523,10,0) -> 21.1267
A194: E9066 | B194: Grupo Gerador – 13 / 14 kva | C194: CHI | D194: 0 | E194: 4.64 | F194: 0 | H194: =VLOOKUP(A194,'EQUIP. SICRO'!$A$2:$K$523,11,0) -> 4.6472
A195: E9623 | B195: Máquina de Bancada Guilhotina – 4 kw | C195: CHP | D195: 0.2008 | E195: 15.13 | F195: 3.038104 | H195: =VLOOKUP(A195,'EQUIP. SICRO'!$A$2:$K$523,10,0) -> 15.1399
A196: E9623 | B196: Máquina de Bancada Guilhotina – 4 kw | C196: CHI | D196: 0 | E196: 9.62 | F196: 0 | H196: =VLOOKUP(A196,'EQUIP. SICRO'!$A$2:$K$523,11,0) -> 9.6238
A197: E9622 | B197: Máquina de bancada universal para corte de chapa – 1,5kw | C197: CHP | D197: 0.48193 | E197: 10.59 | F197: 5.1036387 | H197: =VLOOKUP(A197,'EQUIP. SICRO'!$A$2:$K$523,10,0) -> 10.5994
A198: E9622 | B198: Máquina de bancada universal para corte de chapa – 1,5kw | C198: CHI | D198: 0 | E198: 6.73 | F198: 0 | H198: =VLOOKUP(A198,'EQUIP. SICRO'!$A$2:$K$523,11,0) -> 6.7376
B200: MÃO DE OBRA | E200: Prod. Equipe: 4,00 m²
A201: 88243 | B201: AJUDANTE ESPECIALIZADO COM ENCARGOS COMPLEMENTARES | C201: h | D201: 2 | E201: =TRUNC(H201,2) -> 23.17 | F201: =D201*E201 -> 46.34 | G201: SINAPI | H201: =VLOOKUP(A201,'COMP. SINTÉTICO SINAPI'!$A$2:$E$7212,5,0) -> 23.17
A202: 88278 | B202: MONTADOR DE ESTRUTURA METÁLICA COM ENCARGOS COMPLEMENTARES | C202: h | D202: 1 | E202: 24.73 | F202: 24.73 | H202: =VLOOKUP(A202,'COMP. SINTÉTICO SINAPI'!$A$2:$E$7212,5,0) -> 24.73
A203: 88315 | B203: SERRALHEIRO COM ENCARGOS COMPLEMENTARES | C203: h | D203: 1 | E203: 25.67 | F203: 25.67 | H203: =VLOOKUP(A203,'COMP. SINTÉTICO SINAPI'!$A$2:$E$7212,5,0) -> 25.67
A204: 88316 | B204: SERVENTE COM ENCARGOS COMPLEMENTARES | C204: h | D204: 2 | E204: 21.87 | F204: 43.74 | H204: =VLOOKUP(A204,'COMP. SINTÉTICO SINAPI'!$A$2:$E$7212,5,0) -> 21.87
B206: MATERIAL
A207: M1367 | B207: Chapa de aço galvanizado | C207: kg | D207: 11.775 | E207: =TRUNC(H207,2) -> 13.47 | F207: =D207*E207 -> 158.60925 | G207: M SICRO | H207: =VLOOKUP(A207,'MATERIAL SICRO'!$A$2:$D$1656,4,0) -> 13.4784
A208: M3235 | B208: Película retrorrefletiva tipo I | C208: m² | D208: 1.4 | E208: 151.16 | F208: 211.624 | H208: =VLOOKUP(A208,'MATERIAL SICRO'!$A$2:$D$1656,4,0) -> 151.1662
B210: ATIVIDADES AUXILIARES
A211: 5212552 | B211: Pintura eletrostática a pó com tinta poliéster em chapa de aço | C211: m² | D211: 1 | E211: =TRUNC(H211,2) -> 17.28 | F211: =E211*D211 -> 17.28 | G211: INS SICRO | H211: =VLOOKUP(A211,'COMP. SICRO'!$A$1:$D$6372,4,0) -> 17.28
D213: TOTAL SEM BDI | F213: =ROUND((((SUM(F189:F198))+(SUM(F201:F204)))/4)+(SUM(F207:F211)),2) -> 430.22
A214: Obs. Esta composição foi adaptada apartir da referência da Tabela Sicro supracitada, os indices de equipamentos utilizados, bem como os indices para a mão de obra empregada rendem a produção de 9,00m², os custos com veículos utilizados, Materiais e equipamentos foram coletados da tabela SICRO. Os custos da mão de Obra empregada, foram coletados da Tabela SINAPI. Foram removidos os custos com transportes, pois a execução dos serviços se dará somente em Porto Velho e seus Distritos.
A217: ='PLANILHA RESUMO'!B17 -> COMPOSIÇÃO 8 (SICRO 5213859) | B217: ='PLANILHA RESUMO'!C17 -> Fornecimento e implantação de suporte metálico galvanizado para placa simples, classe leve, DN 65 mm ( 2 1/2"), E = 3,35 mm, 6,23kg/m (NBR 5580), comprimento = 3,00m
B218: Unidade: | C218: Unid.
A219: Código | B219: Componentes | C219: unid. | D219: consumo | E219: Preço Unit. | F219: Preço Total
B220: EQUIPAMENTO | E220: Prod. Equipe: 4,80 Unid.
A221: E9687 | B221: Caminhão carroceria com capacidade de 5 t - 115 kW | C221: CHP | D221: 0.3 | E221: =TRUNC(H221,2) -> 158.29 | F221: =D221*E221 -> 47.487 | G221: E SICRO | H221: =VLOOKUP(A221,'EQUIP. SICRO'!$A$2:$K$523,10,0) -> 158.2909
A222: E9687 | B222: Caminhão carroceria com capacidade de 5 t - 115 kW | C222: CHI | D222: 0.7 | E222: 54.62 | F222: 38.234 | H222: =VLOOKUP(A222,'EQUIP. SICRO'!$A$2:$K$523,11,0) -> 54.6252
B224: MÃO DE OBRA | E224: Prod. Equipe: 4,80 Unid.
A225: 88315 | B225: SERRALHEIRO COM ENCARGOS COMPLEMENTARES | C225: h | D225: 1 | E225: =TRUNC(H225,2) -> 25.67 | F225: =D225*E225 -> 25.67 | G225: SINAPI | H225: =VLOOKUP(A225,'COMP. SINTÉTICO SINAPI'!$A$2:$E$7212,5,0) -> 25.67
A226: 88316 | B226: SERVENTE COM ENCARGOS COMPLEMENTARES | C226: h | D226: 1 | E226: 21.87 | F226: 21.87 | H226: =VLOOKUP(A226,'COMP. SINTÉTICO SINAPI'!$A$2:$E$7212,5,0) -> 21.87
B228: MATERIAL
A229: M0365 | B229: Cantoneira de ferro de 1" x 1" x 3/16" 1,73kg/m (0,15m) | C229: kg | D229: 0.2595 | E229: =TRUNC(H229,2) -> 11.02 | F229: =D229*E229 -> 2.85969 | G229: M SICRO | H229: =VLOOKUP(A229,'MATERIAL SICRO'!$A$2:$D$1656,4,0) -> 11.0251
A230: 21014 | B230: Tubo aço galvanizado com costura, classe leve, DN 65 mm ( 2 1/2"), E = 3,35 mm, * 6,23* kg/m (NBR 5580) | C230: m | D230: 3 | E230: 100.49 | F230: 301.47 | G230: INS SINAPI | H230: =VLOOKUP(A230,'INSUMOS SINAPI'!$A$1:$E$5204,5,0) -> 100.49
B232: ATIVIDADES AUXILIARES
A233: 94975 | B233: Concreto FCK = 15MPa, Traço 1:3,4:3,5 (Em massa seca de cimento/areia média/brita 01) - Preparo manual. AF_05/2021 | C233: m³ | D233: =D234 -> 0.035343 | E233: =TRUNC(H233,2) -> 612.5 | F233: =D233*E233 -> 21.6475875 | G233: SINAPI | H233: =VLOOKUP(A233,'COMP. SINTÉTICO SINAPI'!A2:E7212,5,0) -> 612.5
A234: 4805750 | B234: Escavação em material de 1ª categoria | C234: m³ | D234: =(3.1416*0.15*0.15)*0.5 -> 0.035343 | E234: 43.62 | F234: 1.54166166 | G234: INS SICRO | H234: =VLOOKUP(A234,'COMP. SICRO'!$A$1:$D$6372,4,0) -> 43.62
D236: TOTAL SEM BDI | F236: =ROUND((((SUM(F221:F222))+(SUM(F225:F226)))/4.8)+(F229+F230+F233+F234),2) -> 355.28
A237: Obs. Esta composição foi adaptada apartir da referência da Tabela Sicro supracitada, os indices de equipamentos utilizados, bem como os indices para a mão de obra empregada rendem a produção de 4,8 unidades, os custos com veículos utilizados, Materiais e equipamentos foram coletados da tabela SICRO. Os custos da mão de Obra empregada, foram coletados da Tabela SINAPI. Foram removidos os custos com transportes, pois a execução dos serviços se dará somente em Porto Velho e seus Distritos.
A240: ='PLANILHA RESUMO'!B18 -> COMPOSIÇÃO 9 (SICRO 5213857) | B240: ='PLANILHA RESUMO'!C18 -> Fornecimento e implantação de suporte metálico galvanizado para duas placas, classe leve, DN 65 mm ( 2 1/2"), E = 3,35 mm, 6,23 kg/m (NBR 5580), comprimento = 3,50m
B241: Unidade: | C241: Unid.
A242: Código | B242: Componentes | C242: unid. | D242: consumo | E242: Preço Unit. | F242: Preço Total
B243: EQUIPAMENTO | E243: Prod. Equipe: 4,40 Unid.
A244: E9687 | B244: Caminhão carroceria com capacidade de 5 t - 115 kW | C244: CHP | D244: 0.3 | E244: =TRUNC(H244,2) -> 158.29 | F244: =D244*E244 -> 47.487 | G244: E SICRO | H244: =VLOOKUP(A244,'EQUIP. SICRO'!$A$2:$K$523,10,0) -> 158.2909
A245: E9687 | B245: Caminhão carroceria com capacidade de 5 t - 115 kW | C245: CHI | D245: 0.7 | E245: 54.62 | F245: 38.234 | H245: =VLOOKUP(A245,'EQUIP. SICRO'!$A$2:$K$523,11,0) -> 54.6252
B247: MÃO DE OBRA | E247: Prod. Equipe: 4,40 Unid.
A248: 88315 | B248: SERRALHEIRO COM ENCARGOS COMPLEMENTARES | C248: h | D248: 1 | E248: =TRUNC(H248,2) -> 25.67 | F248: =D248*E248 -> 25.67 | G248: SINAPI | H248: =VLOOKUP(A248,'COMP. SINTÉTICO SINAPI'!$A$2:$E$7212,5,0) -> 25.67
A249: 88316 | B249: SERVENTE COM ENCARGOS COMPLEMENTARES | C249: h | D249: 1 | E249: 21.87 | F249: 21.87 | H249: =VLOOKUP(A249,'COMP. SINTÉTICO SINAPI'!$A$2:$E$7212,5,0) -> 21.87
B251: MATERIAL
A252: M0365 | B252: Cantoneira de ferro de 1" x 1" x 3/16" 1,73kg/m (0,15m) | C252: kg | D252: 0.2595 | E252: =TRUNC(H252,2) -> 11.02 | F252: =D252*E252 -> 2.85969 | G252: M SICRO | H252: =VLOOKUP(A252,'MATERIAL SICRO'!$A$2:$D$1656,4,0) -> 11.0251
A253: 21014 | B253: Tubo aço galvanizado com costura, classe leve, DN 65 mm ( 2 1/2"), E = 3,35 mm, 6,23* kg/m (NBR 5580) | C253: m | D253: 3.5 | E253: 100.49 | F253: 351.715 | G253: INS SINAPI | H253: =VLOOKUP(A253,'INSUMOS SINAPI'!$A$1:$E$5204,5,0) -> 100.49
B255: ATIVIDADES AUXILIARES
A256: 94975 | B256: Concreto FCK = 15MPa, Traço 1:3,4:3,5 (Em massa seca de cimento/areia média/brita 01) - Preparo manual. AF_05/2021 | C256: m³ | D256: =D257 -> 0.035343 | E256: =TRUNC(H256,2) -> 612.5 | F256: =D256*E256 -> 21.6475875 | G256: SINAPI | H256: =VLOOKUP(A256,'COMP. SINTÉTICO SINAPI'!A25:E7235,5,0) -> 612.5
A257: 4805750 | B257: Escavação em material de 1ª categoria | C257: m³ | D257: =D234 -> 0.035343 | E257: 43.62 | F257: 1.54166166 | G257: INS SICRO | H257: =VLOOKUP(A257,'COMP. SICRO'!$A$1:$D$6372,4,0) -> 43.62
D259: TOTAL SEM BDI | F259: =ROUND((((SUM(F244:F245))+(SUM(F248:F249)))/4.4)+(F252+F253+F256+F257),2) -> 408.05
A260: Obs. Esta composição foi adaptada apartir da referência da Tabela Sicro supracitada, os indices de equipamentos utilizados, bem como os indices para a mão de obra empregada rendem a produção de 4,4 unidades, os custos com veículos utilizados, Materiais e equipamentos foram coletados da tabela SICRO. Os custos da mão de Obra empregada, foram coletados da Tabela SINAPI. Foram removidos os custos com transportes, pois a execução dos serviços se dará somente em Porto Velho e seus Distritos.
A263: ='PLANILHA RESUMO'!B19 -> COMPOSIÇÃO 10 (SICRO 5213868) | B263: ='PLANILHA RESUMO'!C19 -> Fornecimento e implantação de suporte metálico duplo galvanizado para placa especial, classe leve, DN 65 mm ( 2 1/2"), E = 3,35 mm, 6,23 kg/m (NBR 5580), comprimento = 2x 4,00m
B264: Unidade: | C264: Unid.
A265: Código | B265: Componentes | C265: unid. | D265: consumo | E265: Preço Unit. | F265: Preço Total
B266: EQUIPAMENTO | E266: Prod. Equipe: 1,80 Unid.
A267: E9687 | B267: Caminhão carroceria com capacidade de 5 t - 115 kW | C267: CHP | D267: 0.3 | E267: =TRUNC(H267,2) -> 158.29 | F267: =D267*E267 -> 47.487 | G267: E SICRO | H267: =VLOOKUP(A267,'EQUIP. SICRO'!$A$2:$K$523,10,0) -> 158.2909
... 506 more rows

Sheet PLANILHA RESUMO
E1: PLANILHA ORÇAMENTÁRIA
E3: SERVIÇO: Contratação de empresa especializada na Prestação de Serviços de Sinalização Vertical e Horizontal de trânsito com fornecimento e implantação de materiais para a sinalização das vias urbanas do município de Porto Velho: Sede e demais distritos.
C4: PREFEITURA DO MUNICÍPIO DE PORTO VELHO
C5: Secretaria Municipal de Trânsito, Mobilidade e Transporte – SEMTRAN | E5: LOCAL: MUNICÍPIO DE PORTO VELHO
C6: Departamento de Trafego – DET | E6: DATA BASE DA TABELA SINAPI: 04/2023 / DATA BASE DA TABELA SICRO: 01/2023
E7: DATA REVISÃO:
A8: ITEM | B8: CÓDIGO | C8: DISCRIMINAÇÃO DE SERVIÇOS | G8: UNID | H8: QUANT. | I8: CUSTO UNITÁRIO | J8: TOTAL
L9: =H10+H11+H13+H14 -> 6500
A10: 1 | B10: COMPOSIÇÃO 1 (SICRO 5213440) | C10: Fornecimento e implantação de placa de regulamentação em aço diametro = 0,50m – película retrorrefletiva tipo I e I | G10: Und | H10: 1500 | I10: ='COMPOSIÇÃO'!F25 -> 162.36 | J10: =H10*I10 -> 243540
A11: 2 | B11: COMPOSIÇÃO 2 (SICRO 5213444) | C11: Fornecimento e implantação de placa de regulamentação em aço “R1”, lado=0,248m, com película retrorefletiva tipo I e I | G11: Und | H11: 3000 | I11: ='COMPOSIÇÃO'!F46 -> 232.04 | J11: 696120 | M11: =H11*0.15 -> 450
A12: 3 | B12: COMPOSIÇÃO 3 (SICRO 5213449) | C12: Fornecimento e implantação de placa de Regulamentação”R2” triangular em aço lado=0,80m, com película retrorefletiva tipo I e I | G12: Und | H12: 50 | I12: ='COMPOSIÇÃO'!F67 -> 198.42 | J12: 9921 | M12: 3.5 | N12: 3
A13: 4 | B13: COMPOSIÇÃO 4 (SICRO 5213464) | C13: Fornecimento e implantação de placa de advertência quadrada em aço lado=0,50m, com película retrorrefletiva tipo I e I | G13: Und | H13: 1000 | I13: ='COMPOSIÇÃO'!F88 -> 185.49 | J13: 185490 | M13: =H11+H14 -> 4000 | N13: =H12+H16 -> 200
A14: 5 | B14: COMPOSIÇÃO 5 (SICRO 5213473) | C14: Fornecimento e implantação de placa de Regulamentação retangular em aço com dimensões = 0,60 x 1,00m, com película retrorrefletiva tipo I e I | G14: Und | H14: 1000 | I14: ='COMPOSIÇÃO'!F109 -> 362.68 | J14: 362680
A15: 6 | B15: COMPOSIÇÃO 6 (SICRO 5213572) | C15: Fornecimento e implantação de placa retangular simples em dimensão a ser definida em projeto, em aço, com película retrorrefletiva tipo III + III | G15: m² | H15: 200 | I15: ='COMPOSIÇÃO'!F127 -> 807.05 | J15: 161410
A16: 7 | B16: COMPOSIÇÃO 7 (SICRO 5213472) | C16: Fornecimento e implantação de placa Indicativa retangular para parada de ônibus em aço com dimensões = 0,60 x 0,40m, A=0,24m², com película retrorrefletiva tipo I + I | G16: Und | H16: 150 | I16: ='COMPOSIÇÃO'!F148 -> 181.18 | J16: 27177
A17: 8 | B17: COMPOSIÇÃO 8 (SICRO 5213859) | C17: Fornecimento e implantação de suporte metálico galvanizado para placa simples, classe leve, DN 65 mm ( 2 1/2"), E = 3,35 mm, 6,23kg/m (NBR 5580), comprimento = 3,00m | G17: Und | H17: 5000 | I17: ='COMPOSIÇÃO'!F236 -> 355.28 | J17: 1776400 | L17: Tubo aço galvanizado com costura, classe leve, DN 65 mm ( 2 1/2"), E = 3,35 mm, * 6,23* kg/m (NBR 5580) | M17: =H17*0.1 -> 500
A18: 9 | B18: COMPOSIÇÃO 9 (SICRO 5213857) | C18: Fornecimento e implantação de suporte metálico galvanizado para duas placas, classe leve, DN 65 mm ( 2 1/2"), E = 3,35 mm, 6,23 kg/m (NBR 5580), comprimento = 3,50m | G18: Und | H18: 1500 | I18: ='COMPOSIÇÃO'!F259 -> 408.05 | J18: 612075
A19: 10 | B19: COMPOSIÇÃO 10 (SICRO 5213868) | C19: Fornecimento e implantação de suporte metálico duplo galvanizado para placa especial, classe leve, DN 65 mm ( 2 1/2"), E = 3,35 mm, 6,23 kg/m (NBR 5580), comprimento = 2x 4,00m | G19: Und | H19: 50 | I19: ='COMPOSIÇÃO'!F281 -> 924.33 | J19: 46216.5
A20: 11 | B20: COMPOSIÇÃO 11 (SICRO 5216111) | C20: Fornecimento e implantação de suporte para placa de sinalização em madeira de lei dimensões = 8x8cm com comprimento de 3 metros | G20: Und | H20: 150 | I20: ='COMPOSIÇÃO'!F305 -> 93.62 | J20: 14043
A21: 12 | B21: COMPOSIÇÃO 12 (SICRO 5216111 ) | C21: Fornecimento e implantação de suporte para placa de sinalização em madeira de lei dimensões = 8x8cm com comprimento de 3,5 metros | G21: Und | H21: 150 | I21: ='COMPOSIÇÃO'!F329 -> 101.05 | J21: 15157.5
A22: 13 | B22: COMPOSIÇÃO 13 (SICRO 5213364) | C22: Remoção de placa de sinalização | G22: Und | H22: 200 | I22: ='COMPOSIÇÃO'!F347 -> 20.08 | J22: 4016
A23: 14 | B23: COMPOSIÇÃO 14 (SICRO 5213413) | C23: Pintura de faixa com plástico a frio tricomponente à base de resinas metacrílicas por aspersão - espessura de 0,6 mm | G23: m² | H23: 15000 | I23: ='COMPOSIÇÃO'!F367 -> 69.41 | J23: 1041150 | M23: =H23*0.05 -> 750
A24: 15 | B24: COMPOSIÇÃO 15 (SICRO 5214003) | C24: Pintura de setas e zebrados – termoplástico por Aspersão – espessura de 1,5mm | G24: m² | H24: 3000 | I24: ='COMPOSIÇÃO'!F389 -> 64.87 | J24: 194610
A25: 16 | B25: COMPOSIÇÃO 16 (SICRO 5213409) | C25: Pintura de setas e zebrados – termoplástico por extrusão – espessura de 3,0mm | G25: m² | H25: 14000 | I25: ='COMPOSIÇÃO'!F411 -> 95.69 | J25: 1339660 | M25: =H25*0.2 -> 2800
A26: 17 | B26: COMPOSIÇÃO 17 (SICRO 5213401) | C26: Pintura de faixas em Resina Acrilica – espessura de 0,6mm | G26: m² | H26: 15000 | I26: ='COMPOSIÇÃO'!F434 -> 43.94 | J26: 659100
A27: 18 | B27: COMPOSIÇÃO 18 (SICRO 5213405) | C27: Pintura setas e zebrados Resina Acrílica – espessura de 0,6mm | G27: m² | H27: 10000 | I27: ='COMPOSIÇÃO'!F458 -> 60.43 | J27: 604300
A28: 19 | B28: COMPOSIÇÃO 19 (SICRO 5213361) | C28: Fornecimento e colocação de Tachão Refletivo monodirecional | G28: Und | H28: 5000 | I28: ='COMPOSIÇÃO'!F481 -> 76.38 | J28: 381900
A29: 20 | B29: COMPOSIÇÃO 20 (SICRO 5213362) | C29: Fornecimento e colocação de Tachão Refletivo bidirecional | G29: Und | H29: 6000 | I29: ='COMPOSIÇÃO'!F504 -> 78.34 | J29: 470040
A30: 21 | B30: COMPOSIÇÃO 21 (SICRO 5219631) | C30: Fornecimento e colocação de Tacha refletiva monodirecional | G30: Und | H30: 6000 | I30: ='COMPOSIÇÃO'!F527 -> 54.09 | J30: 324540
A31: 22 | B31: COMPOSIÇÃO 22 (SICRO 5219623) | C31: Fornecimento e colocação de Tacha refletiva bidirecional | G31: Und | H31: 1000 | I31: ='COMPOSIÇÃO'!F550 -> 53.35 | J31: 53350
A32: 23 | B32: COMPOSIÇÃO 23 (SICRO 5213830) | C32: Remoção de sinalização horizontal por fresagem (faixas divisórias de fluxo) | G32: m² | H32: 100 | I32: ='COMPOSIÇÃO'!F567 -> 3.77 | J32: 377
A33: 24 | B33: COMPOSIÇÃO 24 (SICRO 5213830) | C33: Remoção de sinalização horizontal por fresagem (faixas de pedestres) | G33: m² | H33: 100 | I33: ='COMPOSIÇÃO'!F584 -> 3.77 | J33: 377
A34: 25 | B34: COMPOSIÇÃO 25 | C34: Fornecimento e Implantação de Faixa Elevada Conforme Resolução 495 Contran | G34: m | H34: 100 | I34: ='COMPOSIÇÃO'!F629 -> 2161.34 | J34: 216134
A35: 26 | B35: COMPOSIÇÃO 26 | C35: Fornecimento e Implantação de Lombada Tipo A Conforme Resolução 600 Contran (3,70m H=min8cm – max10cm) | G35: m | H35: 360 | I35: ='COMPOSIÇÃO'!F674 -> 897.23 | J35: 323002.8
A36: 27 | B36: COMPOSIÇÃO 27 | C36: Fornecimento e Implantação de Lombada Tipo B Conforme Resolução 600 Contran (1,50m H=min6cm – max8cm) | G36: m | H36: 400 | I36: ='COMPOSIÇÃO'!F719 -> 633.27 | J36: 253308
A37: 28 | B37: COMPOSIÇÃO 28 | C37: Abertura de Canteiro Central para travessia de pedestres com execução de calçamento de 1,50x2,00 metross espessura de 7cm | G37: und | H37: 200 | I37: ='COMPOSIÇÃO'!F738 -> 639.64 | J37: 127928
A38: 29 | B38: COMPOSIÇÃO 29 | C38: Implantação de Canteiro Central, plantio de grama | G38: m² | H38: 200 | I38: ='COMPOSIÇÃO'!F753 -> 158.7 | J38: 31740
A39: 30 | B39: COMPOSIÇÃO 30 | C39: Implantação de Canteiro Central, enchimento em concreto | G39: m² | H39: 200 | I39: ='COMPOSIÇÃO'!F766 -> 114.38 | J39: 22876
A40: 31 | B40: COMPOSIÇÃO 31 | C40: Execução de meio fio com sarjeta | G40: m | H40: 400 | I40: ='COMPOSIÇÃO'!F789 -> 216.71 | J40: 86684
A41: 32 | B41: COMPOSIÇÃO 32 | C41: Construção de Rampa com Declividade de 8,33%, ESP: 7cm TIPO 1 (conforme projeto com abas) | G41: und | H41: 150 | I41: ='COMPOSIÇÃO'!F809 -> 933.19 | J41: 139978.5
A42: 33 | B42: COMPOSIÇÃO 33 | C42: Construção de Rampa com Declividade de 8,33%, ESP: 7cm TIPO 2 (conforme projeto sem abas calçadas até 3,50m) | G42: und | H42: 150 | I42: ='COMPOSIÇÃO'!F829 -> 1710.61 | J42: 256591.5
A43: 34 | B43: COMPOSIÇÃO 34 | C43: Remoção de Tachas | G43: und | H43: 150 | I43: ='COMPOSIÇÃO'!F843 -> 4.7 | J43: 705
A44: 35 | B44: COMPOSIÇÃO 35 | C44: Remoção de Tachões | G44: und | H44: 20 | I44: ='COMPOSIÇÃO'!F857 -> 5.41 | J44: 108.2
A45: 36 | B45: COMPOSIÇÃO 36 | C45: Conjunto de sinalização de obras | G45: und | H45: 20 | I45: ='COMPOSIÇÃO'!F874 -> 4341.97 | J45: 86839.4
G47: TOTAL SEM B.D.I. | J47: =SUM(J10:J45) -> 10769545.4
G48: B.D.I. UTILIZADO | I48: =BDI!E22/1 -> 0.2135 | J48: =J47*I48 -> 2299297.943
G49: TOTAL COM B.D.I. | J49: =J48+J47 -> 13068843.34

Sheet CURVA ABC
E1: PLANILHA ORÇAMENTÁRIA – CURVA ABC
E3: SERVIÇO: Contratação de empresa especializada na Prestação de Serviços de Sinalização Vertical e Horizontal de trânsito com fornecimento e implantação de materiais para a sinalização das vias urbanas do município de Porto Velho: Sede e demais distritos.
C4: PREFEITURA DO MUNICÍPIO DE PORTO VELHO
C5: Secretaria Municipal de Trânsito, Mobilidade e Transporte – SEMTRAN | E5: PESO "A" E "B" REPRESENTAM 80% DO CUSTO DA OBRA
C6: Departamento de Trafego – DET | E6: PESO "C" REPRESENTA 20% DO CUSTO DA OBRA
A8: ITEM | B8: CÓDIGO | C8: DISCRIMINAÇÃO DE SERVIÇOS | G8: UNID | H8: QUANT. | I8: CUSTO UNITÁRIO | J8: TOTAL | K8: PORCENTAGEM
K9: % | L9: % ACUMULADO
A10: ='PLANILHA RESUMO'!A17 -> 8 | B10: =VLOOKUP(A10,'PLANILHA RESUMO'!$A$10:$J$45,2,FALSE) -> COMPOSIÇÃO 8 (SICRO 5213859) | C10: =VLOOKUP(A10,'PLANILHA RESUMO'!$A$10:$J$45,3,FALSE) -> Fornecimento e implantação de suporte metálico galvanizado para placa simples, classe leve, DN 65 mm ( 2 1/2"), E = 3,35 mm, 6,23kg/m (NBR 5580), comprimento = 3,00m | G10: =VLOOKUP($A10,'PLANILHA RESUMO'!$A$10:$J$45,7,FALSE) -> Und | H10: =VLOOKUP($A10,'PLANILHA RESUMO'!$A$10:$J$45,8,FALSE) -> 5000 | I10: =VLOOKUP($A10,'PLANILHA RESUMO'!$A$10:$J$45,9,FALSE) -> 355.28 | J10: =H10*I10 -> 1776400 | K10: =J10/$J$47 -> 0.1649466095 | L10: =K10 -> 0.1649466095 | M10: PESO "A"
A11: ='PLANILHA RESUMO'!A25 -> 16 | B11: =VLOOKUP(A11,'PLANILHA RESUMO'!$A$10:$J$45,2,FALSE) -> COMPOSIÇÃO 16 (SICRO 5213409) | C11: =VLOOKUP(A11,'PLANILHA RESUMO'!$A$10:$J$45,3,FALSE) -> Pintura de setas e zebrados – termoplástico por extrusão – espessura de 3,0mm | G11: =VLOOKUP($A11,'PLANILHA RESUMO'!$A$10:$J$45,7,FALSE) -> m² | H11: =VLOOKUP($A11,'PLANILHA RESUMO'!$A$10:$J$45,8,FALSE) -> 14000 | I11: =VLOOKUP($A11,'PLANILHA RESUMO'!$A$10:$J$45,9,FALSE) -> 95.69 | J11: 1339660 | K11: 0.1243933658 | L11: =L10+K11 -> 0.2893399753
A12: ='PLANILHA RESUMO'!A18 -> 9 | B12: =VLOOKUP(A12,'PLANILHA RESUMO'!$A$10:$J$45,2,FALSE) -> COMPOSIÇÃO 9 (SICRO 5213857) | C12: =VLOOKUP(A12,'PLANILHA RESUMO'!$A$10:$J$45,3,FALSE) -> Fornecimento e implantação de suporte metálico galvanizado para duas placas, classe leve, DN 65 mm ( 2 1/2"), E = 3,35 mm, 6,23 kg/m (NBR 5580), comprimento = 3,50m | G12: =VLOOKUP($A12,'PLANILHA RESUMO'!$A$10:$J$45,7,FALSE) -> Und | H12: =VLOOKUP($A12,'PLANILHA RESUMO'!$A$10:$J$45,8,FALSE) -> 1500 | I12: =VLOOKUP($A12,'PLANILHA RESUMO'!$A$10:$J$45,9,FALSE) -> 408.05 | J12: 612075 | K12: 0.05683387527 | L12: 0.3461738506
A13: ='PLANILHA RESUMO'!A23 -> 14 | B13: =VLOOKUP(A13,'PLANILHA RESUMO'!$A$10:$J$45,2,FALSE) -> COMPOSIÇÃO 14 (SICRO 5213413) | C13: =VLOOKUP(A13,'PLANILHA RESUMO'!$A$10:$J$45,3,FALSE) -> Pintura de faixa com plástico a frio tricomponente à base de resinas metacrílicas por aspersão - espessura de 0,6 mm | G13: =VLOOKUP($A13,'PLANILHA RESUMO'!$A$10:$J$45,7,FALSE) -> m² | H13: =VLOOKUP($A13,'PLANILHA RESUMO'!$A$10:$J$45,8,FALSE) -> 15000 | I13: =VLOOKUP($A13,'PLANILHA RESUMO'!$A$10:$J$45,9,FALSE) -> 69.41 | J13: 1041150 | K13: 0.09667538985 | L13: 0.4428492404
A14: ='PLANILHA RESUMO'!A11 -> 2 | B14: =VLOOKUP(A14,'PLANILHA RESUMO'!$A$10:$J$45,2,FALSE) -> COMPOSIÇÃO 2 (SICRO 5213444) | C14: =VLOOKUP(A14,'PLANILHA RESUMO'!$A$10:$J$45,3,FALSE) -> Fornecimento e implantação de placa de regulamentação em aço “R1”, lado=0,248m, com película retrorefletiva tipo I e I | G14: =VLOOKUP($A14,'PLANILHA RESUMO'!$A$10:$J$45,7,FALSE) -> Und | H14: =VLOOKUP($A14,'PLANILHA RESUMO'!$A$10:$J$45,8,FALSE) -> 3000 | I14: =VLOOKUP($A14,'PLANILHA RESUMO'!$A$10:$J$45,9,FALSE) -> 232.04 | J14: 696120 | K14: 0.06463782585 | L14: 0.5074870663
A15: ='PLANILHA RESUMO'!A26 -> 17 | B15: =VLOOKUP(A15,'PLANILHA RESUMO'!$A$10:$J$45,2,FALSE) -> COMPOSIÇÃO 17 (SICRO 5213401) | C15: =VLOOKUP(A15,'PLANILHA RESUMO'!$A$10:$J$45,3,FALSE) -> Pintura de faixas em Resina Acrilica – espessura de 0,6mm | G15: =VLOOKUP($A15,'PLANILHA RESUMO'!$A$10:$J$45,7,FALSE) -> m² | H15: =VLOOKUP($A15,'PLANILHA RESUMO'!$A$10:$J$45,8,FALSE) -> 15000 | I15: =VLOOKUP($A15,'PLANILHA RESUMO'!$A$10:$J$45,9,FALSE) -> 43.94 | J15: 659100 | K15: 0.06120035485 | L15: 0.5686874211 | M15: PESO “B”
A16: ='PLANILHA RESUMO'!A27 -> 18 | B16: =VLOOKUP(A16,'PLANILHA RESUMO'!$A$10:$J$45,2,FALSE) -> COMPOSIÇÃO 18 (SICRO 5213405) | C16: =VLOOKUP(A16,'PLANILHA RESUMO'!$A$10:$J$45,3,FALSE) -> Pintura setas e zebrados Resina Acrílica – espessura de 0,6mm | G16: =VLOOKUP($A16,'PLANILHA RESUMO'!$A$10:$J$45,7,FALSE) -> m² | H16: =VLOOKUP($A16,'PLANILHA RESUMO'!$A$10:$J$45,8,FALSE) -> 10000 | I16: =VLOOKUP($A16,'PLANILHA RESUMO'!$A$10:$J$45,9,FALSE) -> 60.43 | J16: 604300 | K16: 0.05611193208 | L16: 0.6247993532
A17: ='PLANILHA RESUMO'!A29 -> 20 | B17: =VLOOKUP(A17,'PLANILHA RESUMO'!$A$10:$J$45,2,FALSE) -> COMPOSIÇÃO 20 (SICRO 5213362) | C17: =VLOOKUP(A17,'PLANILHA RESUMO'!$A$10:$J$45,3,FALSE) -> Fornecimento e colocação de Tachão Refletivo bidirecional | G17: =VLOOKUP($A17,'PLANILHA RESUMO'!$A$10:$J$45,7,FALSE) -> Und | H17: =VLOOKUP($A17,'PLANILHA RESUMO'!$A$10:$J$45,8,FALSE) -> 6000 | I17: =VLOOKUP($A17,'PLANILHA RESUMO'!$A$10:$J$45,9,FALSE) -> 78.34 | J17: 470040 | K17: 0.0436452963 | L17: 0.6684446495
A18: ='PLANILHA RESUMO'!A28 -> 19 | B18: =VLOOKUP(A18,'PLANILHA RESUMO'!$A$10:$J$45,2,FALSE) -> COMPOSIÇÃO 19 (SICRO 5213361) | C18: =VLOOKUP(A18,'PLANILHA RESUMO'!$A$10:$J$45,3,FALSE) -> Fornecimento e colocação de Tachão Refletivo monodirecional | G18: =VLOOKUP($A18,'PLANILHA RESUMO'!$A$10:$J$45,7,FALSE) -> Und | H18: =VLOOKUP($A18,'PLANILHA RESUMO'!$A$10:$J$45,8,FALSE) -> 5000 | I18: =VLOOKUP($A18,'PLANILHA RESUMO'!$A$10:$J$45,9,FALSE) -> 76.38 | J18: 381900 | K18: 0.03546110684 | L18: 0.7039057563
A19: ='PLANILHA RESUMO'!A14 -> 5 | B19: =VLOOKUP(A19,'PLANILHA RESUMO'!$A$10:$J$45,2,FALSE) -> COMPOSIÇÃO 5 (SICRO 5213473) | C19: =VLOOKUP(A19,'PLANILHA RESUMO'!$A$10:$J$45,3,FALSE) -> Fornecimento e implantação de placa de Regulamentação retangular em aço com dimensões = 0,60 x 1,00m, com película retrorrefletiva tipo I e I | G19: =VLOOKUP($A19,'PLANILHA RESUMO'!$A$10:$J$45,7,FALSE) -> Und | H19: =VLOOKUP($A19,'PLANILHA RESUMO'!$A$10:$J$45,8,FALSE) -> 1000 | I19: =VLOOKUP($A19,'PLANILHA RESUMO'!$A$10:$J$45,9,FALSE) -> 362.68 | J19: 362680 | K19: 0.03367644469 | L19: 0.737582201
A20: ='PLANILHA RESUMO'!A35 -> 26 | B20: =VLOOKUP(A20,'PLANILHA RESUMO'!$A$10:$J$45,2,FALSE) -> COMPOSIÇÃO 26 | C20: =VLOOKUP(A20,'PLANILHA RESUMO'!$A$10:$J$45,3,FALSE) -> Fornecimento e Implantação de Lombada Tipo A Conforme Resolução 600 Contran (3,70m H=min8cm – max10cm) | G20: =VLOOKUP($A20,'PLANILHA RESUMO'!$A$10:$J$45,7,FALSE) -> m | H20: =VLOOKUP($A20,'PLANILHA RESUMO'!$A$10:$J$45,8,FALSE) -> 360 | I20: =VLOOKUP($A20,'PLANILHA RESUMO'!$A$10:$J$45,9,FALSE) -> 897.23 | J20: 323002.8 | K20: 0.0299922409 | L20: 0.7675744419
A21: ='PLANILHA RESUMO'!A30 -> 21 | B21: =VLOOKUP(A21,'PLANILHA RESUMO'!$A$10:$J$45,2,FALSE) -> COMPOSIÇÃO 21 (SICRO 5219631) | C21: =VLOOKUP(A21,'PLANILHA RESUMO'!$A$10:$J$45,3,FALSE) -> Fornecimento e colocação de Tacha refletiva monodirecional | G21: =VLOOKUP($A21,'PLANILHA RESUMO'!$A$10:$J$45,7,FALSE) -> Und | H21: =VLOOKUP($A21,'PLANILHA RESUMO'!$A$10:$J$45,8,FALSE) -> 6000 | I21: =VLOOKUP($A21,'PLANILHA RESUMO'!$A$10:$J$45,9,FALSE) -> 54.09 | J21: 324540 | K21: 0.03013497673 | L21: 0.7977094186
A22: ='PLANILHA RESUMO'!A42 -> 33 | B22: =VLOOKUP(A22,'PLANILHA RESUMO'!$A$10:$J$45,2,FALSE) -> COMPOSIÇÃO 33 | C22: =VLOOKUP(A22,'PLANILHA RESUMO'!$A$10:$J$45,3,FALSE) -> Construção de Rampa com Declividade de 8,33%, ESP: 7cm TIPO 2 (conforme projeto sem abas calçadas até 3,50m) | G22: =VLOOKUP($A22,'PLANILHA RESUMO'!$A$10:$J$45,7,FALSE) -> und | H22: =VLOOKUP($A22,'PLANILHA RESUMO'!$A$10:$J$45,8,FALSE) -> 150 | I22: =VLOOKUP($A22,'PLANILHA RESUMO'!$A$10:$J$45,9,FALSE) -> 1710.61 | J22: 256591.5 | K22: 0.02382565749 | L22: 0.8215350761 | M22: PESO “C”
A23: ='PLANILHA RESUMO'!A36 -> 27 | B23: =VLOOKUP(A23,'PLANILHA RESUMO'!$A$10:$J$45,2,FALSE) -> COMPOSIÇÃO 27 | C23: =VLOOKUP(A23,'PLANILHA RESUMO'!$A$10:$J$45,3,FALSE) -> Fornecimento e Implantação de Lombada Tipo B Conforme Resolução 600 Contran (1,50m H=min6cm – max8cm) | G23: =VLOOKUP($A23,'PLANILHA RESUMO'!$A$10:$J$45,7,FALSE) -> m | H23: =VLOOKUP($A23,'PLANILHA RESUMO'!$A$10:$J$45,8,FALSE) -> 400 | I23: =VLOOKUP($A23,'PLANILHA RESUMO'!$A$10:$J$45,9,FALSE) -> 633.27 | J23: 253308 | K23: 0.02352076997 | L23: 0.8450558461
A24: ='PLANILHA RESUMO'!A10 -> 1 | B24: =VLOOKUP($A24,'PLANILHA RESUMO'!$A$10:$J$45,2,FALSE) -> COMPOSIÇÃO 1 (SICRO 5213440) | C24: =VLOOKUP($A24,'PLANILHA RESUMO'!$A$10:$J$45,3,FALSE) -> Fornecimento e implantação de placa de regulamentação em aço diametro = 0,50m – película retrorrefletiva tipo I e I | G24: =VLOOKUP($A24,'PLANILHA RESUMO'!$A$10:$J$45,7,FALSE) -> Und | H24: =VLOOKUP($A24,'PLANILHA RESUMO'!$A$10:$J$45,8,FALSE) -> 1500 | I24: =VLOOKUP($A24,'PLANILHA RESUMO'!$A$10:$J$45,9,FALSE) -> 162.36 | J24: 243540 | K24: 0.02261376789 | L24: 0.867669614
A25: ='PLANILHA RESUMO'!A34 -> 25 | B25: =VLOOKUP(A25,'PLANILHA RESUMO'!$A$10:$J$45,2,FALSE) -> COMPOSIÇÃO 25 | C25: =VLOOKUP(A25,'PLANILHA RESUMO'!$A$10:$J$45,3,FALSE) -> Fornecimento e Implantação de Faixa Elevada Conforme Resolução 495 Contran | G25: =VLOOKUP($A25,'PLANILHA RESUMO'!$A$10:$J$45,7,FALSE) -> m | H25: =VLOOKUP($A25,'PLANILHA RESUMO'!$A$10:$J$45,8,FALSE) -> 100 | I25: =VLOOKUP($A25,'PLANILHA RESUMO'!$A$10:$J$45,9,FALSE) -> 2161.34 | J25: 216134 | K25: 0.02006899938 | L25: 0.8877386134
A26: ='PLANILHA RESUMO'!A24 -> 15 | B26: =VLOOKUP(A26,'PLANILHA RESUMO'!$A$10:$J$45,2,FALSE) -> COMPOSIÇÃO 15 (SICRO 5214003) | C26: =VLOOKUP(A26,'PLANILHA RESUMO'!$A$10:$J$45,3,FALSE) -> Pintura de setas e zebrados – termoplástico por Aspersão – espessura de 1,5mm | G26: =VLOOKUP($A26,'PLANILHA RESUMO'!$A$10:$J$45,7,FALSE) -> m² | H26: =VLOOKUP($A26,'PLANILHA RESUMO'!$A$10:$J$45,8,FALSE) -> 3000 | I26: =VLOOKUP($A26,'PLANILHA RESUMO'!$A$10:$J$45,9,FALSE) -> 64.87 | J26: 194610 | K26: 0.01807040063 | L26: 0.905809014
A27: ='PLANILHA RESUMO'!A13 -> 4 | B27: =VLOOKUP(A27,'PLANILHA RESUMO'!$A$10:$J$45,2,FALSE) -> COMPOSIÇÃO 4 (SICRO 5213464) | C27: =VLOOKUP(A27,'PLANILHA RESUMO'!$A$10:$J$45,3,FALSE) -> Fornecimento e implantação de placa de advertência quadrada em aço lado=0,50m, com película retrorrefletiva tipo I e I | G27: =VLOOKUP($A27,'PLANILHA RESUMO'!$A$10:$J$45,7,FALSE) -> Und | H27: =VLOOKUP($A27,'PLANILHA RESUMO'!$A$10:$J$45,8,FALSE) -> 1000 | I27: =VLOOKUP($A27,'PLANILHA RESUMO'!$A$10:$J$45,9,FALSE) -> 185.49 | J27: 185490 | K27: 0.01722356823 | L27: 0.9230325822
A28: ='PLANILHA RESUMO'!A15 -> 6 | B28: =VLOOKUP(A28,'PLANILHA RESUMO'!$A$10:$J$45,2,FALSE) -> COMPOSIÇÃO 6 (SICRO 5213572) | C28: =VLOOKUP(A28,'PLANILHA RESUMO'!$A$10:$J$45,3,FALSE) -> Fornecimento e implantação de placa retangular simples em dimensão a ser definida em projeto, em aço, com película retrorrefletiva tipo III + III | G28: =VLOOKUP($A28,'PLANILHA RESUMO'!$A$10:$J$45,7,FALSE) -> m² | H28: =VLOOKUP($A28,'PLANILHA RESUMO'!$A$10:$J$45,8,FALSE) -> 200 | I28: =VLOOKUP($A28,'PLANILHA RESUMO'!$A$10:$J$45,9,FALSE) -> 807.05 | J28: 161410 | K28: 0.01498763355 | L28: 0.9380202158
A29: ='PLANILHA RESUMO'!A41 -> 32 | B29: =VLOOKUP(A29,'PLANILHA RESUMO'!$A$10:$J$45,2,FALSE) -> COMPOSIÇÃO 32 | C29: =VLOOKUP(A29,'PLANILHA RESUMO'!$A$10:$J$45,3,FALSE) -> Construção de Rampa com Declividade de 8,33%, ESP: 7cm TIPO 1 (conforme projeto com abas) | G29: =VLOOKUP($A29,'PLANILHA RESUMO'!$A$10:$J$45,7,FALSE) -> und | H29: =VLOOKUP($A29,'PLANILHA RESUMO'!$A$10:$J$45,8,FALSE) -> 150 | I29: =VLOOKUP($A29,'PLANILHA RESUMO'!$A$10:$J$45,9,FALSE) -> 933.19 | J29: 139978.5 | K29: 0.01299762384 | L29: 0.9510178396
A30: ='PLANILHA RESUMO'!A37 -> 28 | B30: =VLOOKUP(A30,'PLANILHA RESUMO'!$A$10:$J$45,2,FALSE) -> COMPOSIÇÃO 28 | C30: =VLOOKUP(A30,'PLANILHA RESUMO'!$A$10:$J$45,3,FALSE) -> Abertura de Canteiro Central para travessia de pedestres com execução de calçamento de 1,50x2,00 metross espessura de 7cm | G30: =VLOOKUP($A30,'PLANILHA RESUMO'!$A$10:$J$45,7,FALSE) -> und | H30: =VLOOKUP($A30,'PLANILHA RESUMO'!$A$10:$J$45,8,FALSE) -> 200 | I30: =VLOOKUP($A30,'PLANILHA RESUMO'!$A$10:$J$45,9,FALSE) -> 639.64 | J30: 127928 | K30: 0.01187868153 | L30: 0.9628965211
A31: ='PLANILHA RESUMO'!A40 -> 31 | B31: =VLOOKUP(A31,'PLANILHA RESUMO'!$A$10:$J$45,2,FALSE) -> COMPOSIÇÃO 31 | C31: =VLOOKUP(A31,'PLANILHA RESUMO'!$A$10:$J$45,3,FALSE) -> Execução de meio fio com sarjeta | G31: =VLOOKUP($A31,'PLANILHA RESUMO'!$A$10:$J$45,7,FALSE) -> m | H31: =VLOOKUP($A31,'PLANILHA RESUMO'!$A$10:$J$45,8,FALSE) -> 400 | I31: =VLOOKUP($A31,'PLANILHA RESUMO'!$A$10:$J$45,9,FALSE) -> 216.71 | J31: 86684 | K31: 0.008048993414 | L31: 0.9709455146
A32: ='PLANILHA RESUMO'!A45 -> 36 | B32: =VLOOKUP(A32,'PLANILHA RESUMO'!$A$10:$J$45,2,FALSE) -> COMPOSIÇÃO 36 | C32: =VLOOKUP(A32,'PLANILHA RESUMO'!$A$10:$J$45,3,FALSE) -> Conjunto de sinalização de obras | G32: =VLOOKUP($A32,'PLANILHA RESUMO'!$A$10:$J$45,7,FALSE) -> und | H32: =VLOOKUP($A32,'PLANILHA RESUMO'!$A$10:$J$45,8,FALSE) -> 20 | I32: =VLOOKUP($A32,'PLANILHA RESUMO'!$A$10:$J$45,9,FALSE) -> 4341.97 | J32: 86839.4 | K32: 0.008063422993 | L32: 0.9790089376
A33: ='PLANILHA RESUMO'!A19 -> 10 | B33: =VLOOKUP(A33,'PLANILHA RESUMO'!$A$10:$J$45,2,FALSE) -> COMPOSIÇÃO 10 (SICRO 5213868) | C33: =VLOOKUP(A33,'PLANILHA RESUMO'!$A$10:$J$45,3,FALSE) -> Fornecimento e implantação de suporte metálico duplo galvanizado para placa especial, classe leve, DN 65 mm ( 2 1/2"), E = 3,35 mm, 6,23 kg/m (NBR 5580), comprimento = 2x 4,00m | G33: =VLOOKUP($A33,'PLANILHA RESUMO'!$A$10:$J$45,7,FALSE) -> Und | H33: =VLOOKUP($A33,'PLANILHA RESUMO'!$A$10:$J$45,8,FALSE) -> 50 | I33: =VLOOKUP($A33,'PLANILHA RESUMO'!$A$10:$J$45,9,FALSE) -> 924.33 | J33: 46216.5 | K33: 0.004291406766 | L33: 0.9833003443
A34: ='PLANILHA RESUMO'!A31 -> 22 | B34: =VLOOKUP(A34,'PLANILHA RESUMO'!$A$10:$J$45,2,FALSE) -> COMPOSIÇÃO 22 (SICRO 5219623) | C34: =VLOOKUP(A34,'PLANILHA RESUMO'!$A$10:$J$45,3,FALSE) -> Fornecimento e colocação de Tacha refletiva bidirecional | G34: =VLOOKUP($A34,'PLANILHA RESUMO'!$A$10:$J$45,7,FALSE) -> Und | H34: =VLOOKUP($A34,'PLANILHA RESUMO'!$A$10:$J$45,8,FALSE) -> 1000 | I34: =VLOOKUP($A34,'PLANILHA RESUMO'!$A$10:$J$45,9,FALSE) -> 53.35 | J34: 53350 | K34: 0.004953783843 | L34: 0.9882541282
A35: ='PLANILHA RESUMO'!A38 -> 29 | B35: =VLOOKUP(A35,'PLANILHA RESUMO'!$A$10:$J$45,2,FALSE) -> COMPOSIÇÃO 29 | C35: =VLOOKUP(A35,'PLANILHA RESUMO'!$A$10:$J$45,3,FALSE) -> Implantação de Canteiro Central, plantio de grama | G35: =VLOOKUP($A35,'PLANILHA RESUMO'!$A$10:$J$45,7,FALSE) -> m² | H35: =VLOOKUP($A35,'PLANILHA RESUMO'!$A$10:$J$45,8,FALSE) -> 200 | I35: =VLOOKUP($A35,'PLANILHA RESUMO'!$A$10:$J$45,9,FALSE) -> 158.7 | J35: 31740 | K35: 0.00294719961 | L35: 0.9912013278
A36: ='PLANILHA RESUMO'!A16 -> 7 | B36: =VLOOKUP(A36,'PLANILHA RESUMO'!$A$10:$J$45,2,FALSE) -> COMPOSIÇÃO 7 (SICRO 5213472) | C36: =VLOOKUP(A36,'PLANILHA RESUMO'!$A$10:$J$45,3,FALSE) -> Fornecimento e implantação de placa Indicativa retangular para parada de ônibus em aço com dimensões = 0,60 x 0,40m, A=0,24m², com película retrorrefletiva tipo I + I | G36: =VLOOKUP($A36,'PLANILHA RESUMO'!$A$10:$J$45,7,FALSE) -> Und | H36: =VLOOKUP($A36,'PLANILHA RESUMO'!$A$10:$J$45,8,FALSE) -> 150 | I36: =VLOOKUP($A36,'PLANILHA RESUMO'!$A$10:$J$45,9,FALSE) -> 181.18 | J36: 27177 | K36: 0.002523504845 | L36: 0.9937248326
A37: ='PLANILHA RESUMO'!A39 -> 30 | B37: =VLOOKUP(A37,'PLANILHA RESUMO'!$A$10:$J$45,2,FALSE) -> COMPOSIÇÃO 30 | C37: =VLOOKUP(A37,'PLANILHA RESUMO'!$A$10:$J$45,3,FALSE) -> Implantação de Canteiro Central, enchimento em concreto | G37: =VLOOKUP($A37,'PLANILHA RESUMO'!$A$10:$J$45,7,FALSE) -> m² | H37: =VLOOKUP($A37,'PLANILHA RESUMO'!$A$10:$J$45,8,FALSE) -> 200 | I37: =VLOOKUP($A37,'PLANILHA RESUMO'!$A$10:$J$45,9,FALSE) -> 114.38 | J37: 22876 | K37: 0.002124137942 | L37: 0.9958489706
A38: ='PLANILHA RESUMO'!A21 -> 12 | B38: =VLOOKUP(A38,'PLANILHA RESUMO'!$A$10:$J$45,2,FALSE) -> COMPOSIÇÃO 12 (SICRO 5216111 ) | C38: =VLOOKUP(A38,'PLANILHA RESUMO'!$A$10:$J$45,3,FALSE) -> Fornecimento e implantação de suporte para placa de sinalização em madeira de lei dimensões = 8x8cm com comprimento de 3,5 metros | G38: =VLOOKUP($A38,'PLANILHA RESUMO'!$A$10:$J$45,7,FALSE) -> Und | H38: =VLOOKUP($A38,'PLANILHA RESUMO'!$A$10:$J$45,8,FALSE) -> 150 | I38: =VLOOKUP($A38,'PLANILHA RESUMO'!$A$10:$J$45,9,FALSE) -> 101.05 | J38: 15157.5 | K38: 0.001407441023 | L38: 0.9972564116
A39: ='PLANILHA RESUMO'!A20 -> 11 | B39: =VLOOKUP(A39,'PLANILHA RESUMO'!$A$10:$J$45,2,FALSE) -> COMPOSIÇÃO 11 (SICRO 5216111) | C39: =VLOOKUP(A39,'PLANILHA RESUMO'!$A$10:$J$45,3,FALSE) -> Fornecimento e implantação de suporte para placa de sinalização em madeira de lei dimensões = 8x8cm com comprimento de 3 metros | G39: =VLOOKUP($A39,'PLANILHA RESUMO'!$A$10:$J$45,7,FALSE) -> Und | H39: =VLOOKUP($A39,'PLANILHA RESUMO'!$A$10:$J$45,8,FALSE) -> 150 | I39: =VLOOKUP($A39,'PLANILHA RESUMO'!$A$10:$J$45,9,FALSE) -> 93.62 | J39: 14043 | K39: 0.001303954761 | L39: 0.9985603663
A40: ='PLANILHA RESUMO'!A12 -> 3 | B40: =VLOOKUP(A40,'PLANILHA RESUMO'!$A$10:$J$45,2,FALSE) -> COMPOSIÇÃO 3 (SICRO 5213449) | C40: =VLOOKUP(A40,'PLANILHA RESUMO'!$A$10:$J$45,3,FALSE) -> Fornecimento e implantação de placa de Regulamentação”R2” triangular em aço lado=0,80m, com película retrorefletiva tipo I e I | G40: =VLOOKUP($A40,'PLANILHA RESUMO'!$A$10:$J$45,7,FALSE) -> Und | H40: =VLOOKUP($A40,'PLANILHA RESUMO'!$A$10:$J$45,8,FALSE) -> 50 | I40: =VLOOKUP($A40,'PLANILHA RESUMO'!$A$10:$J$45,9,FALSE) -> 198.42 | J40: 9921 | K40: 0.0009212088005 | L40: 0.9994815751
A41: ='PLANILHA RESUMO'!A22 -> 13 | B41: =VLOOKUP(A41,'PLANILHA RESUMO'!$A$10:$J$45,2,FALSE) -> COMPOSIÇÃO 13 (SICRO 5213364) | C41: =VLOOKUP(A41,'PLANILHA RESUMO'!$A$10:$J$45,3,FALSE) -> Remoção de placa de sinalização | G41: =VLOOKUP($A41,'PLANILHA RESUMO'!$A$10:$J$45,7,FALSE) -> Und | H41: =VLOOKUP($A41,'PLANILHA RESUMO'!$A$10:$J$45,8,FALSE) -> 200 | I41: =VLOOKUP($A41,'PLANILHA RESUMO'!$A$10:$J$45,9,FALSE) -> 20.08 | J41: 4016 | K41: 0.0003729033911 | L41: 0.9998544785
A42: ='PLANILHA RESUMO'!A43 -> 34 | B42: =VLOOKUP(A42,'PLANILHA RESUMO'!$A$10:$J$45,2,FALSE) -> COMPOSIÇÃO 34 | C42: =VLOOKUP(A42,'PLANILHA RESUMO'!$A$10:$J$45,3,FALSE) -> Remoção de Tachas | G42: =VLOOKUP($A42,'PLANILHA RESUMO'!$A$10:$J$45,7,FALSE) -> und | H42: =VLOOKUP($A42,'PLANILHA RESUMO'!$A$10:$J$45,8,FALSE) -> 150 | I42: =VLOOKUP($A42,'PLANILHA RESUMO'!$A$10:$J$45,9,FALSE) -> 4.7 | J42: 705 | K42: 6.546237318e-05 | L42: 0.9999199409
A43: ='PLANILHA RESUMO'!A33 -> 24 | B43: =VLOOKUP(A43,'PLANILHA RESUMO'!$A$10:$J$45,2,FALSE) -> COMPOSIÇÃO 24 (SICRO 5213830) | C43: =VLOOKUP(A43,'PLANILHA RESUMO'!$A$10:$J$45,3,FALSE) -> Remoção de sinalização horizontal por fresagem (faixas de pedestres) | G43: =VLOOKUP($A43,'PLANILHA RESUMO'!$A$10:$J$45,7,FALSE) -> m² | H43: =VLOOKUP($A43,'PLANILHA RESUMO'!$A$10:$J$45,8,FALSE) -> 100 | I43: =VLOOKUP($A43,'PLANILHA RESUMO'!$A$10:$J$45,9,FALSE) -> 3.77 | J43: 377 | K43: 3.500612013e-05 | L43: 0.999954947
A44: ='PLANILHA RESUMO'!A32 -> 23 | B44: =VLOOKUP(A44,'PLANILHA RESUMO'!$A$10:$J$45,2,FALSE) -> COMPOSIÇÃO 23 (SICRO 5213830) | C44: =VLOOKUP(A44,'PLANILHA RESUMO'!$A$10:$J$45,3,FALSE) -> Remoção de sinalização horizontal por fresagem (faixas divisórias de fluxo) | G44: =VLOOKUP($A44,'PLANILHA RESUMO'!$A$10:$J$45,7,FALSE) -> m² | H44: =VLOOKUP($A44,'PLANILHA RESUMO'!$A$10:$J$45,8,FALSE) -> 100 | I44: =VLOOKUP($A44,'PLANILHA RESUMO'!$A$10:$J$45,9,FALSE) -> 3.77 | J44: 377 | K44: 3.500612013e-05 | L44: 0.9999899532
A45: ='PLANILHA RESUMO'!A44 -> 35 | B45: =VLOOKUP(A45,'PLANILHA RESUMO'!$A$10:$J$45,2,FALSE) -> COMPOSIÇÃO 35 | C45: =VLOOKUP(A45,'PLANILHA RESUMO'!$A$10:$J$45,3,FALSE) -> Remoção de Tachões | G45: =VLOOKUP($A45,'PLANILHA RESUMO'!$A$10:$J$45,7,FALSE) -> und | H45: =VLOOKUP($A45,'PLANILHA RESUMO'!$A$10:$J$45,8,FALSE) -> 20 | I45: =VLOOKUP($A45,'PLANILHA RESUMO'!$A$10:$J$45,9,FALSE) -> 5.41 | J45: 108.2 | K45: 1.004684933e-05 | L45: 1
G47: TOTAL SEM B.D.I. | J47: =SUM(J10:J45) -> 10769545.4 | K47: =SUM(K10:K44) -> 0.9999899532

Sheet MEMORIAL DE CALCULO
C1: PREFEITURA DO MUNICÍPIO DE PORTO VELHO
C4: SECRETARIA MUNICIPAL DE TRÂNSITO MOBILIDADE E TRANSPORTES – SEMTRAN
C6: DEPARTAMENTO DE TRÁFEGO – DET
A10: A | B10: Os índices de produção da mão de obra e utilização de equipamentos, foram estimados baseando-se no acompanhamento da execução destes elementos construtivos já realizados por esta SEMTRAN.
A11: B | B11: Conforme já mencionado, observou-se que devido ao fato de que, mesmo durante a execução dos serviços, as vias necessitam ser utilizadas isso se da principalmente pelo motivo de que o desvio das rotas de deslocamentos geram muito mais transtornos do que o simples estreitamento das faixas de rolamento. Dessa forma adotou-se, na grande maioria das obras, a metodologia de se executar as lombadas e faixas elevadas em meia pista, e após a cura do concreto, a execução da outro meia pista.
A12: C | B12: Para a execução de meia pista divide-se o trabalho em 02 etapas (02 expedientes, manhã e tarde):
A13: D | B13: A primeira etapa consiste na marcação, isolamento, sinalizações provisórias devidas, execução da sinalização vertical, corte do asfalto, remoção da camada asfaltica.
A14: E | B14: A segunda etapa consiste na execução da armadura, forma e concretagem, remoção de entulhos e limpeza da via.
A15: F | B15: Para dimensionamento dos índices levou-se em consideração a média de 9,00 metros de leito carroável para as vias onde serão executados os redutores de velocidade e faixas elevadas.
A16: G | B16: Em resumo gasta-se 02 dias de trabalho para execução de faixas elevadas e redutores de velocidade, adotando-se a jornada de trabalho de 08 horas diárias. (obs. neste prazo não esta incluso a cura do concreto).
A18: ='PLANILHA RESUMO'!B34 -> COMPOSIÇÃO 25 | B18: ='PLANILHA RESUMO'!C34 -> Fornecimento e Implantação de Faixa Elevada Conforme Resolução 495 Contran
A20: Unidade de medida em metro com Produção estimada de 4,5 metros a cada dia trabalhado, com previsão de 02 dias de trabalho
A22: Escavação em pavimento
C23: Ítem
C24: máquina de corte
C25: Hora Improdutiva | D25: Hora Produtiva | E25: Produção
C26: 1 | D26: 4 | E26: 9
A27: Índice | C27: =C26/E26 -> 0.1111111111 | D27: =D26/E26 -> 0.4444444444
C29: Ítem
C30: Pedreiro / Ajudante de Pedreiro
D31: Hora Produtiva | E31: Produção
D32: 4 | E32: 9
A33: Índice | D33: =D32/E32 -> 0.4444444444
C35: Escavação manual de valas
C36: largura | D36: profundidade | E36: comprimento | F36: quantidade | G36: índice (m³)
A37: Vala 01 | C37: 0.4 | D37: 0.25 | E37: 9 | F37: 2 | G37: =C37*D37*F37 -> 0.2
A38: Vala 02 | C38: 0.25 | D38: 0.25 | E38: 9 | F38: 2 | G38: 0.125
E39: TOTAL | G39: =G37+G38 -> 0.325
C42: Demolição de piso de alta resistência
C43: largura | D43: profundidade | E43: comprimento | F43: quantidade | G43: índice (m³)
A44: Calçaca 01 | C44: 0.3 | D44: 0.07 | E44: 4 | F44: 1 | G44: =C44*D44*E44 -> 0.084
A45: Calçada 02 | C45: 0.3 | D45: 0.07 | E45: 4 | F45: 1 | G45: 0.084
E46: TOTAL | G46: =(G45+G44)/9 -> 0.01866666667
A49: Bota Fora Material Escavado
C50: Ítem
C51: Caminhão trucado
C52: Hora Improdutiva | D52: Hora Produtiva | E52: Produção
C53: 6 | D53: 2 | E53: 9
A54: Índice | C54: =C53/E53 -> 0.6666666667 | D54: =D53/E53 -> 0.2222222222
C56: Ítem
C57: Ajudante de Pedreiro
D58: Hora Produtiva | E58: Produção
D59: 6.3 | E59: 9
A60: Índice | D60: =D59/E59 -> 0.7
C62: Ítem
C63: Motorista
D64: Hora Produtiva | E64: Produção
D65: 2 | E65: 9
A66: Índice | D66: =D65/E65 -> 0.2222222222
A68: Forma de Madeira
C70: Ítem
C71: Carpinteiro
D72: Hora Produtiva | E72: Produção
D73: 7.2 | E73: 9
A74: Índice | D74: =D73/E73 -> 0.8
C76: Ítem
C77: Ajudante de Carpinteiro
D78: Hora Produtiva | E78: Produção
D79: 7.2 | E79: 9
A80: Índice | D80: =D79/E79 -> 0.8
A82: Aço Ø 5.0mm
C84: Ítem
C85: AÇO CA 60 Ø 5.00mm
A86: AÇO | C86: Comprimento | D86: kg/m | E86: 0.1 | F86: Total m/m | G86: Total kg/m/N
A87: N1 | C87: =1.03*40 -> 41.2 | D87: 0.154 | E87: =C87*0.1 -> 4.12 | F87: =(C87+E87)/9 -> 5.035555556 | G87: =F87*D87 -> 0.7754755556
A88: N2 | C88: 54.6 | D88: 0.154 | E88: 5.46 | F88: 6.673333333 | G88: 1.027693333
A89: N6 | C89: =1.1*5*2 -> 11 | D89: 0.154 | E89: 1.1 | F89: =(C89+E89) -> 12.1 | G89: 1.8634
F90: Total Kg/m | G90: =G87+G88+G89 -> 3.666568889
C92: Armador
D93: Hora Produtiva | E93: Produção
D94: 4.5 | E94: 9
A95: Índice | D95: =D94/E94 -> 0.5
C97: Ítem
C98: Ajudante de Armador
D99: Hora Produtiva | E99: Produção
D100: 4.5 | E100: 9
A101: Índice | D101: =D100/E100 -> 0.5
A103: Aço Ø 8.0mm
C104: Ítem
C105: AÇO CA 50 Ø 8.00mm
A106: AÇO | C106: Comprimento | D106: kg/m | E106: 0.1 | F106: Total m/m | G106: Total kg/m/N
A107: N3 | C107: =45 -> 45 | D107: 0.429 | E107: =C107*0.1 -> 4.5 | F107: =(C107+E107) -> 49.5 | G107: =F107*D107 -> 21.2355
A108: N4 | C108: 25.5 | D108: =D107 -> 0.429 | E108: 2.55 | F108: 28.05 | G108: 12.03345
A109: N5 | C109: 17.5 | D109: 0.429 | E109: 1.75 | F109: 19.25 | G109: 8.25825
F110: Total Kg/m | G110: =G107+G108+G109 -> 41.5272
C112: Armador
D113: Hora Produtiva | E113: Produção
D114: 9 | E114: 9
A115: Índice | D115: =D114/E114 -> 1
C117: Ítem
C118: Ajudante de Armador
D119: Hora Produtiva | E119: Produção
D120: 9 | E120: 9
A121: Índice | D121: =D120/E120 -> 1
A124: Concreto
C125: Ítem
C126: Guindauto
C127: Hora Improdutiva | D127: Hora Produtiva | E127: Produção
C128: 5 | D128: 3 | E128: 9
A129: Índice | C129: =C128/E128 -> 0.5555555556 | D129: =D128/E128 -> 0.3333333333
C131: Ítem
C132: Concreto
C133: largura | D133: altura | E133: comprimento | F133: quantidade | G133: total (m³)
A134: Plataforma | C134: 4 | D134: 0.15 | E134: 9 | F134: 1 | G134: =F134*D134*C134 -> 0.6
A135: Rampas veículos | C135: 1.5 | D135: 0,00 a 0,15 | E135: 9 | F135: 2 | G135: =C135*0.15 -> 0.225
A136: Lajes Laterais | C136: 1 | D136: 0.07 | E136: 4 | F136: 2 | G136: =C136*D136*E136 -> 0.28
A137: Valas | C137: =0.4+0.4+0.25+0.25 -> 1.3 | D137: 0.25 | E137: 9 | F137: 4 | G137: =(C137*D137*E137)/9 -> 0.325
E138: TOTAL | G138: =G134+G135+G136+G137 -> 1.43
C141: Ítem
C142: Motorista
D143: Hora Produtiva | E143: Produção
D144: 3 | E144: 9
A145: Índice | D145: =D144/E144 -> 0.3333333333
A151: ='PLANILHA RESUMO'!B35 -> COMPOSIÇÃO 26 | B151: ='PLANILHA RESUMO'!C35 -> Fornecimento e Implantação de Lombada Tipo A Conforme Resolução 600 Contran (3,70m H=min8cm – max10cm)
A153: Unidade de medida em metro com Produção estimada de 4,5 metros a cada dia trabalhado, com previsão de 02 dias de trabalho
A155: Escavação em pavimento
C156: Ítem
C157: máquina de corte
C158: Hora Improdutiva | D158: Hora Produtiva | E158: Produção
C159: 1 | D159: 4 | E159: 9
A160: Índice | C160: =C159/E159 -> 0.1111111111 | D160: =D159/E159 -> 0.4444444444
C162: Ítem
C163: Pedreiro / Ajudante de Pedreiro
D164: Hora Produtiva | E164: Produção
D165: 3 | E165: 9
A166: Índice | D166: =D165/E165 -> 0.3333333333
C168: Escavação manual de valas
C169: largura | D169: profundidade | E169: comprimento | F169: quantidade | G169: índice (m³)
A170: Vala 01 | C170: 0.4 | D170: 0.25 | E170: 9 | F170: 1 | G170: =C170*D170*F170 -> 0.1
A171: Vala 02 | C171: 0.4 | D171: 0.25 | E171: 9 | F171: 1 | G171: 0.1
E172: TOTAL | G172: =G170+G171 -> 0.2
A175: Bota Fora Material Escavado
C176: Ítem
C177: Caminhão trucado
C178: Hora Improdutiva | D178: Hora Produtiva | E178: Produção
C179: 6 | D179: 2 | E179: 9
A180: Índice | C180: =C179/E179 -> 0.6666666667 | D180: =D179/E179 -> 0.2222222222
C182: Ítem
C183: Ajudante de Pedreiro
D184: Hora Produtiva | E184: Produção
D185: 6.3 | E185: 9
A186: Índice | D186: =D185/E185 -> 0.7
C188: Ítem
C189: Motorista
D190: Hora Produtiva | E190: Produção
D191: 2 | E191: 9
A192: Índice | D192: =D191/E191 -> 0.2222222222
A194: Forma de Madeira
C196: Ítem
C197: Carpinteiro
D198: Hora Produtiva | E198: Produção
D199: 2.25 | E199: 9
A200: Índice | D200: =D199/E199 -> 0.25
C202: Ítem
C203: Ajudante de Carpinteiro
D204: Hora Produtiva | E204: Produção
D205: 2.25 | E205: 9
A206: Índice | D206: =D205/E205 -> 0.25
A209: Aço Ø 5.0mm
C211: Ítem
C212: AÇO CA 60 Ø 5.00mm
A213: AÇO | C213: Comprimento | D213: kg/m | E213: 0.1 | F213: Total m/m | G213: Total kg/m/N
A214: N1 | C214: 11 | D214: 0.154 | E214: =C214*0.1 -> 1.1 | F214: =(C214+E214) -> 12.1 | G214: =F214*D214 -> 1.8634
F215: Total Kg/m | G215: =G214 -> 1.8634
C217: Armador
D218: Hora Produtiva | E218: Produção
D219: 2.25 | E219: 9
A220: Índice | D220: =D219/E219 -> 0.25
C222: Ítem
C223: Ajudante de Armador
D224: Hora Produtiva | E224: Produção
D225: 2.25 | E225: 9
A226: Índice | D226: =D225/E225 -> 0.25
A228: Aço Ø 8.0mm
C229: Ítem
C230: AÇO CA 50 Ø 8.00mm
A231: AÇO | C231: Comprimento | D231: kg/m | E231: 0.1 | F231: Total m/m | G231: Total kg/m/N
A232: N2 | C232: 18 | D232: 0.429 | E232: =C232*0.1 -> 1.8 | F232: =(C232+E232) -> 19.8 | G232: =F232*D232 -> 8.4942
A233: N3 | C233: =5*3.7 -> 18.5 | D233: =D232 -> 0.429 | E233: 1.85 | F233: 20.35 | G233: 8.73015
F234: Total Kg/m | G234: =G232+G233 -> 17.22435
C236: Armador
D237: Hora Produtiva | E237: Produção
D238: 9 | E238: 9
A239: Índice | D239: =D238/E238 -> 1
C241: Ítem
C242: Ajudante de Armador
D243: Hora Produtiva | E243: Produção
D244: 9 | E244: 9
A245: Índice | D245: =D244/E244 -> 1
A248: Concreto
C249: Ítem
C250: Guindauto
C251: Hora Improdutiva | D251: Hora Produtiva | E251: Produção
C252: 5 | D252: 3 | E252: 9
A253: Índice | C253: =C252/E252 -> 0.5555555556 | D253: =D252/E252 -> 0.3333333333
C255: Ítem
C256: Concreto
C257: área | D257: comprimento | E257: total (m³)
A258: Lombada inteira | C258: 0.4468 | D258: 1 | E258: =D258*C258 -> 0.4468
E259: TOTAL | G259: =E258 -> 0.4468
... 97 more rows

Sheet INSUMOS SINAPI
A1: 38605 | B1: ABERTURA PARA ENCAIXE DE CUBA OU LAVATORIO EM BANCADA DE MARMORE/ GRANITO OU OUTRO TIPO DE PEDRA NATURAL | C1: UN | D1: CR | E1: 209.29
A2: 11270 | B2: ABRACADEIRA DE LATAO PARA FIXACAO DE CABO PARA-RAIO, DIMENSOES 32 X 24 X 24 MM | C2: UN | D2: CR | E2: 3
A3: 412 | B3: ABRACADEIRA DE NYLON PARA AMARRACAO DE CABOS, COMPRIMENTO DE *230* X *7,6* MM | C3: UN | D3: CR | E3: 0.87
A4: 414 | B4: ABRACADEIRA DE NYLON PARA AMARRACAO DE CABOS, COMPRIMENTO DE 100 X 2,5 MM | C4: UN | D4: CR | E4: 0.05
A5: 410 | B5: ABRACADEIRA DE NYLON PARA AMARRACAO DE CABOS, COMPRIMENTO DE 150 X *3,6* MM | C5: UN | D5: CR | E5: 0.13
A6: 411 | B6: ABRACADEIRA DE NYLON PARA AMARRACAO DE CABOS, COMPRIMENTO DE 200 X *4,6* MM | C6: UN | D6: C | E6: 0.17
A7: 408 | B7: ABRACADEIRA DE NYLON PARA AMARRACAO DE CABOS, COMPRIMENTO DE 390 X *4,6* MM | C7: UN | D7: CR | E7: 0.84
A8: 39131 | B8: ABRACADEIRA EM ACO PARA AMARRACAO DE ELETRODUTOS, TIPO D, COM 1 1/2" E CUNHA DE FIXACAO | C8: UN | D8: CR | E8: 4.25
A9: 394 | B9: ABRACADEIRA EM ACO PARA AMARRACAO DE ELETRODUTOS, TIPO D, COM 1 1/2" E PARAFUSO DE FIXACAO | C9: UN | D9: CR | E9: 4.3
A10: 39130 | B10: ABRACADEIRA EM ACO PARA AMARRACAO DE ELETRODUTOS, TIPO D, COM 1 1/4" E CUNHA DE FIXACAO | C10: UN | D10: CR | E10: 3.88
A11: 395 | B11: ABRACADEIRA EM ACO PARA AMARRACAO DE ELETRODUTOS, TIPO D, COM 1 1/4" E PARAFUSO DE FIXACAO | C11: UN | D11: CR | E11: 4.14
A12: 39127 | B12: ABRACADEIRA EM ACO PARA AMARRACAO DE ELETRODUTOS, TIPO D, COM 1/2" E CUNHA DE FIXACAO | C12: UN | D12: CR | E12: 2.04
A13: 392 | B13: ABRACADEIRA EM ACO PARA AMARRACAO DE ELETRODUTOS, TIPO D, COM 1/2" E PARAFUSO DE FIXACAO | C13: UN | D13: CR | E13: 2.1
A14: 39129 | B14: ABRACADEIRA EM ACO PARA AMARRACAO DE ELETRODUTOS, TIPO D, COM 1" E CUNHA DE FIXACAO | C14: UN | D14: CR | E14: 2.39
A15: 393 | B15: ABRACADEIRA EM ACO PARA AMARRACAO DE ELETRODUTOS, TIPO D, COM 1" E PARAFUSO DE FIXACAO | C15: UN | D15: C | E15: 2.5
A16: 39133 | B16: ABRACADEIRA EM ACO PARA AMARRACAO DE ELETRODUTOS, TIPO D, COM 2 1/2" E CUNHA DE FIXACAO | C16: UN | D16: CR | E16: 5.58
A17: 397 | B17: ABRACADEIRA EM ACO PARA AMARRACAO DE ELETRODUTOS, TIPO D, COM 2 1/2" E PARAFUSO DE FIXACAO | C17: UN | D17: CR | E17: 6.17
A18: 39132 | B18: ABRACADEIRA EM ACO PARA AMARRACAO DE ELETRODUTOS, TIPO D, COM 2" E CUNHA DE FIXACAO | C18: UN | D18: CR | E18: 4.46
A19: 396 | B19: ABRACADEIRA EM ACO PARA AMARRACAO DE ELETRODUTOS, TIPO D, COM 2" E PARAFUSO DE FIXACAO | C19: UN | D19: CR | E19: 4.78
A20: 39135 | B20: ABRACADEIRA EM ACO PARA AMARRACAO DE ELETRODUTOS, TIPO D, COM 3 1/2" E CUNHA DE FIXACAO | C20: UN | D20: CR | E20: 8.93
A21: 39128 | B21: ABRACADEIRA EM ACO PARA AMARRACAO DE ELETRODUTOS, TIPO D, COM 3/4" E CUNHA DE FIXACAO | C21: UN | D21: CR | E21: 2.23
A22: 400 | B22: ABRACADEIRA EM ACO PARA AMARRACAO DE ELETRODUTOS, TIPO D, COM 3/4" E PARAFUSO DE FIXACAO | C22: UN | D22: CR | E22: 2.18
A23: 39125 | B23: ABRACADEIRA EM ACO PARA AMARRACAO DE ELETRODUTOS, TIPO D, COM 3/8" E PARAFUSO DE FIXACAO | C23: UN | D23: CR | E23: 2.23
A24: 39134 | B24: ABRACADEIRA EM ACO PARA AMARRACAO DE ELETRODUTOS, TIPO D, COM 3" E CUNHA DE FIXACAO | C24: UN | D24: CR | E24: 7.44
A25: 398 | B25: ABRACADEIRA EM ACO PARA AMARRACAO DE ELETRODUTOS, TIPO D, COM 3" E PARAFUSO DE FIXACAO | C25: UN | D25: CR | E25: 6.86
A26: 39126 | B26: ABRACADEIRA EM ACO PARA AMARRACAO DE ELETRODUTOS, TIPO D, COM 4" E CUNHA DE FIXACAO | C26: UN | D26: CR | E26: 10.05
A27: 399 | B27: ABRACADEIRA EM ACO PARA AMARRACAO DE ELETRODUTOS, TIPO D, COM 4" E PARAFUSO DE FIXACAO | C27: UN | D27: CR | E27: 8.85
A28: 39158 | B28: ABRACADEIRA EM ACO PARA AMARRACAO DE ELETRODUTOS, TIPO ECONOMICA (GOTA), COM 8" | C28: UN | D28: CR | E28: 23.77
A29: 39141 | B29: ABRACADEIRA EM ACO PARA AMARRACAO DE ELETRODUTOS, TIPO U SIMPLES, COM 1 1/2" | C29: UN | D29: CR | E29: 1.72
A30: 39140 | B30: ABRACADEIRA EM ACO PARA AMARRACAO DE ELETRODUTOS, TIPO U SIMPLES, COM 1 1/4" | C30: UN | D30: CR | E30: 1.56
A31: 39137 | B31: ABRACADEIRA EM ACO PARA AMARRACAO DE ELETRODUTOS, TIPO U SIMPLES, COM 1/2" | C31: UN | D31: CR | E31: 0.9
A32: 39139 | B32: ABRACADEIRA EM ACO PARA AMARRACAO DE ELETRODUTOS, TIPO U SIMPLES, COM 1" | C32: UN | D32: CR | E32: 1.3
A33: 39143 | B33: ABRACADEIRA EM ACO PARA AMARRACAO DE ELETRODUTOS, TIPO U SIMPLES, COM 2 1/2" | C33: UN | D33: CR | E33: 3.56
A34: 39142 | B34: ABRACADEIRA EM ACO PARA AMARRACAO DE ELETRODUTOS, TIPO U SIMPLES, COM 2" | C34: UN | D34: CR | E34: 2.55
A35: 39138 | B35: ABRACADEIRA EM ACO PARA AMARRACAO DE ELETRODUTOS, TIPO U SIMPLES, COM 3/4" | C35: UN | D35: CR | E35: 0.95
A36: 39136 | B36: ABRACADEIRA EM ACO PARA AMARRACAO DE ELETRODUTOS, TIPO U SIMPLES, COM 3/8" | C36: UN | D36: CR | E36: 0.63
A37: 39144 | B37: ABRACADEIRA EM ACO PARA AMARRACAO DE ELETRODUTOS, TIPO U SIMPLES, COM 3" | C37: UN | D37: CR | E37: 4.14
A38: 39145 | B38: ABRACADEIRA EM ACO PARA AMARRACAO DE ELETRODUTOS, TIPO U SIMPLES, COM 4" | C38: UN | D38: CR | E38: 6.83
A39: 12615 | B39: ABRACADEIRA PVC, PARA CALHA PLUVIAL, DIAMETRO ENTRE *80 E 100* MM, PARA DRENAGEM PLUVIAL PREDIAL | C39: UN | D39: CR | E39: 13.82
A40: 11927 | B40: ABRACADEIRA, GALVANIZADA/ZINCADA, ROSCA SEM FIM, PARAFUSO INOX, LARGURA FITA *12,6 A *14 MM, D = 2" A 2 1/2" | C40: UN | D40: CR | E40: 8.95
A41: 11928 | B41: ABRACADEIRA, GALVANIZADA/ZINCADA, ROSCA SEM FIM, PARAFUSO INOX, LARGURA FITA *12,6 A *14 MM, D = 3" A 3 3/4" | C41: UN | D41: CR | E41: 10.26
A42: 11929 | B42: ABRACADEIRA, GALVANIZADA/ZINCADA, ROSCA SEM FIM, PARAFUSO INOX, LARGURA FITA *12,6 A *14 MM, D = 4" A 4 3/4" | C42: UN | D42: CR | E42: 15.86
A43: 36801 | B43: ACABAMENTO DE METAL CROMADO PARA REGISTRO PEQUENO, DE PAREDE, 1/2 " OU 3/4 " | C43: UN | D43: CR | E43: 28.86
A44: 36246 | B44: ACABAMENTO SIMPLES/CONVENCIONAL PARA FORRO PVC, TIPO "U" OU "C", COR BRANCA, COMPRIMENTO 6 M | C44: M | D44: CR | E44: 5.9
A45: 37600 | B45: ACESSORIO DE LIGACAO NAO ELETRICO PARA CARGAS EXPLOSIVAS, TUBO DE 6 M | C45: UN | D45: AS | E45: 121.11
A46: 37599 | B46: ACESSORIO INICIADOR NAO ELETRICO, TUBO DE 6 M, TEMPO DE RETARDO DE *160* MS | C46: UN | D46: AS | E46: 112.73
A47: 1 | B47: ACETILENO (RECARGA DE GAS ACETILENO PARA CILINDRO DE CONJUNTO OXICORTE GRANDE) NAO INCLUI TROCA/MANUTENCAO DO CILINDRO | C47: KG | D47: AS | E47: 78.4
A48: 3 | B48: ACIDO CLORIDRICO / ACIDO MURIATICO, DILUICAO 10% A 12% PARA USO EM LIMPEZA | C48: L | D48: CR | E48: 14.58
A49: 43054 | B49: ACO CA-25, 10,0 MM, OU 12,5 MM, OU 16,0 MM, OU 20,0 MM, OU 25,0 MM, VERGALHAO | C49: KG | D49: CR | E49: 12.6
A50: 42402 | B50: ACO CA-25, 16,0 MM, BARRA DE TRANSFERENCIA | C50: KG | D50: CR | E50: 12.04
A51: 42403 | B51: ACO CA-25, 20,0 MM, BARRA DE TRANSFERENCIA | C51: KG | D51: CR | E51: 15.45
A52: 42404 | B52: ACO CA-25, 25,0 MM, BARRA DE TRANSFERENCIA | C52: KG | D52: CR | E52: 15.36
A53: 42405 | B53: ACO CA-25, 32,0 MM, BARRA DE TRANSFERENCIA | C53: KG | D53: CR | E53: 16.37
A54: 34341 | B54: ACO CA-25, 32,0 MM, VERGALHAO | C54: KG | D54: CR | E54: 14.2
A55: 43053 | B55: ACO CA-25, 6,3 MM OU 8,0 MM, VERGALHAO | C55: KG | D55: CR | E55: 11.26
A56: 43058 | B56: ACO CA-50, 10,0 MM, OU 12,5 MM, OU 16,0 MM, OU 20,0 MM, DOBRADO E CORTADO | C56: KG | D56: CR | E56: 11.67
A57: 34 | B57: ACO CA-50, 10,0 MM, VERGALHAO | C57: KG | D57: CR | E57: 11.73
A58: 43055 | B58: ACO CA-50, 12,5 MM OU 16,0 MM, VERGALHAO | C58: KG | D58: C | E58: 10.16
A59: 43056 | B59: ACO CA-50, 20,0 MM OU 25,0 MM, VERGALHAO | C59: KG | D59: CR | E59: 11.71
A60: 43057 | B60: ACO CA-50, 32,0 MM, VERGALHAO | C60: KG | D60: CR | E60: 12.87
A61: 34449 | B61: ACO CA-50, 6,3 MM, DOBRADO E CORTADO | C61: KG | D61: CR | E61: 13.76
A62: 32 | B62: ACO CA-50, 6,3 MM, VERGALHAO | C62: KG | D62: CR | E62: 12.37
A63: 33 | B63: ACO CA-50, 8,0 MM, VERGALHAO | C63: KG | D63: CR | E63: 12.44
A64: 43061 | B64: ACO CA-60, 4,2 MM OU 5,0 MM, DOBRADO E CORTADO | C64: KG | D64: CR | E64: 11.63
A65: 43059 | B65: ACO CA-60, 4,2 MM, OU 5,0 MM, OU 6,0 MM, OU 7,0 MM, VERGALHAO | C65: KG | D65: CR | E65: 11.1
A66: 43062 | B66: ACO CA-60, 6,0 MM OU 7,0 MM, DOBRADO E CORTADO | C66: KG | D66: CR | E66: 12.3
A67: 43060 | B67: ACO CA-60, 8,0 MM OU 9,5 MM, VERGALHAO | C67: KG | D67: CR | E67: 9.67
A68: 40410 | B68: ACOPLAMENTO RIGIDO EM FERRO FUNDIDO PARA SISTEMA DE TUBULACAO RANHURADA, DN 50 MM (2") | C68: UN | D68: AS | E68: 23.71
A69: 40411 | B69: ACOPLAMENTO RIGIDO EM FERRO FUNDIDO PARA SISTEMA DE TUBULACAO RANHURADA, DN 65 MM (2 1/2") | C69: UN | D69: AS | E69: 25.73
A70: 40412 | B70: ACOPLAMENTO RIGIDO EM FERRO FUNDIDO PARA SISTEMA DE TUBULACAO RANHURADA, DN 80 MM (3") | C70: UN | D70: AS | E70: 28.88
A71: 44254 | B71: ADAPTADOR CPVC, ROSCAVEL, COM FLANGES E ANEL DE VEDACAO, 15 MM, CAIXA D'AGUA PARA AGUA QUENTE | C71: UN | D71: AS | E71: 24.94
A72: 44255 | B72: ADAPTADOR CPVC, ROSCAVEL, COM FLANGES E ANEL DE VEDACAO, 22 MM, CAIXA D'AGUA PARA AGUA QUENTE | C72: UN | D72: AS | E72: 27.64
A73: 44256 | B73: ADAPTADOR CPVC, ROSCAVEL, COM FLANGES E ANEL DE VEDACAO, 28 MM, CAIXA D'AGUA PARA AGUA QUENTE | C73: UN | D73: AS | E73: 31.22
A74: 44257 | B74: ADAPTADOR CPVC, ROSCAVEL, COM FLANGES E ANEL DE VEDACAO, 35 MM, CAIXA D'AGUA PARA AGUA QUENTE | C74: UN | D74: AS | E74: 49.39
A75: 44258 | B75: ADAPTADOR CPVC, ROSCAVEL, COM FLANGES E ANEL DE VEDACAO, 42 MM, CAIXA D'AGUA PARA AGUA QUENTE | C75: UN | D75: AS | E75: 56.45
A76: 44259 | B76: ADAPTADOR CPVC, ROSCAVEL, COM FLANGES E ANEL DE VEDACAO, 54 MM, CAIXA D'AGUA PARA AGUA QUENTE | C76: UN | D76: AS | E76: 77.48
A77: 55 | B77: ADAPTADOR DE COMPRESSAO EM POLIPROPILENO (PP), PARA TUBO EM PEAD, 20 MM X 1/2", PARA LIGACAO PREDIAL DE AGUA (NTS 179) | C77: UN | D77: AS | E77: 4.52
A78: 61 | B78: ADAPTADOR DE COMPRESSAO EM POLIPROPILENO (PP), PARA TUBO EM PEAD, 20 MM X 3/4", PARA LIGACAO PREDIAL DE AGUA (NTS 179) | C78: UN | D78: AS | E78: 4.27
A79: 62 | B79: ADAPTADOR DE COMPRESSAO EM POLIPROPILENO (PP), PARA TUBO EM PEAD, 32 MM X 1", PARA LIGACAO PREDIAL DE AGUA (NTS 179) | C79: UN | D79: AS | E79: 8.86
A80: 103 | B80: ADAPTADOR PVC SOLDAVEL CURTO COM BOLSA E ROSCA, 110 MM X 4", PARA AGUA FRIA | C80: UN | D80: CR | E80: 52.08
A81: 107 | B81: ADAPTADOR PVC SOLDAVEL CURTO COM BOLSA E ROSCA, 20 MM X 1/2", PARA AGUA FRIA | C81: UN | D81: CR | E81: 0.98
A82: 65 | B82: ADAPTADOR PVC SOLDAVEL CURTO COM BOLSA E ROSCA, 25 MM X 3/4", PARA AGUA FRIA | C82: UN | D82: CR | E82: 1.07
A83: 108 | B83: ADAPTADOR PVC SOLDAVEL CURTO COM BOLSA E ROSCA, 32 MM X 1", PARA AGUA FRIA | C83: UN | D83: CR | E83: 2.16
A84: 110 | B84: ADAPTADOR PVC SOLDAVEL CURTO COM BOLSA E ROSCA, 40 MM X 1 1/2", PARA AGUA FRIA | C84: UN | D84: CR | E84: 7.49
A85: 109 | B85: ADAPTADOR PVC SOLDAVEL CURTO COM BOLSA E ROSCA, 40 MM X 1 1/4", PARA AGUA FRIA | C85: UN | D85: CR | E85: 4.46
A86: 111 | B86: ADAPTADOR PVC SOLDAVEL CURTO COM BOLSA E ROSCA, 50 MM X 1 1/4", PARA AGUA FRIA | C86: UN | D86: CR | E86: 10.14
A87: 112 | B87: ADAPTADOR PVC SOLDAVEL CURTO COM BOLSA E ROSCA, 50 MM X1 1/2", PARA AGUA FRIA | C87: UN | D87: CR | E87: 5.37
A88: 113 | B88: ADAPTADOR PVC SOLDAVEL CURTO COM BOLSA E ROSCA, 60 MM X 2", PARA AGUA FRIA | C88: UN | D88: CR | E88: 13.45
A89: 104 | B89: ADAPTADOR PVC SOLDAVEL CURTO COM BOLSA E ROSCA, 75 MM X 2 1/2", PARA AGUA FRIA | C89: UN | D89: CR | E89: 23.41
A90: 102 | B90: ADAPTADOR PVC SOLDAVEL CURTO COM BOLSA E ROSCA, 85 MM X 3", PARA AGUA FRIA | C90: UN | D90: CR | E90: 32.27
A91: 95 | B91: ADAPTADOR PVC SOLDAVEL, COM FLANGE E ANEL DE VEDACAO, 20 MM X 1/2", PARA CAIXA D'AGUA | C91: UN | D91: CR | E91: 13.64
A92: 96 | B92: ADAPTADOR PVC SOLDAVEL, COM FLANGE E ANEL DE VEDACAO, 25 MM X 3/4", PARA CAIXA D'AGUA | C92: UN | D92: CR | E92: 14.83
A93: 97 | B93: ADAPTADOR PVC SOLDAVEL, COM FLANGE E ANEL DE VEDACAO, 32 MM X 1", PARA CAIXA D'AGUA | C93: UN | D93: CR | E93: 22.32
A94: 98 | B94: ADAPTADOR PVC SOLDAVEL, COM FLANGE E ANEL DE VEDACAO, 40 MM X 1 1/4", PARA CAIXA D'AGUA | C94: UN | D94: CR | E94: 33.41
A95: 99 | B95: ADAPTADOR PVC SOLDAVEL, COM FLANGE E ANEL DE VEDACAO, 50 MM X 1 1/2", PARA CAIXA D'AGUA | C95: UN | D95: CR | E95: 31.57
A96: 100 | B96: ADAPTADOR PVC SOLDAVEL, COM FLANGES E ANEL DE VEDACAO, 60 MM X 2", PARA CAIXA D' AGUA | C96: UN | D96: CR | E96: 55.16
A97: 75 | B97: ADAPTADOR PVC SOLDAVEL, COM FLANGES LIVRES, 110 MM X 4", PARA CAIXA D' AGUA | C97: UN | D97: CR | E97: 321.6
A98: 83 | B98: ADAPTADOR PVC SOLDAVEL, COM FLANGES LIVRES, 75 MM X 2 1/2", PARA CAIXA D' AGUA | C98: UN | D98: CR | E98: 257.11
A99: 74 | B99: ADAPTADOR PVC SOLDAVEL, COM FLANGES LIVRES, 85 MM X 3", PARA CAIXA D' AGUA | C99: UN | D99: CR | E99: 367.6
A100: 106 | B100: ADAPTADOR PVC SOLDAVEL, LONGO, COM FLANGE LIVRE, 110 MM X 4", PARA CAIXA D' AGUA | C100: UN | D100: CR | E100: 464.84
A101: 88 | B101: ADAPTADOR PVC SOLDAVEL, LONGO, COM FLANGE LIVRE, 32 MM X 1", PARA CAIXA D' AGUA | C101: UN | D101: CR | E101: 13.06
A102: 82 | B102: ADAPTADOR PVC SOLDAVEL, LONGO, COM FLANGE LIVRE, 75 MM X 2 1/2", PARA CAIXA D' AGUA | C102: UN | D102: CR | E102: 244.62
A103: 105 | B103: ADAPTADOR PVC SOLDAVEL, LONGO, COM FLANGE LIVRE, 85 MM X 3", PARA CAIXA D' AGUA | C103: UN | D103: CR | E103: 346.62
A104: 60 | B104: ADAPTADOR PVC, COM REGISTRO, PARA PEAD, 20 MM X 3/4", PARA LIGACAO PREDIAL DE AGUA | C104: UN | D104: AS | E104: 5.86
A105: 72 | B105: ADAPTADOR PVC, ROSCAVEL, COM FLANGES E ANEL DE VEDACAO, 1 1/2", PARA CAIXA D'AGUA | C105: UN | D105: CR | E105: 60.55
A106: 67 | B106: ADAPTADOR PVC, ROSCAVEL, COM FLANGES E ANEL DE VEDACAO, 1/2", PARA CAIXA D' AGUA | C106: UN | D106: CR | E106: 19.58
A107: 71 | B107: ADAPTADOR PVC, ROSCAVEL, COM FLANGES E ANEL DE VEDACAO, 1", PARA CAIXA D' AGUA | C107: UN | D107: CR | E107: 37.4
A108: 73 | B108: ADAPTADOR PVC, ROSCAVEL, COM FLANGES E ANEL DE VEDACAO, 3/4", PARA CAIXA D' AGUA | C108: UN | D108: CR | E108: 18.73
A109: 37997 | B109: ADAPTADOR, CPVC, SOLDAVEL, 15 MM, PARA AGUA QUENTE | C109: UN | D109: AS | E109: 14.86
A110: 37998 | B110: ADAPTADOR, CPVC, SOLDAVEL, 22 MM, PARA AGUA QUENTE | C110: UN | D110: AS | E110: 19.89
A111: 10899 | B111: ADAPTADOR, EM LATAO, ENGATE RAPIDO 2 1/2" X ROSCA INTERNA 5 FIOS 2 1/2", PARA INSTALACAO PREDIAL DE COMBATE A INCENDIO | C111: UN | D111: AS | E111: 129.23
A112: 10900 | B112: ADAPTADOR, EM LATAO, ENGATE RAPIDO1 1/2" X ROSCA INTERNA 5 FIOS 2 1/2", PARA INSTALACAO PREDIAL DE COMBATE A INCENDIO | C112: UN | D112: AS | E112: 101.14
A113: 46 | B113: ADAPTADOR, PVC PBA, BOLSA/ROSCA, JE, DN 75 / DE 85 MM | C113: UN | D113: AS | E113: 53.77
A114: 47 | B114: ADAPTADOR, PVC PBA, BOLSA/ROSCA, JE, DN 100 / DE 110 MM | C114: UN | D114: AS | E114: 91.94
A115: 48 | B115: ADAPTADOR, PVC PBA, BOLSA/ROSCA, JE, DN 50 / DE 60 MM | C115: UN | D115: AS | E115: 23.98
A116: 52 | B116: ADAPTADOR, PVC PBA, PONTA/ROSCA, JE, DN 50 / DE 60 MM | C116: UN | D116: AS | E116: 18.22
A117: 43 | B117: ADAPTADOR, PVC PBA, PONTA/ROSCA, JE, DN 75 / DE 85 MM | C117: UN | D117: AS | E117: 61.49
A118: 39719 | B118: ADESIVO / COLA DE CONTATO LIQUIDO, A BASE DE RESINAS, PARA COLAGEM DE ESPUMA PARA ISOLAMENTO TERMICO FLEXIVEL | C118: L | D118: CR | E118: 167.13
A119: 3410 | B119: ADESIVO / COLA PARA EPS (ISOPOR) E OUTROS MATERIAIS | C119: KG | D119: CR | E119: 37.59
A120: 4791 | B120: ADESIVO ACRILICO DE BASE AQUOSA / COLA DE CONTATO | C120: KG | D120: CR | E120: 34.72
A121: 157 | B121: ADESIVO ESTRUTURAL A BASE DE RESINA EPOXI PARA INJECAO EM TRINCAS, BICOMPONENTE, BAIXA VISCOSIDADE | C121: KG | D121: CR | E121: 196.08
A122: 156 | B122: ADESIVO ESTRUTURAL A BASE DE RESINA EPOXI, BICOMPONENTE, FLUIDO | C122: KG | D122: CR | E122: 69.82
A123: 131 | B123: ADESIVO ESTRUTURAL A BASE DE RESINA EPOXI, BICOMPONENTE, PASTOSO (TIXOTROPICO) | C123: KG | D123: CR | E123: 59.7
A124: 21114 | B124: ADESIVO PARA TUBOS CPVC, *75* G | C124: UN | D124: CR | E124: 32.94
A125: 119 | B125: ADESIVO PLASTICO PARA PVC, BISNAGA COM 75 GR | C125: UN | D125: C | E125: 8.35
A126: 122 | B126: ADESIVO PLASTICO PARA PVC, FRASCO COM *850* GR | C126: UN | D126: CR | E126: 64.24
A127: 20080 | B127: ADESIVO PLASTICO PARA PVC, FRASCO COM 175 GR | C127: UN | D127: CR | E127: 20.97
A128: 124 | B128: ADITIVO ACELERADOR DE PEGA E ENDURECIMENTO PARA ARGAMASSAS E CONCRETOS, LIQUIDO E ISENTO DE CLORETOS | C128: L | D128: CR | E128: 23.02
A129: 7334 | B129: ADITIVO ADESIVO LIQUIDO PARA ARGAMASSAS DE REVESTIMENTOS CIMENTICIOS | C129: L | D129: CR | E129: 17.01
A130: 123 | B130: ADITIVO IMPERMEABILIZANTE DE PEGA NORMAL PARA ARGAMASSAS E CONCRETOS SEM ARMACAO, LIQUIDO E ISENTO DE CLORETOS | C130: L | D130: C | E130: 9.42
A131: 127 | B131: ADITIVO IMPERMEABILIZANTE DE PEGA ULTRARRAPIDA, LIQUIDO E ISENTO DE CLORETOS | C131: L | D131: CR | E131: 22.49
A132: 41373 | B132: ADITIVO LIQUIDO IMPERMEABILIZANTE CRISTALIZANTE | C132: L | D132: CR | E132: 31.33
A133: 133 | B133: ADITIVO LIQUIDO INCORPORADOR DE AR PARA CONCRETO E ARGAMASSA, LIQUIDO E ISENTO DE CLORETOS | C133: L | D133: CR | E133: 9.34
A134: 43617 | B134: ADITIVO PLASTIFICANTE E ESTABILIZADOR PARA ARGAMASSAS DE ASSENTAMENTO E REBOCO, LIQUIDO E ISENTO DE CLORETOS | C134: L | D134: CR | E134: 10.43
A135: 132 | B135: ADITIVO PLASTIFICANTE RETARDADOR DE PEGA E REDUTOR DE AGUA PARA CONCRETO, LIQUIDO E ISENTO DE CLORETOS | C135: L | D135: CR | E135: 9.68
A136: 43618 | B136: ADITIVO SUPERPLASTIFICANTE DE PEGA NORMAL PARA CONCRETO, LIQUIDO E ISENTO DE CLORETOS | C136: KG | D136: CR | E136: 24.38
A137: 37476 | B137: ADUELA/ GALERIA PRE-MOLDADA DE CONCRETO ARMADO, SECAO QUADRADA INTERNA DE 1,50 X 1,50 M (L X A), MISULA DE 20 X 20 CM, C = 1,00 M, ESPESSURA MIN = 15 CM, TB-45 E FCK DO CONCRETO = 30 MPA | C137: UN | D137: CR | E137: 3061.51
A138: 37478 | B138: ADUELA/ GALERIA PRE-MOLDADA DE CONCRETO ARMADO, SECAO RETANGULAR INTERNA DE 2,00 X 2,00 M (L X A), MISULA DE 20 X 20 CM, C = 1,00 M, ESPESSURA MIN = 15 CM, TB-45 E FCK DO CONCRETO = 30 MPA | C138: UN | D138: CR | E138: 3834.62
A139: 37477 | B139: ADUELA/ GALERIA PRE-MOLDADA DE CONCRETO ARMADO, SECAO RETANGULAR INTERNA DE 2,50 X 2,50 M (L X A), MISULA DE 20 X 20 CM, C = 1,00 M, ESPESSURA MIN = 15 CM, TB-45 E FCK DO CONCRETO = 30 MPA | C139: UN | D139: CR | E139: 5195.29
A140: 37479 | B140: ADUELA/ GALERIA PRE-MOLDADA DE CONCRETO ARMADO, SECAO RETANGULAR INTERNA DE 3,00 X 3,00 M (L X A), MISULA DE 20 X 20 CM, C = 1.00 M, ESPESSURA MIN = 20 CM, TB-45 E FCK DO CONCRETO = 30 MPA | C140: UN | D140: CR | E140: 6161.68
A141: 4319 | B141: AFASTADOR PARA TELHA DE FIBROCIMENTO CANALETE 90 OU KALHETAO | C141: UN | D141: CR | E141: 1.68
A142: 42409 | B142: AGENTE DE CURA, PROTETOR DA EVAPORACAO DA AGUA DE HIDRATACAO DO CONCRETO | C142: KG | D142: CR | E142: 15.35
A143: 40553 | B143: AGREGADO RECICLADO, TIPO RACHAO RECICLADO CINZA, CLASSE A | C143: M3 | D143: AS | E143: 48.5
A144: 6114 | B144: AJUDANTE DE ARMADOR (HORISTA) | C144: H | D144: CR | E144: 14.97
A145: 40912 | B145: AJUDANTE DE ARMADOR (MENSALISTA) | C145: MES | D145: CR | E145: 2601.52
A146: 247 | B146: AJUDANTE DE ELETRICISTA (HORISTA) | C146: H | D146: CR | E146: 16.43
A147: 40919 | B147: AJUDANTE DE ELETRICISTA (MENSALISTA) | C147: MES | D147: CR | E147: 2856.78
A148: 40984 | B148: AJUDANTE DE ESTRUTURAS METALICAS (MENSALISTA) | C148: MES | D148: CR | E148: 2839.54
A149: 44499 | B149: AJUDANTE DE ESTRUTURAS METALICAS HORISTA | C149: H | D149: CR | E149: 16.35
A150: 248 | B150: AJUDANTE DE OPERACAO EM GERAL (HORISTA) | C150: H | D150: CR | E150: 16.43
A151: 41086 | B151: AJUDANTE DE OPERACAO EM GERAL (MENSALISTA) | C151: MES | D151: CR | E151: 2855
A152: 34466 | B152: AJUDANTE DE PINTOR (HORISTA) | C152: H | D152: CR | E152: 16.43
A153: 41083 | B153: AJUDANTE DE PINTOR (MENSALISTA) | C153: MES | D153: CR | E153: 2855
A154: 252 | B154: AJUDANTE DE SERRALHEIRO (HORISTA) | C154: H | D154: CR | E154: 16.43
A155: 40909 | B155: AJUDANTE DE SERRALHEIRO (MENSALISTA) | C155: MES | D155: CR | E155: 2855
A156: 242 | B156: AJUDANTE ESPECIALIZADO (HORISTA) | C156: H | D156: CR | E156: 16.43
A157: 41085 | B157: AJUDANTE ESPECIALIZADO (MENSALISTA) | C157: MES | D157: CR | E157: 2855.41
A158: 427 | B158: ALCA PREFORMADA DE CONTRA POSTE, EM ACO GALVANIZADO, PARA CABO 3/16", COMPRIMENTO *860* MM | C158: UN | D158: AS | E158: 7.93
A159: 417 | B159: ALCA PREFORMADA DE DISTRIBUICAO, EM ACO GALVANIZADO, PARA CABO DE ALUMINIO DIAMETRO 16 A 25 MM | C159: UN | D159: AS | E159: 3.74
A160: 11273 | B160: ALCA PREFORMADA DE DISTRIBUICAO, EM ACO GALVANIZADO, PARA CONDUTORES DE ALUMINIO AWG 1/0 (CAA 6/1 OU CA 7 FIOS) | C160: UN | D160: AS | E160: 11.6
A161: 11272 | B161: ALCA PREFORMADA DE DISTRIBUICAO, EM ACO GALVANIZADO, PARA CONDUTORES DE ALUMINIO AWG 2 (CAA 6/1 OU CA 7 FIOS) | C161: UN | D161: AS | E161: 7
A162: 11275 | B162: ALCA PREFORMADA DE SERVICO, EM ACO GALVANIZADO, PARA CONDUTORES DE ALUMINIO AWG 4 (CAA 6/1) | C162: UN | D162: AS | E162: 2.81
A163: 11274 | B163: ALCA PREFORMADA DE SERVICO, EM ACO GALVANIZADO, PARA CONDUTORES DE ALUMINIO AWG 6 (CAA 6/1) | C163: UN | D163: AS | E163: 2.14
A164: 38470 | B164: ALICATE DE CORTE DIAGONAL 6 " COM ISOLAMENTO | C164: UN | D164: C | E164: 46.41
A165: 38547 | B165: ALICATE DE CRIMPAR RJ11, RJ12 E RJ45 | C165: UN | D165: CR | E165: 126.64
A166: 38469 | B166: ALICATE DE PRESSAO PARA SOLDA DE CHAPA 18 " | C166: UN | D166: CR | E166: 136.18
A167: 38467 | B167: ALICATE DE PRESSAO 11 " PARA SOLDA, TIPO C | C167: UN | D167: CR | E167: 76.62
A168: 38468 | B168: ALICATE DE PRESSAO 11 " PARA SOLDA, TIPO U | C168: UN | D168: CR | E168: 84.31
A169: 38471 | B169: ALICATE PARA ANEIS DE PISTAO, CAPACIDADE 50 A 100 MM | C169: UN | D169: CR | E169: 109.49
A170: 37370 | B170: ALIMENTACAO - HORISTA (COLETADO CAIXA - ENCARGOS COMPLEMENTARES) | C170: H | D170: C | E170: 2.92
A171: 40862 | B171: ALIMENTACAO - MENSALISTA (COLETADO CAIXA - ENCARGOS COMPLEMENTARES) | C171: MES | D171: C | E171: 550.91
A172: 10658 | B172: ALISADORA DE CONCRETO COM MOTOR A GASOLINA DE 5,5 HP, PESO COM MOTOR DE 78 KG, 4 PAS | C172: UN | D172: AS | E172: 8364.5
A173: 253 | B173: ALMOXARIFE (HORISTA) | C173: H | D173: C | E173: 18.73
A174: 40809 | B174: ALMOXARIFE (MENSALISTA) | C174: MES | D174: CR | E174: 3251.9
A175: 42428 | B175: ALONGADOR COM TRES ALTURAS, EM TUBO DE ACO CARBONO, PINTURA NO PROCESSO ELETROSTATICO - EQUIPAMENTO DE GINASTICA PARA ACADEMIA AO AR LIVRE / ACADEMIA DA TERCEIRA IDADE - ATI | C175: UN | D175: AS | E175: 2271
A176: 583 | B176: ALUMINIO ANODIZADO | C176: KG | D176: CR | E176: 63.64
A177: 301 | B177: ANEL BORRACHA PARA TUBO ESGOTO PREDIAL, DN 100 MM (NBR 5688) | C177: UN | D177: C | E177: 3.5
A178: 296 | B178: ANEL BORRACHA PARA TUBO ESGOTO PREDIAL, DN 50 MM (NBR 5688) | C178: UN | D178: CR | E178: 1.98
A179: 297 | B179: ANEL BORRACHA PARA TUBO ESGOTO PREDIAL, DN 75 MM (NBR 5688) | C179: UN | D179: CR | E179: 2.91
A180: 299 | B180: ANEL BORRACHA, DN 100 MM, PARA TUBO SERIE REFORCADA ESGOTO PREDIAL | C180: UN | D180: CR | E180: 4.1
A181: 300 | B181: ANEL BORRACHA, DN 150 MM, PARA TUBO SERIE REFORCADA ESGOTO PREDIAL | C181: UN | D181: CR | E181: 14.21
A182: 20085 | B182: ANEL BORRACHA, DN 50 MM, PARA TUBO SERIE REFORCADA ESGOTO PREDIAL | C182: UN | D182: CR | E182: 2.59
A183: 298 | B183: ANEL BORRACHA, DN 75 MM, PARA TUBO SERIE REFORCADA ESGOTO PREDIAL | C183: UN | D183: CR | E183: 3.15
A184: 311 | B184: ANEL BORRACHA, PARA TUBO PVC DEFOFO, DN 100 MM (NBR 7665) | C184: UN | D184: CR | E184: 11.71
A185: 318 | B185: ANEL BORRACHA, PARA TUBO PVC DEFOFO, DN 150 MM (NBR 7665) | C185: UN | D185: CR | E185: 23.59
A186: 319 | B186: ANEL BORRACHA, PARA TUBO PVC DEFOFO, DN 200 MM (NBR 7665) | C186: UN | D186: CR | E186: 37
A187: 303 | B187: ANEL BORRACHA, PARA TUBO PVC, REDE COLETOR ESGOTO, DN 100 MM (NBR 7362) | C187: UN | D187: CR | E187: 3.87
A188: 305 | B188: ANEL BORRACHA, PARA TUBO PVC, REDE COLETOR ESGOTO, DN 150 MM (NBR 7362) | C188: UN | D188: CR | E188: 12.2
A189: 306 | B189: ANEL BORRACHA, PARA TUBO PVC, REDE COLETOR ESGOTO, DN 200 MM (NBR 7362) | C189: UN | D189: CR | E189: 18.5
A190: 307 | B190: ANEL BORRACHA, PARA TUBO PVC, REDE COLETOR ESGOTO, DN 250 MM (NBR 7362) | C190: UN | D190: CR | E190: 46.73
A191: 309 | B191: ANEL BORRACHA, PARA TUBO PVC, REDE COLETOR ESGOTO, DN 350 MM (NBR 7362) | C191: UN | D191: CR | E191: 76.55
A192: 310 | B192: ANEL BORRACHA, PARA TUBO PVC, REDE COLETOR ESGOTO, DN 400 MM (NBR 7362) | C192: UN | D192: CR | E192: 106.11
A193: 328 | B193: ANEL BORRACHA, PARA TUBO/CONEXAO PVC PBA, DN 100 MM, PARA REDE AGUA | C193: UN | D193: CR | E193: 9.28
A194: 325 | B194: ANEL BORRACHA, PARA TUBO/CONEXAO PVC PBA, DN 50 MM, PARA REDE AGUA | C194: UN | D194: CR | E194: 2.73
A195: 20326 | B195: ANEL BORRACHA, PARA TUBO/CONEXAO PVC PBA, DN 60 MM, PARA REDE AGUA | C195: UN | D195: CR | E195: 5.01
A196: 329 | B196: ANEL BORRACHA, PARA TUBO/CONEXAO PVC PBA, DN 75 MM, PARA REDE AGUA | C196: UN | D196: CR | E196: 7.76
A197: 308 | B197: ANEL BORRACHA, PARA TUBO, PVC REDE COLETOR ESGOTO, DN 300 MM (NBR 7362) | C197: UN | D197: CR | E197: 104.3
A198: 39642 | B198: ANEL DE BORRACHA PARA VEDACAO DE DUTO PEAD CORRUGADO PARA ELETRICA, DN 1 1/2" (NBR 15715) | C198: UN | D198: CR | E198: 3.43
A199: 39641 | B199: ANEL DE BORRACHA PARA VEDACAO DE DUTO PEAD CORRUGADO PARA ELETRICA, DN 1 1/4" (NBR 15715) | C199: UN | D199: CR | E199: 3.01
A200: 39643 | B200: ANEL DE BORRACHA PARA VEDACAO DE DUTO PEAD CORRUGADO PARA ELETRICA, DN 2" (NBR 15715) | C200: UN | D200: CR | E200: 4.03
... 5004 more rows

Sheet COMP. SINTÉTICO SINAPI
A2: 97141 | B2: ASSENTAMENTO DE TUBO DE FERRO FUNDIDO PARA REDE DE ÁGUA, DN 80 MM, JUNTA ELÁSTICA, INSTALADO EM LOCAL COM NÍVEL ALTO DE INTERFERÊNCIAS (NÃO INCLUI FORNECIMENTO). AF_11/2017 | C2: M | D2: ATRIBUÍDO SÃO PAULO | E2: 8.84
A3: 97142 | B3: ASSENTAMENTO DE TUBO DE FERRO FUNDIDO PARA REDE DE ÁGUA, DN 100 MM, JUNTA ELÁSTICA, INSTALADO EM LOCAL COM NÍVEL ALTO DE INTERFERÊNCIAS (NÃO INCLUI FORNECIMENTO). AF_11/2017 | C3: M | D3: ATRIBUÍDO SÃO PAULO | E3: 9.86
A4: 97143 | B4: ASSENTAMENTO DE TUBO DE FERRO FUNDIDO PARA REDE DE ÁGUA, DN 150 MM, JUNTA ELÁSTICA, INSTALADO EM LOCAL COM NÍVEL ALTO DE INTERFERÊNCIAS (NÃO INCLUI FORNECIMENTO). AF_11/2017 | C4: M | D4: ATRIBUÍDO SÃO PAULO | E4: 12.42
A5: 97144 | B5: ASSENTAMENTO DE TUBO DE FERRO FUNDIDO PARA REDE DE ÁGUA, DN 200 MM, JUNTA ELÁSTICA, INSTALADO EM LOCAL COM NÍVEL ALTO DE INTERFERÊNCIAS (NÃO INCLUI FORNECIMENTO). AF_11/2017 | C5: M | D5: ATRIBUÍDO SÃO PAULO | E5: 14.99
A6: 97145 | B6: ASSENTAMENTO DE TUBO DE FERRO FUNDIDO PARA REDE DE ÁGUA, DN 250 MM, JUNTA ELÁSTICA, INSTALADO EM LOCAL COM NÍVEL ALTO DE INTERFERÊNCIAS (NÃO INCLUI FORNECIMENTO). AF_11/2017 | C6: M | D6: ATRIBUÍDO SÃO PAULO | E6: 17.56
A7: 97146 | B7: ASSENTAMENTO DE TUBO DE FERRO FUNDIDO PARA REDE DE ÁGUA, DN 300 MM, JUNTA ELÁSTICA, INSTALADO EM LOCAL COM NÍVEL ALTO DE INTERFERÊNCIAS (NÃO INCLUI FORNECIMENTO). AF_11/2017 | C7: M | D7: ATRIBUÍDO SÃO PAULO | E7: 20.14
A8: 97147 | B8: ASSENTAMENTO DE TUBO DE FERRO FUNDIDO PARA REDE DE ÁGUA, DN 350 MM, JUNTA ELÁSTICA, INSTALADO EM LOCAL COM NÍVEL ALTO DE INTERFERÊNCIAS (NÃO INCLUI FORNECIMENTO). AF_11/2017 | C8: M | D8: ATRIBUÍDO SÃO PAULO | E8: 22.74
A9: 97148 | B9: ASSENTAMENTO DE TUBO DE FERRO FUNDIDO PARA REDE DE ÁGUA, DN 400 MM, JUNTA ELÁSTICA, INSTALADO EM LOCAL COM NÍVEL ALTO DE INTERFERÊNCIAS (NÃO INCLUI FORNECIMENTO). AF_11/2017 | C9: M | D9: ATRIBUÍDO SÃO PAULO | E9: 25.28
A10: 97149 | B10: ASSENTAMENTO DE TUBO DE FERRO FUNDIDO PARA REDE DE ÁGUA, DN 450 MM, JUNTA ELÁSTICA, INSTALADO EM LOCAL COM NÍVEL ALTO DE INTERFERÊNCIAS (NÃO INCLUI FORNECIMENTO). AF_11/2017 | C10: M | D10: ATRIBUÍDO SÃO PAULO | E10: 27.9
A11: 97150 | B11: ASSENTAMENTO DE TUBO DE FERRO FUNDIDO PARA REDE DE ÁGUA, DN 500 MM, JUNTA ELÁSTICA, INSTALADO EM LOCAL COM NÍVEL ALTO DE INTERFERÊNCIAS (NÃO INCLUI FORNECIMENTO). AF_11/2017 | C11: M | D11: COEFICIENTE DE REPRESENTATIVIDADE | E11: 37.63
A12: 97151 | B12: ASSENTAMENTO DE TUBO DE FERRO FUNDIDO PARA REDE DE ÁGUA, DN 600 MM, JUNTA ELÁSTICA, INSTALADO EM LOCAL COM NÍVEL ALTO DE INTERFERÊNCIAS (NÃO INCLUI FORNECIMENTO). AF_11/2017 | C12: M | D12: COEFICIENTE DE REPRESENTATIVIDADE | E12: 43.84
A13: 97152 | B13: ASSENTAMENTO DE TUBO DE FERRO FUNDIDO PARA REDE DE ÁGUA, DN 700 MM, JUNTA ELÁSTICA, INSTALADO EM LOCAL COM NÍVEL ALTO DE INTERFERÊNCIAS (NÃO INCLUI FORNECIMENTO). AF_11/2017 | C13: M | D13: COEFICIENTE DE REPRESENTATIVIDADE | E13: 49.81
A14: 97153 | B14: ASSENTAMENTO DE TUBO DE FERRO FUNDIDO PARA REDE DE ÁGUA, DN 800 MM, JUNTA ELÁSTICA, INSTALADO EM LOCAL COM NÍVEL ALTO DE INTERFERÊNCIAS (NÃO INCLUI FORNECIMENTO). AF_11/2017 | C14: M | D14: COEFICIENTE DE REPRESENTATIVIDADE | E14: 55.94
A15: 97154 | B15: ASSENTAMENTO DE TUBO DE FERRO FUNDIDO PARA REDE DE ÁGUA, DN 900 MM, JUNTA ELÁSTICA, INSTALADO EM LOCAL COM NÍVEL ALTO DE INTERFERÊNCIAS (NÃO INCLUI FORNECIMENTO). AF_11/2017 | C15: M | D15: COEFICIENTE DE REPRESENTATIVIDADE | E15: 62.09
A16: 97155 | B16: ASSENTAMENTO DE TUBO DE FERRO FUNDIDO PARA REDE DE ÁGUA, DN 1000 MM, JUNTA ELÁSTICA, INSTALADO EM LOCAL COM NÍVEL ALTO DE INTERFERÊNCIAS (NÃO INCLUI FORNECIMENTO). AF_11/2017 | C16: M | D16: COEFICIENTE DE REPRESENTATIVIDADE | E16: 68.24
A17: 97156 | B17: ASSENTAMENTO DE TUBO DE FERRO FUNDIDO PARA REDE DE ÁGUA, DN 1200 MM, JUNTA ELÁSTICA, INSTALADO EM LOCAL COM NÍVEL ALTO DE INTERFERÊNCIAS (NÃO INCLUI FORNECIMENTO). AF_11/2017 | C17: M | D17: COEFICIENTE DE REPRESENTATIVIDADE | E17: 80.98
A18: 97157 | B18: ASSENTAMENTO DE TUBO DE FERRO FUNDIDO PARA REDE DE ÁGUA, DN 80 MM, JUNTA ELÁSTICA, INSTALADO EM LOCAL COM NÍVEL BAIXO DE INTERFERÊNCIAS (NÃO INCLUI FORNECIMENTO). AF_11/2017 | C18: M | D18: ATRIBUÍDO SÃO PAULO | E18: 5.39
A19: 97158 | B19: ASSENTAMENTO DE TUBO DE FERRO FUNDIDO PARA REDE DE ÁGUA, DN 100 MM, JUNTA ELÁSTICA, INSTALADO EM LOCAL COM NÍVEL BAIXO DE INTERFERÊNCIAS (NÃO INCLUI FORNECIMENTO). AF_11/2017 | C19: M | D19: ATRIBUÍDO SÃO PAULO | E19: 6.03
A20: 97159 | B20: ASSENTAMENTO DE TUBO DE FERRO FUNDIDO PARA REDE DE ÁGUA, DN 150 MM, JUNTA ELÁSTICA, INSTALADO EM LOCAL COM NÍVEL BAIXO DE INTERFERÊNCIAS (NÃO INCLUI FORNECIMENTO). AF_11/2017 | C20: M | D20: ATRIBUÍDO SÃO PAULO | E20: 7.58
A21: 97160 | B21: ASSENTAMENTO DE TUBO DE FERRO FUNDIDO PARA REDE DE ÁGUA, DN 200 MM, JUNTA ELÁSTICA, INSTALADO EM LOCAL COM NÍVEL BAIXO DE INTERFERÊNCIAS (NÃO INCLUI FORNECIMENTO). AF_11/2017 | C21: M | D21: ATRIBUÍDO SÃO PAULO | E21: 9.15
A22: 97161 | B22: ASSENTAMENTO DE TUBO DE FERRO FUNDIDO PARA REDE DE ÁGUA, DN 250 MM, JUNTA ELÁSTICA, INSTALADO EM LOCAL COM NÍVEL BAIXO DE INTERFERÊNCIAS (NÃO INCLUI FORNECIMENTO). AF_11/2017 | C22: M | D22: ATRIBUÍDO SÃO PAULO | E22: 10.75
A23: 97162 | B23: ASSENTAMENTO DE TUBO DE FERRO FUNDIDO PARA REDE DE ÁGUA, DN 300 MM, JUNTA ELÁSTICA, INSTALADO EM LOCAL COM NÍVEL BAIXO DE INTERFERÊNCIAS (NÃO INCLUI FORNECIMENTO). AF_11/2017 | C23: M | D23: ATRIBUÍDO SÃO PAULO | E23: 12.33
A24: 97163 | B24: ASSENTAMENTO DE TUBO DE FERRO FUNDIDO PARA REDE DE ÁGUA, DN 350 MM, JUNTA ELÁSTICA, INSTALADO EM LOCAL COM NÍVEL BAIXO DE INTERFERÊNCIAS (NÃO INCLUI FORNECIMENTO). AF_11/2017 | C24: M | D24: ATRIBUÍDO SÃO PAULO | E24: 13.92
A25: 97164 | B25: ASSENTAMENTO DE TUBO DE FERRO FUNDIDO PARA REDE DE ÁGUA, DN 400 MM, JUNTA ELÁSTICA, INSTALADO EM LOCAL COM NÍVEL BAIXO DE INTERFERÊNCIAS (NÃO INCLUI FORNECIMENTO). AF_11/2017 | C25: M | D25: ATRIBUÍDO SÃO PAULO | E25: 15.5
A26: 97165 | B26: ASSENTAMENTO DE TUBO DE FERRO FUNDIDO PARA REDE DE ÁGUA, DN 450 MM, JUNTA ELÁSTICA, INSTALADO EM LOCAL COM NÍVEL BAIXO DE INTERFERÊNCIAS (NÃO INCLUI FORNECIMENTO). AF_11/2017 | C26: M | D26: ATRIBUÍDO SÃO PAULO | E26: 17.12
A27: 97166 | B27: ASSENTAMENTO DE TUBO DE FERRO FUNDIDO PARA REDE DE ÁGUA, DN 500 MM, JUNTA ELÁSTICA, INSTALADO EM LOCAL COM NÍVEL BAIXO DE INTERFERÊNCIAS (NÃO INCLUI FORNECIMENTO). AF_11/2017 | C27: M | D27: COEFICIENTE DE REPRESENTATIVIDADE | E27: 22.99
A28: 97167 | B28: ASSENTAMENTO DE TUBO DE FERRO FUNDIDO PARA REDE DE ÁGUA, DN 600 MM, JUNTA ELÁSTICA, INSTALADO EM LOCAL COM NÍVEL BAIXO DE INTERFERÊNCIAS (NÃO INCLUI FORNECIMENTO). AF_11/2017 | C28: M | D28: COEFICIENTE DE REPRESENTATIVIDADE | E28: 26.82
A29: 97168 | B29: ASSENTAMENTO DE TUBO DE FERRO FUNDIDO PARA REDE DE ÁGUA, DN 700 MM, JUNTA ELÁSTICA, INSTALADO EM LOCAL COM NÍVEL BAIXO DE INTERFERÊNCIAS (NÃO INCLUI FORNECIMENTO). AF_11/2017 | C29: M | D29: COEFICIENTE DE REPRESENTATIVIDADE | E29: 30.4
A30: 97169 | B30: ASSENTAMENTO DE TUBO DE FERRO FUNDIDO PARA REDE DE ÁGUA, DN 800 MM, JUNTA ELÁSTICA, INSTALADO EM LOCAL COM NÍVEL BAIXO DE INTERFERÊNCIAS (NÃO INCLUI FORNECIMENTO). AF_11/2017 | C30: M | D30: COEFICIENTE DE REPRESENTATIVIDADE | E30: 34.14
A31: 97170 | B31: ASSENTAMENTO DE TUBO DE FERRO FUNDIDO PARA REDE DE ÁGUA, DN 900 MM, JUNTA ELÁSTICA, INSTALADO EM LOCAL COM NÍVEL BAIXO DE INTERFERÊNCIAS (NÃO INCLUI FORNECIMENTO). AF_11/2017 | C31: M | D31: COEFICIENTE DE REPRESENTATIVIDADE | E31: 37.9
A32: 97171 | B32: ASSENTAMENTO DE TUBO DE FERRO FUNDIDO PARA REDE DE ÁGUA, DN 1000 MM, JUNTA ELÁSTICA, INSTALADO EM LOCAL COM NÍVEL BAIXO DE INTERFERÊNCIAS (NÃO INCLUI FORNECIMENTO). AF_11/2017 | C32: M | D32: COEFICIENTE DE REPRESENTATIVIDADE | E32: 41.69
A33: 97172 | B33: ASSENTAMENTO DE TUBO DE FERRO FUNDIDO PARA REDE DE ÁGUA, DN 1200 MM, JUNTA ELÁSTICA, INSTALADO EM LOCAL COM NÍVEL BAIXO DE INTERFERÊNCIAS (NÃO INCLUI FORNECIMENTO). AF_11/2017 | C33: M | D33: COEFICIENTE DE REPRESENTATIVIDADE | E33: 49.64
A34: 97173 | B34: ASSENTAMENTO DE TUBO DE AÇO CARBONO PARA REDE DE ÁGUA, DN 600 MM (24), JUNTA SOLDADA, INSTALADO EM LOCAL COM NÍVEL ALTO DE INTERFERÊNCIAS (NÃO INCLUI FORNECIMENTO). AF_11/2017 | C34: M | D34: COEFICIENTE DE REPRESENTATIVIDADE | E34: 38.28
A35: 97174 | B35: ASSENTAMENTO DE TUBO DE AÇO CARBONO PARA REDE DE ÁGUA, DN 700 MM (28), JUNTA SOLDADA, INSTALADO EM LOCAL COM NÍVEL ALTO DE INTERFERÊNCIAS (NÃO INCLUI FORNECIMENTO). AF_11/2017 | C35: M | D35: COEFICIENTE DE REPRESENTATIVIDADE | E35: 44.29
A36: 97175 | B36: ASSENTAMENTO DE TUBO DE AÇO CARBONO PARA REDE DE ÁGUA, DN 800 MM (32), JUNTA SOLDADA, INSTALADO EM LOCAL COM NÍVEL ALTO DE INTERFERÊNCIAS (NÃO INCLUI FORNECIMENTO). AF_11/2017 | C36: M | D36: COEFICIENTE DE REPRESENTATIVIDADE | E36: 50.29
A37: 97176 | B37: ASSENTAMENTO DE TUBO DE AÇO CARBONO PARA REDE DE ÁGUA, DN 900 MM (36), JUNTA SOLDADA, INSTALADO EM LOCAL COM NÍVEL ALTO DE INTERFERÊNCIAS (NÃO INCLUI FORNECIMENTO). AF_11/2017 | C37: M | D37: COEFICIENTE DE REPRESENTATIVIDADE | E37: 56.28
A38: 97177 | B38: ASSENTAMENTO DE TUBO DE AÇO CARBONO PARA REDE DE ÁGUA, DN 1000 MM (40) OU DN 1100 MM (44), JUNTA SOLDADA, INSTALADO EM LOCAL COM NÍVEL ALTO DE INTERFERÊNCIAS (NÃO INCLUI FORNECIMENTO). AF_11/2017 | C38: M | D38: COEFICIENTE DE REPRESENTATIVIDADE | E38: 68.28
A39: 97178 | B39: ASSENTAMENTO DE TUBO DE AÇO CARBONO PARA REDE DE ÁGUA, DN 1200 MM (48) OU DN 1300 MM (52), JUNTA SOLDADA, INSTALADO EM LOCAL COM NÍVEL ALTO DE INTERFERÊNCIAS (NÃO INCLUI FORNECIMENTO). AF_11/2017 | C39: M | D39: COEFICIENTE DE REPRESENTATIVIDADE | E39: 80.29
A40: 97179 | B40: ASSENTAMENTO DE TUBO DE AÇO CARBONO PARA REDE DE ÁGUA, DN 1400 MM (56'') OU DN 1500 MM (60), JUNTA SOLDADA, INSTALADO EM LOCAL COM NÍVEL ALTO DE INTERFERÊNCIAS (NÃO INCLUI FORNECIMENTO). AF_11/2017 | C40: M | D40: COEFICIENTE DE REPRESENTATIVIDADE | E40: 92.29
A41: 97180 | B41: ASSENTAMENTO DE TUBO DE AÇO CARBONO PARA REDE DE ÁGUA, DN 1600 MM (64) OU DN 1700 MM (68), JUNTA SOLDADA, INSTALADO EM LOCAL COM NÍVEL ALTO DE INTERFERÊNCIAS (NÃO INCLUI FORNECIMENTO). AF_11/2017 | C41: M | D41: COEFICIENTE DE REPRESENTATIVIDADE | E41: 104.27
A42: 97181 | B42: ASSENTAMENTO DE TUBO DE AÇO CARBONO PARA REDE DE ÁGUA, DN 1800 MM (72) OU DN 1900 MM (76), JUNTA SOLDADA, INSTALADO EM LOCAL COM NÍVEL ALTO DE INTERFERÊNCIAS (NÃO INCLUI FORNECIMENTO). AF_11/2017 | C42: M | D42: COEFICIENTE DE REPRESENTATIVIDADE | E42: 121.67
A43: 97182 | B43: ASSENTAMENTO DE TUBO DE AÇO CARBONO PARA REDE DE ÁGUA, DN 2000 MM (80) OU DN 2100 MM (84), JUNTA SOLDADA, INSTALADO EM LOCAL COM NÍVEL ALTO DE INTERFERÊNCIAS (NÃO INCLUI FORNECIMENTO). AF_11/2017 | C43: M | D43: COEFICIENTE DE REPRESENTATIVIDADE | E43: 134.23
A44: 97183 | B44: ASSENTAMENTO DE TUBO DE AÇO CARBONO PARA REDE DE ÁGUA, DN 600 MM (24), JUNTA SOLDADA, INSTALADO EM LOCAL COM NÍVEL BAIXO DE INTERFERÊNCIAS (NÃO INCLUI FORNECIMENTO). AF_11/2017 | C44: M | D44: COEFICIENTE DE REPRESENTATIVIDADE | E44: 30.22
A45: 97184 | B45: ASSENTAMENTO DE TUBO DE AÇO CARBONO PARA REDE DE ÁGUA, DN 700 MM (28), JUNTA SOLDADA, INSTALADO EM LOCAL COM NÍVEL BAIXO DE INTERFERÊNCIAS (NÃO INCLUI FORNECIMENTO). AF_11/2017 | C45: M | D45: COEFICIENTE DE REPRESENTATIVIDADE | E45: 35.02
A46: 97185 | B46: ASSENTAMENTO DE TUBO DE AÇO CARBONO PARA REDE DE ÁGUA, DN 800 MM (32), JUNTA SOLDADA, INSTALADO EM LOCAL COM NÍVEL BAIXO DE INTERFERÊNCIAS (NÃO INCLUI FORNECIMENTO). AF_11/2017 | C46: M | D46: COEFICIENTE DE REPRESENTATIVIDADE | E46: 39.83
A47: 97186 | B47: ASSENTAMENTO DE TUBO DE AÇO CARBONO PARA REDE DE ÁGUA, DN 900 MM (36), JUNTA SOLDADA, INSTALADO EM LOCAL COM NÍVEL BAIXO DE INTERFERÊNCIAS (NÃO INCLUI FORNECIMENTO). AF_11/2017 | C47: M | D47: COEFICIENTE DE REPRESENTATIVIDADE | E47: 44.64
A48: 97187 | B48: ASSENTAMENTO DE TUBO DE AÇO CARBONO PARA REDE DE ÁGUA, DN 1000 MM (40 ) OU DN 1100 MM (44 ), JUNTA SOLDADA, INSTALADO EM LOCAL COM NÍVEL BAIXO DE INTERFERÊNCIAS (NÃO INCLUI FORNECIMENTO). AF_11/2017 | C48: M | D48: COEFICIENTE DE REPRESENTATIVIDADE | E48: 54.26
A49: 97188 | B49: ASSENTAMENTO DE TUBO DE AÇO CARBONO PARA REDE DE ÁGUA, DN 1200 MM (48) OU DN 1300 MM (52), JUNTA SOLDADA, INSTALADO EM LOCAL COM NÍVEL BAIXO DE INTERFERÊNCIAS (NÃO INCLUI FORNECIMENTO). AF_11/2017 | C49: M | D49: COEFICIENTE DE REPRESENTATIVIDADE | E49: 63.88
A50: 97189 | B50: ASSENTAMENTO DE TUBO DE AÇO CARBONO PARA REDE DE ÁGUA, DN 1400 MM (56'') OU DN 1500 MM (60), JUNTA SOLDADA, INSTALADO EM LOCAL COM NÍVEL BAIXO DE INTERFERÊNCIAS (NÃO INCLUI FORNECIMENTO). AF_11/2017 | C50: M | D50: COEFICIENTE DE REPRESENTATIVIDADE | E50: 73.49
A51: 97190 | B51: ASSENTAMENTO DE TUBO DE AÇO CARBONO PARA REDE DE ÁGUA, DN 1600 MM (64) OU DN 1700 MM (68), JUNTA SOLDADA, INSTALADO EM LOCAL COM NÍVEL BAIXO DE INTERFERÊNCIAS (NÃO INCLUI FORNECIMENTO). AF_11/2017 | C51: M | D51: COEFICIENTE DE REPRESENTATIVIDADE | E51: 83.09
A52: 97191 | B52: ASSENTAMENTO DE TUBO DE AÇO CARBONO PARA REDE DE ÁGUA, DN 1800 MM (72) OU DN 1900 MM (76), JUNTA SOLDADA, INSTALADO EM LOCAL COM NÍVEL BAIXO DE INTERFERÊNCIAS (NÃO INCLUI FORNECIMENTO). AF_11/2017 | C52: M | D52: COEFICIENTE DE REPRESENTATIVIDADE | E52: 96.59
A53: 97192 | B53: ASSENTAMENTO DE TUBO DE AÇO CARBONO PARA REDE DE ÁGUA, DN 2000 MM (80) OU DN 2100 MM (84), JUNTA SOLDADA, INSTALADO EM LOCAL COM NÍVEL BAIXO DE INTERFERÊNCIAS (NÃO INCLUI FORNECIMENTO). AF_11/2017 | C53: M | D53: COEFICIENTE DE REPRESENTATIVIDADE | E53: 106.61
A54: 90694 | B54: TUBO DE PVC PARA REDE COLETORA DE ESGOTO DE PAREDE MACIÇA, DN 100 MM, JUNTA ELÁSTICA - FORNECIMENTO E ASSENTAMENTO. AF_01/2021 | C54: M | D54: COEFICIENTE DE REPRESENTATIVIDADE | E54: 50.63
A55: 90695 | B55: TUBO DE PVC PARA REDE COLETORA DE ESGOTO DE PAREDE MACIÇA, DN 150 MM, JUNTA ELÁSTICA - FORNECIMENTO E ASSENTAMENTO. AF_01/2021 | C55: M | D55: COEFICIENTE DE REPRESENTATIVIDADE | E55: 96.19
A56: 90696 | B56: TUBO DE PVC PARA REDE COLETORA DE ESGOTO DE PAREDE MACIÇA, DN 200 MM, JUNTA ELÁSTICA - FORNECIMENTO E ASSENTAMENTO. AF_01/2021 | C56: M | D56: COEFICIENTE DE REPRESENTATIVIDADE | E56: 160.7
A57: 90697 | B57: TUBO DE PVC PARA REDE COLETORA DE ESGOTO DE PAREDE MACIÇA, DN 250 MM, JUNTA ELÁSTICA - FORNECIMENTO E ASSENTAMENTO. AF_01/2021 | C57: M | D57: COEFICIENTE DE REPRESENTATIVIDADE | E57: 249.29
A58: 90698 | B58: TUBO DE PVC PARA REDE COLETORA DE ESGOTO DE PAREDE MACIÇA, DN 300 MM, JUNTA ELÁSTICA, FORNECIMENTO E ASSENTAMENTO. AF_01/2021 | C58: M | D58: COEFICIENTE DE REPRESENTATIVIDADE | E58: 381.04
A59: 90699 | B59: TUBO DE PVC PARA REDE COLETORA DE ESGOTO DE PAREDE MACIÇA, DN 350 MM, JUNTA ELÁSTICA - FORNECIMENTO E ASSENTAMENTO. AF_01/2021 | C59: M | D59: COEFICIENTE DE REPRESENTATIVIDADE | E59: 536.3
A60: 90700 | B60: TUBO DE PVC PARA REDE COLETORA DE ESGOTO DE PAREDE MACIÇA, DN 400 MM, JUNTA ELÁSTICA FORNECIMENTO E ASSENTAMENTO. AF_01/2021 | C60: M | D60: ATRIBUÍDO SÃO PAULO | E60: 625.47
A61: 90701 | B61: TUBO DE PVC CORRUGADO DE DUPLA PAREDE PARA REDE COLETORA DE ESGOTO, DN 150 MM, JUNTA ELÁSTICA - FORNECIMENTO E ASSENTAMENTO. AF_01/2021 | C61: M | D61: COEFICIENTE DE REPRESENTATIVIDADE | E61: 75.74
A62: 90702 | B62: TUBO DE PVC CORRUGADO DE DUPLA PAREDE PARA REDE COLETORA DE ESGOTO, DN 200 MM, JUNTA ELÁSTICA - FORNECIMENTO E ASSENTAMENTO. AF_01/2021 | C62: M | D62: COEFICIENTE DE REPRESENTATIVIDADE | E62: 125.35
A63: 90703 | B63: TUBO DE PVC CORRUGADO DE DUPLA PAREDE PARA REDE COLETORA DE ESGOTO, DN 250 MM, JUNTA ELÁSTICA - FORNECIMENTO E ASSENTAMENTO. AF_01/2021 | C63: M | D63: COEFICIENTE DE REPRESENTATIVIDADE | E63: 196.56
A64: 90704 | B64: TUBO DE PVC CORRUGADO DE DUPLA PAREDE PARA REDE COLETORA DE ESGOTO, DN 300 MM, JUNTA ELÁSTICA - FORNECIMENTO E ASSENTAMENTO. AF_01/2021 | C64: M | D64: COEFICIENTE DE REPRESENTATIVIDADE | E64: 292.61
A65: 90705 | B65: TUBO DE PVC CORRUGADO DE DUPLA PAREDE PARA REDE COLETORA DE ESGOTO, DN 350 MM, JUNTA ELÁSTICA - FORNECIMENTO E ASSENTAMENTO. AF_01/2021 | C65: M | D65: COEFICIENTE DE REPRESENTATIVIDADE | E65: 381.61
A66: 90706 | B66: TUBO DE PVC CORRUGADO DE DUPLA PAREDE PARA REDE COLETORA DE ESGOTO, DN 400 MM, JUNTA ELÁSTICA - FORNECIMENTO E ASSENTAMENTO. AF_01/2021 | C66: M | D66: ATRIBUÍDO SÃO PAULO | E66: 504.95
A67: 90708 | B67: TUBO DE PEAD CORRUGADO DE DUPLA PAREDE PARA REDE COLETORA DE ESGOTO, DN 600 MM, JUNTA ELÁSTICA INTEGRADA - FORNECIMENTO E ASSENTAMENTO. AF_01/2021 | C67: M | D67: ATRIBUÍDO SÃO PAULO | E67: 762.87
A68: 90724 | B68: JUNTA ARGAMASSADA ENTRE TUBO DN 100 MM E O POÇO DE VISITA/ CAIXA DE CONCRETO OU ALVENARIA EM REDES DE ESGOTO. AF_01/2021 | C68: UN | D68: COEFICIENTE DE REPRESENTATIVIDADE | E68: 27.35
A69: 90725 | B69: JUNTA ARGAMASSADA ENTRE TUBO DN 150 MM E O POÇO DE VISITA/ CAIXA DE CONCRETO OU ALVENARIA EM REDES DE ESGOTO. AF_01/2021 | C69: UN | D69: COEFICIENTE DE REPRESENTATIVIDADE | E69: 33.68
A70: 90726 | B70: JUNTA ARGAMASSADA ENTRE TUBO DN 200 MM E O POÇO/ CAIXA DE CONCRETO OU ALVENARIA EM REDES DE ESGOTO. AF_01/2021 | C70: UN | D70: COEFICIENTE DE REPRESENTATIVIDADE | E70: 40.11
A71: 90727 | B71: JUNTA ARGAMASSADA ENTRE TUBO DN 250 MM E O POÇO DE VISITA/ CAIXA DE CONCRETO OU ALVENARIA EM REDES DE ESGOTO. AF_01/2021 | C71: UN | D71: COEFICIENTE DE REPRESENTATIVIDADE | E71: 46.44
A72: 90728 | B72: JUNTA ARGAMASSADA ENTRE TUBO DN 300 MM E O POÇO DE VISITA/ CAIXA DE CONCRETO OU ALVENARIA EM REDES DE ESGOTO. AF_01/2021 | C72: UN | D72: COEFICIENTE DE REPRESENTATIVIDADE | E72: 52.76
A73: 90729 | B73: JUNTA ARGAMASSADA ENTRE TUBO DN 350 MM E O POÇO DE VISITA/ CAIXA DE CONCRETO OU ALVENARIA EM REDES DE ESGOTO. AF_01/2021 | C73: UN | D73: COEFICIENTE DE REPRESENTATIVIDADE | E73: 59.11
A74: 90730 | B74: JUNTA ARGAMASSADA ENTRE TUBO DN 400 MM E O POÇO DE VISITA/ CAIXA DE CONCRETO OU ALVENARIA EM REDES DE ESGOTO. AF_01/2021 | C74: UN | D74: COEFICIENTE DE REPRESENTATIVIDADE | E74: 65.44
A75: 90731 | B75: JUNTA ARGAMASSADA ENTRE TUBO DN 450 MM E O POÇO DE VISITA/ CAIXA DE CONCRETO OU ALVENARIA EM REDES DE ESGOTO. AF_01/2021 | C75: UN | D75: COEFICIENTE DE REPRESENTATIVIDADE | E75: 71.77
A76: 90732 | B76: JUNTA ARGAMASSADA ENTRE TUBO DN 600 MM E O POÇO DE VISITA/ CAIXA DE CONCRETO OU ALVENARIA EM REDES DE ESGOTO. AF_01/2021 | C76: UN | D76: COEFICIENTE DE REPRESENTATIVIDADE | E76: 90.77
A77: 90733 | B77: ASSENTAMENTO DE TUBO DE PVC PARA REDE COLETORA DE ESGOTO DE PAREDE MACIÇA, DN 100 MM, JUNTA ELÁSTICA (NÃO INCLUI FORNECIMENTO). AF_01/2021 | C77: M | D77: COEFICIENTE DE REPRESENTATIVIDADE | E77: 3.82
A78: 90734 | B78: ASSENTAMENTO DE TUBO DE PVC PARA REDE COLETORA DE ESGOTO DE PAREDE MACIÇA, DN 150 MM, JUNTA ELÁSTICA, (NÃO INCLUI FORNECIMENTO). AF_01/2021 | C78: M | D78: COEFICIENTE DE REPRESENTATIVIDADE | E78: 4.53
A79: 90735 | B79: ASSENTAMENTO DE TUBO DE PVC PARA REDE COLETORA DE ESGOTO DE PAREDE MACIÇA, DN 200 MM, JUNTA ELÁSTICA (NÃO INCLUI FORNECIMENTO). AF_01/2021 | C79: M | D79: COEFICIENTE DE REPRESENTATIVIDADE | E79: 5.23
A80: 90736 | B80: ASSENTAMENTO DE TUBO DE PVC PARA REDE COLETORA DE ESGOTO DE PAREDE MACIÇA, DN 250 MM, JUNTA ELÁSTICA (NÃO INCLUI FORNECIMENTO). AF_01/2021 | C80: M | D80: COEFICIENTE DE REPRESENTATIVIDADE | E80: 5.93
A81: 90737 | B81: ASSENTAMENTO DE TUBO DE PVC PARA REDE COLETORA DE ESGOTO DE PAREDE MACIÇA, DN 300 MM, JUNTA ELÁSTICA (NÃO INCLUI FORNECIMENTO). AF_01/2021 | C81: M | D81: COEFICIENTE DE REPRESENTATIVIDADE | E81: 6.65
A82: 90738 | B82: ASSENTAMENTO DE TUBO DE PVC PARA REDE COLETORA DE ESGOTO DE PAREDE MACIÇA, DN 350 MM, JUNTA ELÁSTICA (NÃO INCLUI FORNECIMENTO). AF_01/2021 | C82: M | D82: COEFICIENTE DE REPRESENTATIVIDADE | E82: 7.35
A83: 90739 | B83: ASSENTAMENTO DE TUBO DE PVC PARA REDE COLETORA DE ESGOTO DE PAREDE MACIÇA, DN 400 MM, JUNTA ELÁSTICA (NÃO INCLUI FORNECIMENTO). AF_01/2021 | C83: M | D83: ATRIBUÍDO SÃO PAULO | E83: 9.47
A84: 90740 | B84: ASSENTAMENTO DE TUBO DE PVC CORRUGADO DE DUPLA PAREDE PARA REDE COLETORA DE ESGOTO, DN 150 MM, JUNTA ELÁSTICA (NÃO INCLUI FORNECIMENTO). AF_01/2021 | C84: M | D84: COEFICIENTE DE REPRESENTATIVIDADE | E84: 5.04
A85: 90741 | B85: ASSENTAMENTO DE TUBO DE PVC CORRUGADO DE DUPLA PAREDE PARA REDE COLETORA DE ESGOTO, DN 200 MM, JUNTA ELÁSTICA (NÃO INCLUI FORNECIMENTO). AF_01/2021 | C85: M | D85: COEFICIENTE DE REPRESENTATIVIDADE | E85: 5.75
A86: 90742 | B86: ASSENTAMENTO DE TUBO DE PVC CORRUGADO DE DUPLA PAREDE PARA REDE COLETORA DE ESGOTO, DN 250 MM, JUNTA ELÁSTICA (NÃO INCLUI FORNECIMENTO). AF_01/2021 | C86: M | D86: COEFICIENTE DE REPRESENTATIVIDADE | E86: 6.45
A87: 90743 | B87: ASSENTAMENTO DE TUBO DE PVC CORRUGADO DE DUPLA PAREDE PARA REDE COLETORA DE ESGOTO, DN 300 MM, JUNTA ELÁSTICA (NÃO INCLUI FORNECIMENTO). AF_01/2021 | C87: M | D87: COEFICIENTE DE REPRESENTATIVIDADE | E87: 7.16
A88: 90744 | B88: ASSENTAMENTO DE TUBO DE PVC CORRUGADO DE DUPLA PAREDE PARA REDE COLETORA DE ESGOTO, DN 350 MM, JUNTA ELÁSTICA (NÃO INCLUI FORNECIMENTO). AF_01/2021 | C88: M | D88: COEFICIENTE DE REPRESENTATIVIDADE | E88: 7.86
A89: 90745 | B89: ASSENTAMENTO DE TUBO DE PVC CORRUGADO DE DUPLA PAREDE PARA REDE COLETORA DE ESGOTO, DN 400 MM, JUNTA ELÁSTICA (NÃO INCLUI FORNECIMENTO). AF_01/2021 | C89: M | D89: ATRIBUÍDO SÃO PAULO | E89: 10.59
A90: 90746 | B90: ASSENTAMENTO DE TUBO DE PEAD CORRUGADO DE DUPLA PAREDE PARA REDE COLETORA DE ESGOTO, DN 450 MM, JUNTA ELÁSTICA INTEGRADA (NÃO INCLUI FORNECIMENTO). AF_01/2021 | C90: M | D90: COEFICIENTE DE REPRESENTATIVIDADE | E90: 4.13
A91: 90747 | B91: ASSENTAMENTO DE TUBO DE PEAD CORRUGADO DE DUPLA PAREDE PARA REDE COLETORA DE ESGOTO, DN 600 MM, JUNTA ELÁSTICA INTEGRADA (NÃO INCLUI FORNECIMENTO). AF_01/2021 | C91: M | D91: COEFICIENTE DE REPRESENTATIVIDADE | E91: 19.34
A92: 94869 | B92: TUBO DE PEAD CORRUGADO DE DUPLA PAREDE PARA REDE COLETORA DE ESGOTO, DN 250 MM, JUNTA ELÁSTICA INTEGRADA - FORNECIMENTO E ASSENTAMENTO. AF_01/2021 | C92: M | D92: ATRIBUÍDO SÃO PAULO | E92: 134.16
A93: 94870 | B93: ASSENTAMENTO DE TUBO DE PEAD CORRUGADO DE DUPLA PAREDE PARA REDE COLETORA DE ESGOTO, DN 250 MM, JUNTA ELÁSTICA INTEGRADA (NÃO INCLUI FORNECIMENTO). AF_01/2021 | C93: M | D93: COEFICIENTE DE REPRESENTATIVIDADE | E93: 2
A94: 94871 | B94: TUBO DE PEAD CORRUGADO DE DUPLA PAREDE PARA REDE COLETORA DE ESGOTO, DN 300 MM, JUNTA ELÁSTICA INTEGRADA - FORNECIMENTO E ASSENTAMENTO. AF_01/2021 | C94: M | D94: ATRIBUÍDO SÃO PAULO | E94: 209.91
A95: 94872 | B95: ASSENTAMENTO DE TUBO DE PEAD CORRUGADO DE DUPLA PAREDE PARA REDE COLETORA DE ESGOTO, DN 300 MM, JUNTA ELÁSTICA INTEGRADA (NÃO INCLUI FORNECIMENTO). AF_01/2021 | C95: M | D95: COEFICIENTE DE REPRESENTATIVIDADE | E95: 2.87
A96: 94875 | B96: TUBO DE PEAD CORRUGADO DE DUPLA PAREDE PARA REDE COLETORA DE ESGOTO, DN 800 MM, JUNTA ELÁSTICA INTEGRADA - FORNECIMENTO E ASSENTAMENTO. AF_01/2021 | C96: M | D96: ATRIBUÍDO SÃO PAULO | E96: 1238.42
A97: 94876 | B97: ASSENTAMENTO DE TUBO DE PEAD CORRUGADO DE DUPLA PAREDE PARA REDE COLETORA DE ESGOTO, DN 800 MM, JUNTA ELÁSTICA INTEGRADA (NÃO INCLUI FORNECIMENTO). AF_01/2021 | C97: M | D97: COEFICIENTE DE REPRESENTATIVIDADE | E97: 32.02
A98: 94878 | B98: ASSENTAMENTO DE TUBO DE PEAD CORRUGADO DE DUPLA PAREDE PARA REDE COLETORA DE ESGOTO, DN 900 MM, JUNTA ELÁSTICA INTEGRADA (NÃO INCLUI FORNECIMENTO). AF_01/2021 | C98: M | D98: COEFICIENTE DE REPRESENTATIVIDADE | E98: 37.12
A99: 94879 | B99: TUBO DE PEAD CORRUGADO DE DUPLA PAREDE PARA REDE COLETORA DE ESGOTO, DN 1000 MM, JUNTA ELÁSTICA INTEGRADA - FORNECIMENTO E ASSENTAMENTO. AF_01/2021 | C99: M | D99: ATRIBUÍDO SÃO PAULO | E99: 1906.04
A100: 94880 | B100: ASSENTAMENTO DE TUBO DE PEAD CORRUGADO DE DUPLA PAREDE PARA REDE COLETORA DE ESGOTO, DN 1000 MM, JUNTA ELÁSTICA INTEGRADA (NÃO INCLUI FORNECIMENTO). AF_01/2021 | C100: M | D100: COEFICIENTE DE REPRESENTATIVIDADE | E100: 47.59
A101: 94881 | B101: TUBO DE PEAD CORRUGADO DE DUPLA PAREDE PARA REDE COLETORA DE ESGOTO, DN 1200 MM, JUNTA ELÁSTICA INTEGRADA - FORNECIMENTO E ASSENTAMENTO. AF_01/2021 | C101: M | D101: ATRIBUÍDO SÃO PAULO | E101: 2623.9
A102: 94882 | B102: ASSENTAMENTO DE TUBO DE PEAD CORRUGADO DE DUPLA PAREDE PARA REDE COLETORA DE ESGOTO, DN 1200 MM, JUNTA ELÁSTICA INTEGRADA (NÃO INCLUI FORNECIMENTO). AF_01/2021 | C102: M | D102: COEFICIENTE DE REPRESENTATIVIDADE | E102: 55.41
A103: 94884 | B103: ASSENTAMENTO DE TUBO DE PEAD CORRUGADO DE DUPLA PAREDE PARA REDE COLETORA DE ESGOTO, DN 1500 MM, JUNTA ELÁSTICA INTEGRADA (NÃO INCLUI FORNECIMENTO). AF_01/2021 | C103: M | D103: COEFICIENTE DE REPRESENTATIVIDADE | E103: 71.3
A104: 97121 | B104: ASSENTAMENTO DE TUBO DE PVC PBA PARA REDE DE ÁGUA, DN 50 MM, JUNTA ELÁSTICA INTEGRADA, INSTALADO EM LOCAL COM NÍVEL ALTO DE INTERFERÊNCIAS (NÃO INCLUI FORNECIMENTO). AF_11/2017 | C104: M | D104: COEFICIENTE DE REPRESENTATIVIDADE | E104: 2.27
A105: 97122 | B105: ASSENTAMENTO DE TUBO DE PVC PBA PARA REDE DE ÁGUA, DN 75 MM, JUNTA ELÁSTICA INTEGRADA, INSTALADO EM LOCAL COM NÍVEL ALTO DE INTERFERÊNCIAS (NÃO INCLUI FORNECIMENTO). AF_11/2017 | C105: M | D105: COEFICIENTE DE REPRESENTATIVIDADE | E105: 3.14
A106: 97123 | B106: ASSENTAMENTO DE TUBO DE PVC PBA PARA REDE DE ÁGUA, DN 100 MM, JUNTA ELÁSTICA INTEGRADA, INSTALADO EM LOCAL COM NÍVEL ALTO DE INTERFERÊNCIAS (NÃO INCLUI FORNECIMENTO). AF_11/2017 | C106: M | D106: COEFICIENTE DE REPRESENTATIVIDADE | E106: 3.99
A107: 97124 | B107: ASSENTAMENTO DE TUBO DE PVC PBA PARA REDE DE ÁGUA, DN 50 MM, JUNTA ELÁSTICA INTEGRADA, INSTALADO EM LOCAL COM NÍVEL BAIXO DE INTERFERÊNCIAS (NÃO INCLUI FORNECIMENTO). AF_11/2017 | C107: M | D107: COEFICIENTE DE REPRESENTATIVIDADE | E107: 1
A108: 97125 | B108: ASSENTAMENTO DE TUBO DE PVC PBA PARA REDE DE ÁGUA, DN 75 MM, JUNTA ELÁSTICA INTEGRADA, INSTALADO EM LOCAL COM NÍVEL BAIXO DE INTERFERÊNCIAS (NÃO INCLUI FORNECIMENTO). AF_11/2017 | C108: M | D108: COEFICIENTE DE REPRESENTATIVIDADE | E108: 1.4
A109: 97126 | B109: ASSENTAMENTO DE TUBO DE PVC PBA PARA REDE DE ÁGUA, DN 100 MM, JUNTA ELÁSTICA INTEGRADA, INSTALADO EM LOCAL COM NÍVEL BAIXO DE INTERFERÊNCIAS (NÃO INCLUI FORNECIMENTO). AF_11/2017 | C109: M | D109: COEFICIENTE DE REPRESENTATIVIDADE | E109: 1.79
A110: 102264 | B110: TUBO DE PVC BRANCO PARA REDE COLETORA DE ESGOTO CONDOMINIAL DE PAREDE MACIÇA, DN 100 MM, JUNTA ELÁSTICA - FORNECIMENTO E ASSENTAMENTO. AF_01/2021 | C110: M | D110: COEFICIENTE DE REPRESENTATIVIDADE | E110: 22.01
A111: 102265 | B111: JUNTA ARGAMASSADA ENTRE TUBO DN 800 MM E O POÇO DE VISITA/ CAIXA DE CONCRETO OU ALVENARIA EM REDES DE ESGOTO. AF_01/2021 | C111: UN | D111: COEFICIENTE DE REPRESENTATIVIDADE | E111: 116.12
A112: 102266 | B112: JUNTA ARGAMASSADA ENTRE TUBO DN 900 MM E O POÇO DE VISITA/ CAIXA DE CONCRETO OU ALVENARIA EM REDES DE ESGOTO. AF_01/2021 | C112: UN | D112: COEFICIENTE DE REPRESENTATIVIDADE | E112: 128.78
A113: 102267 | B113: JUNTA ARGAMASSADA ENTRE TUBO DN 1000 MM E O POÇO DE VISITA/ CAIXA DE CONCRETO OU ALVENARIA EM REDES DE ESGOTO. AF_01/2021 | C113: UN | D113: COEFICIENTE DE REPRESENTATIVIDADE | E113: 147.87
A114: 102268 | B114: JUNTA ARGAMASSADA ENTRE TUBO DN 1200 MM E O POÇO DE VISITA/ CAIXA DE CONCRETO OU ALVENARIA EM REDES DE ESGOTO. AF_01/2021 | C114: UN | D114: COEFICIENTE DE REPRESENTATIVIDADE | E114: 166.88
A115: 102269 | B115: JUNTA ARGAMASSADA ENTRE TUBO DN 1500 MM E O POÇO DE VISITA/ CAIXA DE CONCRETO OU ALVENARIA EM REDES DE ESGOTO. AF_01/2021 | C115: UN | D115: COEFICIENTE DE REPRESENTATIVIDADE | E115: 204.89
A116: 92833 | B116: TUBO DE CONCRETO PARA REDES COLETORAS DE ESGOTO SANITÁRIO, DIÂMETRO DE 300 MM, JUNTA ELÁSTICA, INSTALADO EM LOCAL COM BAIXO NÍVEL DE INTERFERÊNCIAS - FORNECIMENTO E ASSENTAMENTO. AF_12/2015 | C116: M | D116: COEFICIENTE DE REPRESENTATIVIDADE | E116: 178.44
A117: 92834 | B117: ASSENTAMENTO DE TUBO DE CONCRETO PARA REDES COLETORAS DE ESGOTO SANITÁRIO, DIÂMETRO DE 300 MM, JUNTA ELÁSTICA, INSTALADO EM LOCAL COM BAIXO NÍVEL DE INTERFERÊNCIAS (NÃO INCLUI FORNECIMENTO). AF_12/2015 | C117: M | D117: COEFICIENTE DE REPRESENTATIVIDADE | E117: 10.3
A118: 92835 | B118: TUBO DE CONCRETO PARA REDES COLETORAS DE ESGOTO SANITÁRIO, DIÂMETRO DE 400 MM, JUNTA ELÁSTICA, INSTALADO EM LOCAL COM BAIXO NÍVEL DE INTERFERÊNCIAS - FORNECIMENTO E ASSENTAMENTO. AF_12/2015 | C118: M | D118: COEFICIENTE DE REPRESENTATIVIDADE | E118: 187.77
A119: 92836 | B119: ASSENTAMENTO DE TUBO DE CONCRETO PARA REDES COLETORAS DE ESGOTO SANITÁRIO, DIÂMETRO DE 400 MM, JUNTA ELÁSTICA, INSTALADO EM LOCAL COM BAIXO NÍVEL DE INTERFERÊNCIAS (NÃO INCLUI FORNECIMENTO). AF_12/2015 | C119: M | D119: COEFICIENTE DE REPRESENTATIVIDADE | E119: 13.16
A120: 92837 | B120: TUBO DE CONCRETO PARA REDES COLETORAS DE ESGOTO SANITÁRIO, DIÂMETRO DE 500 MM, JUNTA ELÁSTICA, INSTALADO EM LOCAL COM BAIXO NÍVEL DE INTERFERÊNCIAS - FORNECIMENTO E ASSENTAMENTO. AF_12/2015 | C120: M | D120: COEFICIENTE DE REPRESENTATIVIDADE | E120: 328.73
A121: 92838 | B121: ASSENTAMENTO DE TUBO DE CONCRETO PARA REDES COLETORAS DE ESGOTO SANITÁRIO, DIÂMETRO DE 500 MM, JUNTA ELÁSTICA, INSTALADO EM LOCAL COM BAIXO NÍVEL DE INTERFERÊNCIAS (NÃO INCLUI FORNECIMENTO). AF_12/2015 | C121: M | D121: COEFICIENTE DE REPRESENTATIVIDADE | E121: 15.78
A122: 92839 | B122: TUBO DE CONCRETO PARA REDES COLETORAS DE ESGOTO SANITÁRIO, DIÂMETRO DE 600 MM, JUNTA ELÁSTICA, INSTALADO EM LOCAL COM BAIXO NÍVEL DE INTERFERÊNCIAS - FORNECIMENTO E ASSENTAMENTO. AF_12/2015 | C122: M | D122: COEFICIENTE DE REPRESENTATIVIDADE | E122: 401.95
A123: 92840 | B123: ASSENTAMENTO DE TUBO DE CONCRETO PARA REDES COLETORAS DE ESGOTO SANITÁRIO, DIÂMETRO DE 600 MM, JUNTA ELÁSTICA, INSTALADO EM LOCAL COM BAIXO NÍVEL DE INTERFERÊNCIAS (NÃO INCLUI FORNECIMENTO). AF_12/2015 | C123: M | D123: COEFICIENTE DE REPRESENTATIVIDADE | E123: 18.71
A124: 92841 | B124: TUBO DE CONCRETO PARA REDES COLETORAS DE ESGOTO SANITÁRIO, DIÂMETRO DE 700 MM, JUNTA ELÁSTICA, INSTALADO EM LOCAL COM BAIXO NÍVEL DE INTERFERÊNCIAS - FORNECIMENTO E ASSENTAMENTO. AF_12/2015 | C124: M | D124: COEFICIENTE DE REPRESENTATIVIDADE | E124: 523.17
A125: 92842 | B125: ASSENTAMENTO DE TUBO DE CONCRETO PARA REDES COLETORAS DE ESGOTO SANITÁRIO, DIÂMETRO DE 700 MM, JUNTA ELÁSTICA, INSTALADO EM LOCAL COM BAIXO NÍVEL DE INTERFERÊNCIAS (NÃO INCLUI FORNECIMENTO). AF_12/2015 | C125: M | D125: COEFICIENTE DE REPRESENTATIVIDADE | E125: 21.34
A126: 92843 | B126: TUBO DE CONCRETO PARA REDES COLETORAS DE ESGOTO SANITÁRIO, DIÂMETRO DE 800 MM, JUNTA ELÁSTICA, INSTALADO EM LOCAL COM BAIXO NÍVEL DE INTERFERÊNCIAS - FORNECIMENTO E ASSENTAMENTO. AF_12/2015 | C126: M | D126: COEFICIENTE DE REPRESENTATIVIDADE | E126: 543.41
A127: 92844 | B127: ASSENTAMENTO DE TUBO DE CONCRETO PARA REDES COLETORAS DE ESGOTO SANITÁRIO, DIÂMETRO DE 800 MM, JUNTA ELÁSTICA, INSTALADO EM LOCAL COM BAIXO NÍVEL DE INTERFERÊNCIAS (NÃO INCLUI FORNECIMENTO). AF_12/2015 | C127: M | D127: COEFICIENTE DE REPRESENTATIVIDADE | E127: 24.28
A128: 92845 | B128: TUBO DE CONCRETO PARA REDES COLETORAS DE ESGOTO SANITÁRIO, DIÂMETRO DE 900 MM, JUNTA ELÁSTICA, INSTALADO EM LOCAL COM BAIXO NÍVEL DE INTERFERÊNCIAS - FORNECIMENTO E ASSENTAMENTO. AF_12/2015 | C128: M | D128: COEFICIENTE DE REPRESENTATIVIDADE | E128: 801.03
A129: 92846 | B129: ASSENTAMENTO DE TUBO DE CONCRETO PARA REDES COLETORAS DE ESGOTO SANITÁRIO, DIÂMETRO DE 900 MM, JUNTA ELÁSTICA, INSTALADO EM LOCAL COM BAIXO NÍVEL DE INTERFERÊNCIAS (NÃO INCLUI FORNECIMENTO). AF_12/2015 | C129: M | D129: COEFICIENTE DE REPRESENTATIVIDADE | E129: 26.89
A130: 92847 | B130: TUBO DE CONCRETO PARA REDES COLETORAS DE ESGOTO SANITÁRIO, DIÂMETRO DE 1000 MM, JUNTA ELÁSTICA, INSTALADO EM LOCAL COM BAIXO NÍVEL DE INTERFERÊNCIAS - FORNECIMENTO E ASSENTAMENTO. AF_12/2015 | C130: M | D130: COEFICIENTE DE REPRESENTATIVIDADE | E130: 825.2
A131: 92848 | B131: ASSENTAMENTO DE TUBO DE CONCRETO PARA REDES COLETORAS DE ESGOTO SANITÁRIO, DIÂMETRO DE 1000 MM, JUNTA ELÁSTICA, INSTALADO EM LOCAL COM BAIXO NÍVEL DE INTERFERÊNCIAS (NÃO INCLUI FORNECIMENTO). AF_12/2015 | C131: M | D131: COEFICIENTE DE REPRESENTATIVIDADE | E131: 29.85
A132: 92849 | B132: TUBO DE CONCRETO PARA REDES COLETORAS DE ESGOTO SANITÁRIO, DIÂMETRO DE 300 MM, JUNTA ELÁSTICA, INSTALADO EM LOCAL COM ALTO NÍVEL DE INTERFERÊNCIAS - FORNECIMENTO E ASSENTAMENTO. AF_12/2015 | C132: M | D132: COEFICIENTE DE REPRESENTATIVIDADE | E132: 187.63
A133: 92850 | B133: ASSENTAMENTO DE TUBO DE CONCRETO PARA REDES COLETORAS DE ESGOTO SANITÁRIO, DIÂMETRO DE 300 MM, JUNTA ELÁSTICA, INSTALADO EM LOCAL COM ALTO NÍVEL DE INTERFERÊNCIAS (NÃO INCLUI FORNECIMENTO). AF_12/2015 | C133: M | D133: COEFICIENTE DE REPRESENTATIVIDADE | E133: 19.49
A134: 92851 | B134: TUBO DE CONCRETO PARA REDES COLETORAS DE ESGOTO SANITÁRIO, DIÂMETRO DE 400 MM, JUNTA ELÁSTICA, INSTALADO EM LOCAL COM ALTO NÍVEL DE INTERFERÊNCIAS - FORNECIMENTO E ASSENTAMENTO. AF_12/2015 | C134: M | D134: COEFICIENTE DE REPRESENTATIVIDADE | E134: 199.21
A135: 92852 | B135: ASSENTAMENTO DE TUBO DE CONCRETO PARA REDES COLETORAS DE ESGOTO SANITÁRIO, DIÂMETRO DE 400 MM, JUNTA ELÁSTICA, INSTALADO EM LOCAL COM ALTO NÍVEL DE INTERFERÊNCIAS (NÃO INCLUI FORNECIMENTO). AF_12/2015 | C135: M | D135: COEFICIENTE DE REPRESENTATIVIDADE | E135: 24.6
A136: 92853 | B136: TUBO DE CONCRETO PARA REDES COLETORAS DE ESGOTO SANITÁRIO, DIÂMETRO DE 500 MM, JUNTA ELÁSTICA, INSTALADO EM LOCAL COM ALTO NÍVEL DE INTERFERÊNCIAS - FORNECIMENTO E ASSENTAMENTO. AF_12/2015 | C136: M | D136: COEFICIENTE DE REPRESENTATIVIDADE | E136: 342.89
A137: 92854 | B137: ASSENTAMENTO DE TUBO DE CONCRETO PARA REDES COLETORAS DE ESGOTO SANITÁRIO, DIÂMETRO DE 500 MM, JUNTA ELÁSTICA, INSTALADO EM LOCAL COM ALTO NÍVEL DE INTERFERÊNCIAS (NÃO INCLUI FORNECIMENTO). AF_12/2015 | C137: M | D137: COEFICIENTE DE REPRESENTATIVIDADE | E137: 29.94
A138: 92855 | B138: TUBO DE CONCRETO PARA REDES COLETORAS DE ESGOTO SANITÁRIO, DIÂMETRO DE 600 MM, JUNTA ELÁSTICA, INSTALADO EM LOCAL COM ALTO NÍVEL DE INTERFERÊNCIAS - FORNECIMENTO E ASSENTAMENTO. AF_12/2015 | C138: M | D138: COEFICIENTE DE REPRESENTATIVIDADE | E138: 418.53
A139: 92856 | B139: ASSENTAMENTO DE TUBO DE CONCRETO PARA REDES COLETORAS DE ESGOTO SANITÁRIO, DIÂMETRO DE 600 MM, JUNTA ELÁSTICA, INSTALADO EM LOCAL COM ALTO NÍVEL DE INTERFERÊNCIAS (NÃO INCLUI FORNECIMENTO). AF_12/2015 | C139: M | D139: COEFICIENTE DE REPRESENTATIVIDADE | E139: 35.29
A140: 92857 | B140: TUBO DE CONCRETO PARA REDES COLETORAS DE ESGOTO SANITÁRIO, DIÂMETRO DE 700 MM, JUNTA ELÁSTICA, INSTALADO EM LOCAL COM ALTO NÍVEL DE INTERFERÊNCIAS - FORNECIMENTO E ASSENTAMENTO. AF_12/2015 | C140: M | D140: COEFICIENTE DE REPRESENTATIVIDADE | E140: 542.21
A141: 92858 | B141: ASSENTAMENTO DE TUBO DE CONCRETO PARA REDES COLETORAS DE ESGOTO SANITÁRIO, DIÂMETRO DE 700 MM, JUNTA ELÁSTICA, INSTALADO EM LOCAL COM ALTO NÍVEL DE INTERFERÊNCIAS (NÃO INCLUI FORNECIMENTO). AF_12/2015 | C141: M | D141: COEFICIENTE DE REPRESENTATIVIDADE | E141: 40.38
A142: 92859 | B142: TUBO DE CONCRETO PARA REDES COLETORAS DE ESGOTO SANITÁRIO, DIÂMETRO DE 800 MM, JUNTA ELÁSTICA, INSTALADO EM LOCAL COM ALTO NÍVEL DE INTERFERÊNCIAS - FORNECIMENTO E ASSENTAMENTO. AF_12/2015 | C142: M | D142: COEFICIENTE DE REPRESENTATIVIDADE | E142: 564.99
A143: 92860 | B143: ASSENTAMENTO DE TUBO DE CONCRETO PARA REDES COLETORAS DE ESGOTO SANITÁRIO, DIÂMETRO DE 800 MM, JUNTA ELÁSTICA, INSTALADO EM LOCAL COM ALTO NÍVEL DE INTERFERÊNCIAS (NÃO INCLUI FORNECIMENTO). AF_12/2015 | C143: M | D143: COEFICIENTE DE REPRESENTATIVIDADE | E143: 45.86
A144: 92861 | B144: TUBO DE CONCRETO PARA REDES COLETORAS DE ESGOTO SANITÁRIO, DIÂMETRO DE 900 MM, JUNTA ELÁSTICA, INSTALADO EM LOCAL COM ALTO NÍVEL DE INTERFERÊNCIAS - FORNECIMENTO E ASSENTAMENTO. AF_12/2015 | C144: M | D144: COEFICIENTE DE REPRESENTATIVIDADE | E144: 825.32
A145: 92862 | B145: ASSENTAMENTO DE TUBO DE CONCRETO PARA REDES COLETORAS DE ESGOTO SANITÁRIO, DIÂMETRO DE 900 MM, JUNTA ELÁSTICA, INSTALADO EM LOCAL COM ALTO NÍVEL DE INTERFERÊNCIAS (NÃO INCLUI FORNECIMENTO). AF_12/2015 | C145: M | D145: COEFICIENTE DE REPRESENTATIVIDADE | E145: 51.18
A146: 92863 | B146: TUBO DE CONCRETO PARA REDES COLETORAS DE ESGOTO SANITÁRIO, DIÂMETRO DE 1000 MM, JUNTA ELÁSTICA, INSTALADO EM LOCAL COM ALTO NÍVEL DE INTERFERÊNCIAS - FORNECIMENTO E ASSENTAMENTO. AF_12/2015 | C146: M | D146: COEFICIENTE DE REPRESENTATIVIDADE | E146: 851.9
A147: 92864 | B147: ASSENTAMENTO DE TUBO DE CONCRETO PARA REDES COLETORAS DE ESGOTO SANITÁRIO, DIÂMETRO DE 1000 MM, JUNTA ELÁSTICA, INSTALADO EM LOCAL COM ALTO NÍVEL DE INTERFERÊNCIAS (NÃO INCLUI FORNECIMENTO). AF_12/2015 | C147: M | D147: COEFICIENTE DE REPRESENTATIVIDADE | E147: 56.55
A148: 92210 | B148: TUBO DE CONCRETO PARA REDES COLETORAS DE ÁGUAS PLUVIAIS, DIÂMETRO DE 400 MM, JUNTA RÍGIDA, INSTALADO EM LOCAL COM BAIXO NÍVEL DE INTERFERÊNCIAS - FORNECIMENTO E ASSENTAMENTO. AF_12/2015 | C148: M | D148: COEFICIENTE DE REPRESENTATIVIDADE | E148: 157.66
A149: 92211 | B149: TUBO DE CONCRETO PARA REDES COLETORAS DE ÁGUAS PLUVIAIS, DIÂMETRO DE 500 MM, JUNTA RÍGIDA, INSTALADO EM LOCAL COM BAIXO NÍVEL DE INTERFERÊNCIAS - FORNECIMENTO E ASSENTAMENTO. AF_12/2015 | C149: M | D149: COEFICIENTE DE REPRESENTATIVIDADE | E149: 189.78
A150: 92212 | B150: TUBO DE CONCRETO PARA REDES COLETORAS DE ÁGUAS PLUVIAIS, DIÂMETRO DE 600 MM, JUNTA RÍGIDA, INSTALADO EM LOCAL COM BAIXO NÍVEL DE INTERFERÊNCIAS - FORNECIMENTO E ASSENTAMENTO. AF_12/2015 | C150: M | D150: COEFICIENTE DE REPRESENTATIVIDADE | E150: 276.33
A151: 92213 | B151: TUBO DE CONCRETO PARA REDES COLETORAS DE ÁGUAS PLUVIAIS, DIÂMETRO DE 700 MM, JUNTA RÍGIDA, INSTALADO EM LOCAL COM BAIXO NÍVEL DE INTERFERÊNCIAS - FORNECIMENTO E ASSENTAMENTO. AF_12/2015 | C151: M | D151: COEFICIENTE DE REPRESENTATIVIDADE | E151: 358.98
A152: 92214 | B152: TUBO DE CONCRETO PARA REDES COLETORAS DE ÁGUAS PLUVIAIS, DIÂMETRO DE 800 MM, JUNTA RÍGIDA, INSTALADO EM LOCAL COM BAIXO NÍVEL DE INTERFERÊNCIAS - FORNECIMENTO E ASSENTAMENTO. AF_12/2015 | C152: M | D152: COEFICIENTE DE REPRESENTATIVIDADE | E152: 432.56
A153: 92215 | B153: TUBO DE CONCRETO PARA REDES COLETORAS DE ÁGUAS PLUVIAIS, DIÂMETRO DE 900 MM, JUNTA RÍGIDA, INSTALADO EM LOCAL COM BAIXO NÍVEL DE INTERFERÊNCIAS - FORNECIMENTO E ASSENTAMENTO. AF_12/2015 | C153: M | D153: COEFICIENTE DE REPRESENTATIVIDADE | E153: 496.97
A154: 92216 | B154: TUBO DE CONCRETO PARA REDES COLETORAS DE ÁGUAS PLUVIAIS, DIÂMETRO DE 1000 MM, JUNTA RÍGIDA, INSTALADO EM LOCAL COM BAIXO NÍVEL DE INTERFERÊNCIAS - FORNECIMENTO E ASSENTAMENTO. AF_12/2015 | C154: M | D154: COEFICIENTE DE REPRESENTATIVIDADE | E154: 524.54
A155: 92219 | B155: TUBO DE CONCRETO PARA REDES COLETORAS DE ÁGUAS PLUVIAIS, DIÂMETRO DE 400 MM, JUNTA RÍGIDA, INSTALADO EM LOCAL COM ALTO NÍVEL DE INTERFERÊNCIAS - FORNECIMENTO E ASSENTAMENTO. AF_12/2015 | C155: M | D155: COEFICIENTE DE REPRESENTATIVIDADE | E155: 169.09
A156: 92220 | B156: TUBO DE CONCRETO PARA REDES COLETORAS DE ÁGUAS PLUVIAIS, DIÂMETRO DE 500 MM, JUNTA RÍGIDA, INSTALADO EM LOCAL COM ALTO NÍVEL DE INTERFERÊNCIAS - FORNECIMENTO E ASSENTAMENTO. AF_12/2015 | C156: M | D156: COEFICIENTE DE REPRESENTATIVIDADE | E156: 203.95
A157: 92221 | B157: TUBO DE CONCRETO PARA REDES COLETORAS DE ÁGUAS PLUVIAIS, DIÂMETRO DE 600 MM, JUNTA RÍGIDA, INSTALADO EM LOCAL COM ALTO NÍVEL DE INTERFERÊNCIAS - FORNECIMENTO E ASSENTAMENTO. AF_12/2015 | C157: M | D157: COEFICIENTE DE REPRESENTATIVIDADE | E157: 292.93
A158: 92222 | B158: TUBO DE CONCRETO PARA REDES COLETORAS DE ÁGUAS PLUVIAIS, DIÂMETRO DE 700 MM, JUNTA RÍGIDA, INSTALADO EM LOCAL COM ALTO NÍVEL DE INTERFERÊNCIAS - FORNECIMENTO E ASSENTAMENTO. AF_12/2015 | C158: M | D158: COEFICIENTE DE REPRESENTATIVIDADE | E158: 378.28
A159: 92223 | B159: TUBO DE CONCRETO PARA REDES COLETORAS DE ÁGUAS PLUVIAIS, DIÂMETRO DE 800 MM, JUNTA RÍGIDA, INSTALADO EM LOCAL COM ALTO NÍVEL DE INTERFERÊNCIAS - FORNECIMENTO E ASSENTAMENTO. AF_12/2015 | C159: M | D159: COEFICIENTE DE REPRESENTATIVIDADE | E159: 454.15
A160: 92224 | B160: TUBO DE CONCRETO PARA REDES COLETORAS DE ÁGUAS PLUVIAIS, DIÂMETRO DE 900 MM, JUNTA RÍGIDA, INSTALADO EM LOCAL COM ALTO NÍVEL DE INTERFERÊNCIAS - FORNECIMENTO E ASSENTAMENTO. AF_12/2015 | C160: M | D160: COEFICIENTE DE REPRESENTATIVIDADE | E160: 520.92
A161: 92226 | B161: TUBO DE CONCRETO PARA REDES COLETORAS DE ÁGUAS PLUVIAIS, DIÂMETRO DE 1000 MM, JUNTA RÍGIDA, INSTALADO EM LOCAL COM ALTO NÍVEL DE INTERFERÊNCIAS - FORNECIMENTO E ASSENTAMENTO. AF_12/2015 | C161: M | D161: COEFICIENTE DE REPRESENTATIVIDADE | E161: 551.34
A162: 92808 | B162: ASSENTAMENTO DE TUBO DE CONCRETO PARA REDES COLETORAS DE ÁGUAS PLUVIAIS, DIÂMETRO DE 300 MM, JUNTA RÍGIDA, INSTALADO EM LOCAL COM BAIXO NÍVEL DE INTERFERÊNCIAS (NÃO INCLUI FORNECIMENTO). AF_12/2015 | C162: M | D162: COEFICIENTE DE REPRESENTATIVIDADE | E162: 46.49
A163: 92809 | B163: ASSENTAMENTO DE TUBO DE CONCRETO PARA REDES COLETORAS DE ÁGUAS PLUVIAIS, DIÂMETRO DE 400 MM, JUNTA RÍGIDA, INSTALADO EM LOCAL COM BAIXO NÍVEL DE INTERFERÊNCIAS (NÃO INCLUI FORNECIMENTO). AF_12/2015 | C163: M | D163: COEFICIENTE DE REPRESENTATIVIDADE | E163: 59.72
A164: 92810 | B164: ASSENTAMENTO DE TUBO DE CONCRETO PARA REDES COLETORAS DE ÁGUAS PLUVIAIS, DIÂMETRO DE 500 MM, JUNTA RÍGIDA, INSTALADO EM LOCAL COM BAIXO NÍVEL DE INTERFERÊNCIAS (NÃO INCLUI FORNECIMENTO). AF_12/2015 | C164: M | D164: COEFICIENTE DE REPRESENTATIVIDADE | E164: 72.74
A165: 92811 | B165: ASSENTAMENTO DE TUBO DE CONCRETO PARA REDES COLETORAS DE ÁGUAS PLUVIAIS, DIÂMETRO DE 600 MM, JUNTA RÍGIDA, INSTALADO EM LOCAL COM BAIXO NÍVEL DE INTERFERÊNCIAS (NÃO INCLUI FORNECIMENTO). AF_12/2015 | C165: M | D165: COEFICIENTE DE REPRESENTATIVIDADE | E165: 86.81
A166: 92812 | B166: ASSENTAMENTO DE TUBO DE CONCRETO PARA REDES COLETORAS DE ÁGUAS PLUVIAIS, DIÂMETRO DE 700 MM, JUNTA RÍGIDA, INSTALADO EM LOCAL COM BAIXO NÍVEL DE INTERFERÊNCIAS (NÃO INCLUI FORNECIMENTO). AF_12/2015 | C166: M | D166: COEFICIENTE DE REPRESENTATIVIDADE | E166: 100.67
A167: 92813 | B167: ASSENTAMENTO DE TUBO DE CONCRETO PARA REDES COLETORAS DE ÁGUAS PLUVIAIS, DIÂMETRO DE 800 MM, JUNTA RÍGIDA, INSTALADO EM LOCAL COM BAIXO NÍVEL DE INTERFERÊNCIAS (NÃO INCLUI FORNECIMENTO). AF_12/2015 | C167: M | D167: COEFICIENTE DE REPRESENTATIVIDADE | E167: 117.23
A168: 92814 | B168: ASSENTAMENTO DE TUBO DE CONCRETO PARA REDES COLETORAS DE ÁGUAS PLUVIAIS, DIÂMETRO DE 900 MM, JUNTA RÍGIDA, INSTALADO EM LOCAL COM BAIXO NÍVEL DE INTERFERÊNCIAS (NÃO INCLUI FORNECIMENTO). AF_12/2015 | C168: M | D168: COEFICIENTE DE REPRESENTATIVIDADE | E168: 134.66
A169: 92815 | B169: ASSENTAMENTO DE TUBO DE CONCRETO PARA REDES COLETORAS DE ÁGUAS PLUVIAIS, DIÂMETRO DE 1000 MM, JUNTA RÍGIDA, INSTALADO EM LOCAL COM BAIXO NÍVEL DE INTERFERÊNCIAS (NÃO INCLUI FORNECIMENTO). AF_12/2015 | C169: M | D169: COEFICIENTE DE REPRESENTATIVIDADE | E169: 155.06
A170: 92816 | B170: TUBO DE CONCRETO PARA REDES COLETORAS DE ÁGUAS PLUVIAIS, DIÂMETRO DE 1200 MM, JUNTA RÍGIDA, INSTALADO EM LOCAL COM BAIXO NÍVEL DE INTERFERÊNCIAS - FORNECIMENTO E ASSENTAMENTO. AF_12/2015 | C170: M | D170: COEFICIENTE DE REPRESENTATIVIDADE | E170: 745.84
A171: 92817 | B171: ASSENTAMENTO DE TUBO DE CONCRETO PARA REDES COLETORAS DE ÁGUAS PLUVIAIS, DIÂMETRO DE 1200 MM, JUNTA RÍGIDA, INSTALADO EM LOCAL COM BAIXO NÍVEL DE INTERFERÊNCIAS (NÃO INCLUI FORNECIMENTO). AF_12/2015 | C171: M | D171: COEFICIENTE DE REPRESENTATIVIDADE | E171: 194.01
A172: 92818 | B172: TUBO DE CONCRETO PARA REDES COLETORAS DE ÁGUAS PLUVIAIS, DIÂMETRO DE 1500 MM, JUNTA RÍGIDA, INSTALADO EM LOCAL COM BAIXO NÍVEL DE INTERFERÊNCIAS - FORNECIMENTO E ASSENTAMENTO. AF_12/2015 | C172: M | D172: COEFICIENTE DE REPRESENTATIVIDADE | E172: 1060.66
A173: 92819 | B173: ASSENTAMENTO DE TUBO DE CONCRETO PARA REDES COLETORAS DE ÁGUAS PLUVIAIS, DIÂMETRO DE 1500 MM, JUNTA RÍGIDA, INSTALADO EM LOCAL COM BAIXO NÍVEL DE INTERFERÊNCIAS (NÃO INCLUI FORNECIMENTO). AF_12/2015 | C173: M | D173: COEFICIENTE DE REPRESENTATIVIDADE | E173: 261.18
A174: 92820 | B174: ASSENTAMENTO DE TUBO DE CONCRETO PARA REDES COLETORAS DE ÁGUAS PLUVIAIS, DIÂMETRO DE 300 MM, JUNTA RÍGIDA, INSTALADO EM LOCAL COM ALTO NÍVEL DE INTERFERÊNCIAS (NÃO INCLUI FORNECIMENTO). AF_12/2015 | C174: M | D174: COEFICIENTE DE REPRESENTATIVIDADE | E174: 55.43
A175: 92821 | B175: ASSENTAMENTO DE TUBO DE CONCRETO PARA REDES COLETORAS DE ÁGUAS PLUVIAIS, DIÂMETRO DE 400 MM, JUNTA RÍGIDA, INSTALADO EM LOCAL COM ALTO NÍVEL DE INTERFERÊNCIAS (NÃO INCLUI FORNECIMENTO). AF_12/2015 | C175: M | D175: COEFICIENTE DE REPRESENTATIVIDADE | E175: 71.15
A176: 92822 | B176: ASSENTAMENTO DE TUBO DE CONCRETO PARA REDES COLETORAS DE ÁGUAS PLUVIAIS, DIÂMETRO DE 500 MM, JUNTA RÍGIDA, INSTALADO EM LOCAL COM ALTO NÍVEL DE INTERFERÊNCIAS (NÃO INCLUI FORNECIMENTO). AF_12/2015 | C176: M | D176: COEFICIENTE DE REPRESENTATIVIDADE | E176: 86.91
A177: 92824 | B177: ASSENTAMENTO DE TUBO DE CONCRETO PARA REDES COLETORAS DE ÁGUAS PLUVIAIS, DIÂMETRO DE 600 MM, JUNTA RÍGIDA, INSTALADO EM LOCAL COM ALTO NÍVEL DE INTERFERÊNCIAS (NÃO INCLUI FORNECIMENTO). AF_12/2015 | C177: M | D177: COEFICIENTE DE REPRESENTATIVIDADE | E177: 103.41
A178: 92825 | B178: ASSENTAMENTO DE TUBO DE CONCRETO PARA REDES COLETORAS DE ÁGUAS PLUVIAIS, DIÂMETRO DE 700 MM, JUNTA RÍGIDA, INSTALADO EM LOCAL COM ALTO NÍVEL DE INTERFERÊNCIAS (NÃO INCLUI FORNECIMENTO). AF_12/2015 | C178: M | D178: COEFICIENTE DE REPRESENTATIVIDADE | E178: 119.97
A179: 92826 | B179: ASSENTAMENTO DE TUBO DE CONCRETO PARA REDES COLETORAS DE ÁGUAS PLUVIAIS, DIÂMETRO DE 800 MM, JUNTA RÍGIDA, INSTALADO EM LOCAL COM ALTO NÍVEL DE INTERFERÊNCIAS (NÃO INCLUI FORNECIMENTO). AF_12/2015 | C179: M | D179: COEFICIENTE DE REPRESENTATIVIDADE | E179: 138.82
A180: 92827 | B180: ASSENTAMENTO DE TUBO DE CONCRETO PARA REDES COLETORAS DE ÁGUAS PLUVIAIS, DIÂMETRO DE 900 MM, JUNTA RÍGIDA, INSTALADO EM LOCAL COM ALTO NÍVEL DE INTERFERÊNCIAS (NÃO INCLUI FORNECIMENTO). AF_12/2015 | C180: M | D180: COEFICIENTE DE REPRESENTATIVIDADE | E180: 158.61
A181: 92828 | B181: ASSENTAMENTO DE TUBO DE CONCRETO PARA REDES COLETORAS DE ÁGUAS PLUVIAIS, DIÂMETRO DE 1000 MM, JUNTA RÍGIDA, INSTALADO EM LOCAL COM ALTO NÍVEL DE INTERFERÊNCIAS (NÃO INCLUI FORNECIMENTO). AF_12/2015 | C181: M | D181: COEFICIENTE DE REPRESENTATIVIDADE | E181: 181.86
A182: 92829 | B182: TUBO DE CONCRETO PARA REDES COLETORAS DE ÁGUAS PLUVIAIS, DIÂMETRO DE 1200 MM, JUNTA RÍGIDA, INSTALADO EM LOCAL COM ALTO NÍVEL DE INTERFERÊNCIAS - FORNECIMENTO E ASSENTAMENTO. AF_12/2015 | C182: M | D182: COEFICIENTE DE REPRESENTATIVIDADE | E182: 777.43
A183: 92830 | B183: ASSENTAMENTO DE TUBO DE CONCRETO PARA REDES COLETORAS DE ÁGUAS PLUVIAIS, DIÂMETRO DE 1200 MM, JUNTA RÍGIDA, INSTALADO EM LOCAL COM ALTO NÍVEL DE INTERFERÊNCIAS (NÃO INCLUI FORNECIMENTO). AF_12/2015 | C183: M | D183: COEFICIENTE DE REPRESENTATIVIDADE | E183: 225.6
A184: 92831 | B184: TUBO DE CONCRETO PARA REDES COLETORAS DE ÁGUAS PLUVIAIS, DIÂMETRO DE 1500 MM, JUNTA RÍGIDA, INSTALADO EM LOCAL COM ALTO NÍVEL DE INTERFERÊNCIAS - FORNECIMENTO E ASSENTAMENTO. AF_12/2015 | C184: M | D184: COEFICIENTE DE REPRESENTATIVIDADE | E184: 1099.4
A185: 92832 | B185: ASSENTAMENTO DE TUBO DE CONCRETO PARA REDES COLETORAS DE ÁGUAS PLUVIAIS, DIÂMETRO DE 1500 MM, JUNTA RÍGIDA, INSTALADO EM LOCAL COM ALTO NÍVEL DE INTERFERÊNCIAS (NÃO INCLUI FORNECIMENTO). AF_12/2015 | C185: M | D185: COEFICIENTE DE REPRESENTATIVIDADE | E185: 299.92
A186: 95565 | B186: TUBO DE CONCRETO PARA REDES COLETORAS DE ÁGUAS PLUVIAIS, DIÂMETRO DE 300MM, JUNTA RÍGIDA, INSTALADO EM LOCAL COM BAIXO NÍVEL DE INTERFERÊNCIAS - FORNECIMENTO E ASSENTAMENTO. AF_12/2015 | C186: M | D186: COEFICIENTE DE REPRESENTATIVIDADE | E186: 133.27
A187: 95566 | B187: TUBO DE CONCRETO PARA REDES COLETORAS DE ÁGUAS PLUVIAIS, DIÂMETRO DE 300MM, JUNTA RÍGIDA, INSTALADO EM LOCAL COM ALTO NÍVEL DE INTERFERÊNCIAS - FORNECIMENTO E ASSENTAMENTO. AF_12/2015 | C187: M | D187: COEFICIENTE DE REPRESENTATIVIDADE | E187: 142.21
A188: 95567 | B188: TUBO DE CONCRETO (SIMPLES) PARA REDES COLETORAS DE ÁGUAS PLUVIAIS, DIÂMETRO DE 300 MM, JUNTA RÍGIDA, INSTALADO EM LOCAL COM BAIXO NÍVEL DE INTERFERÊNCIAS - FORNECIMENTO E ASSENTAMENTO. AF_12/2015 | C188: M | D188: COEFICIENTE DE REPRESENTATIVIDADE | E188: 123.74
A189: 95568 | B189: TUBO DE CONCRETO (SIMPLES) PARA REDES COLETORAS DE ÁGUAS PLUVIAIS, DIÂMETRO DE 400 MM, JUNTA RÍGIDA, INSTALADO EM LOCAL COM BAIXO NÍVEL DE INTERFERÊNCIAS - FORNECIMENTO E ASSENTAMENTO. AF_12/2015 | C189: M | D189: COEFICIENTE DE REPRESENTATIVIDADE | E189: 151
A190: 95569 | B190: TUBO DE CONCRETO (SIMPLES) PARA REDES COLETORAS DE ÁGUAS PLUVIAIS, DIÂMETRO DE 500 MM, JUNTA RÍGIDA, INSTALADO EM LOCAL COM BAIXO NÍVEL DE INTERFERÊNCIAS - FORNECIMENTO E ASSENTAMENTO. AF_12/2015 | C190: M | D190: COEFICIENTE DE REPRESENTATIVIDADE | E190: 208.59
A191: 95570 | B191: TUBO DE CONCRETO (SIMPLES) PARA REDES COLETORAS DE ÁGUAS PLUVIAIS, DIÂMETRO DE 300 MM, JUNTA RÍGIDA, INSTALADO EM LOCAL COM ALTO NÍVEL DE INTERFERÊNCIAS - FORNECIMENTO E ASSENTAMENTO. AF_12/2015 | C191: M | D191: COEFICIENTE DE REPRESENTATIVIDADE | E191: 132.68
A192: 95571 | B192: TUBO DE CONCRETO (SIMPLES) PARA REDES COLETORAS DE ÁGUAS PLUVIAIS, DIÂMETRO DE 400 MM, JUNTA RÍGIDA, INSTALADO EM LOCAL COM ALTO NÍVEL DE INTERFERÊNCIAS - FORNECIMENTO E ASSENTAMENTO. AF_12/2015 | C192: M | D192: COEFICIENTE DE REPRESENTATIVIDADE | E192: 162.43
A193: 95572 | B193: TUBO DE CONCRETO (SIMPLES) PARA REDES COLETORAS DE ÁGUAS PLUVIAIS, DIÂMETRO DE 500 MM, JUNTA RÍGIDA, INSTALADO EM LOCAL COM ALTO NÍVEL DE INTERFERÊNCIAS - FORNECIMENTO E ASSENTAMENTO. AF_12/2015 | C193: M | D193: COEFICIENTE DE REPRESENTATIVIDADE | E193: 222.76
A194: 97127 | B194: ASSENTAMENTO DE TUBO DE PVC DEFOFO OU PRFV OU RPVC PARA REDE DE ÁGUA, DN 150 MM, JUNTA ELÁSTICA INTEGRADA, INSTALADO EM LOCAL COM NÍVEL ALTO DE INTERFERÊNCIAS (NÃO INCLUI FORNECIMENTO). AF_11/2017 | C194: M | D194: COEFICIENTE DE REPRESENTATIVIDADE | E194: 5.72
A195: 97128 | B195: ASSENTAMENTO DE TUBO DE PVC DEFOFO OU PRFV OU RPVC PARA REDE DE ÁGUA, DN 200 MM, JUNTA ELÁSTICA INTEGRADA, INSTALADO EM LOCAL COM NÍVEL ALTO DE INTERFERÊNCIAS (NÃO INCLUI FORNECIMENTO). AF_11/2017 | C195: M | D195: ATRIBUÍDO SÃO PAULO | E195: 10.99
A196: 97129 | B196: ASSENTAMENTO DE TUBO DE PVC DEFOFO OU PRFV OU RPVC PARA REDE DE ÁGUA, DN 250 MM, JUNTA ELÁSTICA INTEGRADA, INSTALADO EM LOCAL COM NÍVEL ALTO DE INTERFERÊNCIAS (NÃO INCLUI FORNECIMENTO). AF_11/2017 | C196: M | D196: ATRIBUÍDO SÃO PAULO | E196: 13.53
A197: 97130 | B197: ASSENTAMENTO DE TUBO DE PVC DEFOFO OU PRFV OU RPVC PARA REDE DE ÁGUA, DN 300 MM, JUNTA ELÁSTICA INTEGRADA, INSTALADO EM LOCAL COM NÍVEL ALTO DE INTERFERÊNCIAS (NÃO INCLUI FORNECIMENTO). AF_11/2017 | C197: M | D197: ATRIBUÍDO SÃO PAULO | E197: 16.06
A198: 97131 | B198: ASSENTAMENTO DE TUBO DE PVC DEFOFO OU PRFV OU RPVC PARA REDE DE ÁGUA, DN 350 MM, JUNTA ELÁSTICA INTEGRADA, INSTALADO EM LOCAL COM NÍVEL ALTO DE INTERFERÊNCIAS (NÃO INCLUI FORNECIMENTO). AF_11/2017 | C198: M | D198: ATRIBUÍDO SÃO PAULO | E198: 18.57
A199: 97132 | B199: ASSENTAMENTO DE TUBO DE PVC DEFOFO OU PRFV OU RPVC PARA REDE DE ÁGUA, DN 400 MM, JUNTA ELÁSTICA INTEGRADA, INSTALADO EM LOCAL COM NÍVEL ALTO DE INTERFERÊNCIAS (NÃO INCLUI FORNECIMENTO). AF_11/2017 | C199: M | D199: ATRIBUÍDO SÃO PAULO | E199: 21.08
A200: 97133 | B200: ASSENTAMENTO DE TUBO DE PVC DEFOFO OU PRFV OU RPVC PARA REDE DE ÁGUA, DN 500 MM, JUNTA ELÁSTICA INTEGRADA, INSTALADO EM LOCAL COM NÍVEL ALTO DE INTERFERÊNCIAS (NÃO INCLUI FORNECIMENTO). AF_11/2017 | C200: M | D200: ATRIBUÍDO SÃO PAULO | E200: 26.15
A201: 97134 | B201: ASSENTAMENTO DE TUBO DE PVC DEFOFO OU PRFV OU RPVC PARA REDE DE ÁGUA, DN 150 MM, JUNTA ELÁSTICA INTEGRADA, INSTALADO EM LOCAL COM NÍVEL BAIXO DE INTERFERÊNCIAS (NÃO INCLUI FORNECIMENTO). AF_11/2017 | C201: M | D201: COEFICIENTE DE REPRESENTATIVIDADE | E201: 2.59
... 7294 more rows

Sheet COMP. SICRO
A1: 307731 | B1: Aparelho de apoio de neoprene fretado para estruturas moldadas no local - fornecimento e instalação | C1: dm³ | D1: 109.67
A2: 307732 | B2: Aparelho de apoio de neoprene fretado para estruturas pré-moldadas - fornecimento e instalação | C2: dm³ | D2: 87.12
A3: 308308 | B3: Aparelho de apoio metálico elastomérico fixo com capacidade de 1.500 kN - fornecimento e instalação | C3: un | D3: 14244.33
A4: 308313 | B4: Aparelho de apoio metálico elastomérico fixo com capacidade de 10.000 kN - fornecimento e instalação | C4: un | D4: 93315.58
A5: 308309 | B5: Aparelho de apoio metálico elastomérico fixo com capacidade de 2.500 kN - fornecimento e instalação | C5: un | D5: 23261.08
A6: 308310 | B6: Aparelho de apoio metálico elastomérico fixo com capacidade de 4.000 kN - fornecimento e instalação | C6: un | D6: 37452.39
A7: 308311 | B7: Aparelho de apoio metálico elastomérico fixo com capacidade de 5.500 kN - fornecimento e instalação | C7: un | D7: 50260.82
A8: 308312 | B8: Aparelho de apoio metálico elastomérico fixo com capacidade de 7.500 kN - fornecimento e instalação | C8: un | D8: 68943.94
A9: 308307 | B9: Aparelho de apoio metálico elastomérico fixo com capacidade de 700 kN - fornecimento e instalação | C9: un | D9: 9538.67
A10: 308322 | B10: Aparelho de apoio metálico elastomérico multidirecional com capacidade de 1.500 kN - fornecimento e instalação | C10: un | D10: 8651.92
A11: 308327 | B11: Aparelho de apoio metálico elastomérico multidirecional com capacidade de 10.000 kN - fornecimento e instalação | C11: un | D11: 56227.7
A12: 308323 | B12: Aparelho de apoio metálico elastomérico multidirecional com capacidade de 2.500 kN - fornecimento e instalação | C12: un | D12: 12020.96
A13: 308324 | B13: Aparelho de apoio metálico elastomérico multidirecional com capacidade de 4.000 kN - fornecimento e instalação | C13: un | D13: 20004.39
A14: 308325 | B14: Aparelho de apoio metálico elastomérico multidirecional com capacidade de 5.500 kN - fornecimento e instalação | C14: un | D14: 28726.7
A15: 308326 | B15: Aparelho de apoio metálico elastomérico multidirecional com capacidade de 7.500 kN - fornecimento e instalação | C15: un | D15: 40626.28
A16: 308321 | B16: Aparelho de apoio metálico elastomérico multidirecional com capacidade de 700 kN - fornecimento e instalação | C16: un | D16: 5009.27
A17: 308315 | B17: Aparelho de apoio metálico elastomérico unidirecional com capacidade de 1.500 kN - fornecimento e instalação | C17: un | D17: 10236.42
A18: 308320 | B18: Aparelho de apoio metálico elastomérico unidirecional com capacidade de 10.000 kN - fornecimento e instalação | C18: un | D18: 58861.16
A19: 308316 | B19: Aparelho de apoio metálico elastomérico unidirecional com capacidade de 2.500 kN - fornecimento e instalação | C19: un | D19: 15572.6
A20: 308317 | B20: Aparelho de apoio metálico elastomérico unidirecional com capacidade de 4.000 kN - fornecimento e instalação | C20: un | D20: 25070.15
A21: 308318 | B21: Aparelho de apoio metálico elastomérico unidirecional com capacidade de 5.500 kN - fornecimento e instalação | C21: un | D21: 32566.3
A22: 308319 | B22: Aparelho de apoio metálico elastomérico unidirecional com capacidade de 7.500 kN - fornecimento e instalação | C22: un | D22: 45183.88
A23: 308314 | B23: Aparelho de apoio metálico elastomérico unidirecional com capacidade de 700 kN - fornecimento e instalação | C23: un | D23: 7165.28
A24: 308250 | B24: Aparelho de apoio metálico esférico fixo com capacidade de 1.000 kN - fornecimento e instalação | C24: un | D24: 5847.5
A25: 308251 | B25: Aparelho de apoio metálico esférico fixo com capacidade de 1.500 kN - fornecimento e instalação | C25: un | D25: 8678.38
A26: 308268 | B26: Aparelho de apoio metálico esférico fixo com capacidade de 10.000 kN - fornecimento e instalação | C26: un | D26: 129247.93
A27: 308252 | B27: Aparelho de apoio metálico esférico fixo com capacidade de 2.000 kN - fornecimento e instalação | C27: un | D27: 10976.77
A28: 308253 | B28: Aparelho de apoio metálico esférico fixo com capacidade de 2.500 kN - fornecimento e instalação | C28: un | D28: 13849.56
A29: 308254 | B29: Aparelho de apoio metálico esférico fixo com capacidade de 3.000 kN - fornecimento e instalação | C29: un | D29: 15907.39
A30: 308255 | B30: Aparelho de apoio metálico esférico fixo com capacidade de 3.500 kN - fornecimento e instalação | C30: un | D30: 19205.44
A31: 308256 | B31: Aparelho de apoio metálico esférico fixo com capacidade de 4.000 kN - fornecimento e instalação | C31: un | D31: 22637.32
A32: 308257 | B32: Aparelho de apoio metálico esférico fixo com capacidade de 4.500 kN - fornecimento e instalação | C32: un | D32: 57201.04
A33: 308258 | B33: Aparelho de apoio metálico esférico fixo com capacidade de 5.000 kN - fornecimento e instalação | C33: un | D33: 63593.77
A34: 308259 | B34: Aparelho de apoio metálico esférico fixo com capacidade de 5.500 kN - fornecimento e instalação | C34: un | D34: 68952.33
A35: 308260 | B35: Aparelho de apoio metálico esférico fixo com capacidade de 6.000 kN - fornecimento e instalação | C35: un | D35: 74364.39
A36: 308261 | B36: Aparelho de apoio metálico esférico fixo com capacidade de 6.500 kN - fornecimento e instalação | C36: un | D36: 84493.43
A37: 308262 | B37: Aparelho de apoio metálico esférico fixo com capacidade de 7.000 kN - fornecimento e instalação | C37: un | D37: 87199.25
A38: 308263 | B38: Aparelho de apoio metálico esférico fixo com capacidade de 7.500 kN - fornecimento e instalação | C38: un | D38: 97417.28
A39: 308264 | B39: Aparelho de apoio metálico esférico fixo com capacidade de 8.000 kN - fornecimento e instalação | C39: un | D39: 104172.75
A40: 308265 | B40: Aparelho de apoio metálico esférico fixo com capacidade de 8.500 kN - fornecimento e instalação | C40: un | D40: 106712.55
A41: 308266 | B41: Aparelho de apoio metálico esférico fixo com capacidade de 9.000 kN - fornecimento e instalação | C41: un | D41: 115318.29
A42: 308267 | B42: Aparelho de apoio metálico esférico fixo com capacidade de 9.500 kN - fornecimento e instalação | C42: un | D42: 121597.21
A43: 308288 | B43: Aparelho de apoio metálico esférico multidirecional com capacidade de 1.000 kN - fornecimento e instalação | C43: un | D43: 11368.07
A44: 308289 | B44: Aparelho de apoio metálico esférico multidirecional com capacidade de 1.500 kN - fornecimento e instalação | C44: un | D44: 15668.77
A45: 308306 | B45: Aparelho de apoio metálico esférico multidirecional com capacidade de 10.000 kN - fornecimento e instalação | C45: un | D45: 104073.93
A46: 308290 | B46: Aparelho de apoio metálico esférico multidirecional com capacidade de 2.000 kN - fornecimento e instalação | C46: un | D46: 20538.48
A47: 308291 | B47: Aparelho de apoio metálico esférico multidirecional com capacidade de 2.500 kN - fornecimento e instalação | C47: un | D47: 25211.81
A48: 308292 | B48: Aparelho de apoio metálico esférico multidirecional com capacidade de 3.000 kN - fornecimento e instalação | C48: un | D48: 29316.03
A49: 308293 | B49: Aparelho de apoio metálico esférico multidirecional com capacidade de 3.500 kN - fornecimento e instalação | C49: un | D49: 33590.09
A50: 308294 | B50: Aparelho de apoio metálico esférico multidirecional com capacidade de 4.000 kN - fornecimento e instalação | C50: un | D50: 38592.87
A51: 308295 | B51: Aparelho de apoio metálico esférico multidirecional com capacidade de 4.500 kN - fornecimento e instalação | C51: un | D51: 44116.19
A52: 308296 | B52: Aparelho de apoio metálico esférico multidirecional com capacidade de 5.000 kN - fornecimento e instalação | C52: un | D52: 49467.65
A53: 308297 | B53: Aparelho de apoio metálico esférico multidirecional com capacidade de 5.500 kN - fornecimento e instalação | C53: un | D53: 53549.02
A54: 308298 | B54: Aparelho de apoio metálico esférico multidirecional com capacidade de 6.000 kN - fornecimento e instalação | C54: un | D54: 61135.77
A55: 308299 | B55: Aparelho de apoio metálico esférico multidirecional com capacidade de 6.500 kN - fornecimento e instalação | C55: un | D55: 65936.47
A56: 308300 | B56: Aparelho de apoio metálico esférico multidirecional com capacidade de 7.000 kN - fornecimento e instalação | C56: un | D56: 70815.75
A57: 308301 | B57: Aparelho de apoio metálico esférico multidirecional com capacidade de 7.500 kN - fornecimento e instalação | C57: un | D57: 75381.6
A58: 308302 | B58: Aparelho de apoio metálico esférico multidirecional com capacidade de 8.000 kN - fornecimento e instalação | C58: un | D58: 81241.37
A59: 308303 | B59: Aparelho de apoio metálico esférico multidirecional com capacidade de 8.500 kN - fornecimento e instalação | C59: un | D59: 87769.85
A60: 308304 | B60: Aparelho de apoio metálico esférico multidirecional com capacidade de 9.000 kN - fornecimento e instalação | C60: un | D60: 92501.24
A61: 308305 | B61: Aparelho de apoio metálico esférico multidirecional com capacidade de 9.500 kN - fornecimento e instalação | C61: un | D61: 98760.97
A62: 308269 | B62: Aparelho de apoio metálico esférico unidirecional com capacidade de 1.000 kN - fornecimento e instalação | C62: un | D62: 6492.86
A63: 308270 | B63: Aparelho de apoio metálico esférico unidirecional com capacidade de 1.500 kN - fornecimento e instalação | C63: un | D63: 9888.55
A64: 308287 | B64: Aparelho de apoio metálico esférico unidirecional com capacidade de 10.000 kN - fornecimento e instalação | C64: un | D64: 114755.08
A65: 308271 | B65: Aparelho de apoio metálico esférico unidirecional com capacidade de 2.000 kN - fornecimento e instalação | C65: un | D65: 12022.79
A66: 308272 | B66: Aparelho de apoio metálico esférico unidirecional com capacidade de 2.500 kN - fornecimento e instalação | C66: un | D66: 14967.14
A67: 308273 | B67: Aparelho de apoio metálico esférico unidirecional com capacidade de 3.000 kN - fornecimento e instalação | C67: un | D67: 18411.68
A68: 308274 | B68: Aparelho de apoio metálico esférico unidirecional com capacidade de 3.500 kN - fornecimento e instalação | C68: un | D68: 20866.71
A69: 308275 | B69: Aparelho de apoio metálico esférico unidirecional com capacidade de 4.000 kN - fornecimento e instalação | C69: un | D69: 31243.19
A70: 308276 | B70: Aparelho de apoio metálico esférico unidirecional com capacidade de 4.500 kN - fornecimento e instalação | C70: un | D70: 51489.09
A71: 308277 | B71: Aparelho de apoio metálico esférico unidirecional com capacidade de 5.000 kN - fornecimento e instalação | C71: un | D71: 56930.27
A72: 308278 | B72: Aparelho de apoio metálico esférico unidirecional com capacidade de 5.500 kN - fornecimento e instalação | C72: un | D72: 61998.22
A73: 308279 | B73: Aparelho de apoio metálico esférico unidirecional com capacidade de 6.000 kN - fornecimento e instalação | C73: un | D73: 67005.18
A74: 308280 | B74: Aparelho de apoio metálico esférico unidirecional com capacidade de 6.500 kN - fornecimento e instalação | C74: un | D74: 74193.45
A75: 308281 | B75: Aparelho de apoio metálico esférico unidirecional com capacidade de 7.000 kN - fornecimento e instalação | C75: un | D75: 79814.36
A76: 308282 | B76: Aparelho de apoio metálico esférico unidirecional com capacidade de 7.500 kN - fornecimento e instalação | C76: un | D76: 86374.15
A77: 308283 | B77: Aparelho de apoio metálico esférico unidirecional com capacidade de 8.000 kN - fornecimento e instalação | C77: un | D77: 91138.75
A78: 308284 | B78: Aparelho de apoio metálico esférico unidirecional com capacidade de 8.500 kN - fornecimento e instalação | C78: un | D78: 98528.67
A79: 308285 | B79: Aparelho de apoio metálico esférico unidirecional com capacidade de 9.000 kN - fornecimento e instalação | C79: un | D79: 104460.64
A80: 308286 | B80: Aparelho de apoio metálico esférico unidirecional com capacidade de 9.500 kN - fornecimento e instalação | C80: un | D80: 110303.31
A81: 307733 | B81: Junta de dilatação em elastômero e perfil VV - L = 20 mm e H = 40 mm - fornecimento e instalação | C81: m | D81: 456.07
A82: 307734 | B82: Junta de dilatação em elastômero e perfil VV - L = 25 mm e H = 50 mm - fornecimento e instalação | C82: m | D82: 583.02
A83: 307735 | B83: Junta de dilatação em elastômero e perfil VV - L = 35 mm e H = 60 mm - fornecimento e instalação | C83: m | D83: 960.31
A84: 307736 | B84: Junta de dilatação em elastômero e perfil VV - L = 40 mm e H = 70 mm - fornecimento e instalação | C84: m | D84: 1295.56
A85: 307737 | B85: Junta de dilatação em elastômero e perfil VV - L = 50 mm e H = 80 mm - fornecimento e instalação | C85: m | D85: 1590.83
A86: 307730 | B86: Junta de dilatação em perfil extrudado de borracha vulcanizada | C86: m | D86: 0
A87: 307084 | B87: Lábios poliméricos em junta de pavimento de concreto - L = 20 mm e H = 30 mm - confecção e assentamento | C87: m | D87: 28.86
A88: 407818 | B88: Armação em aço CA-25 - fornecimento, preparo e colocação | C88: kg | D88: 14.69
A89: 407819 | B89: Armação em aço CA-50 - fornecimento, preparo e colocação | C89: kg | D89: 14.21
A90: 407820 | B90: Armação em aço CA-60 - fornecimento, preparo e colocação | C90: kg | D90: 15.9
A91: 407740 | B91: Chumbador tipo espera em aço CA-25 para fixação de estrutura metálica em concreto - fornecimento e instalação | C91: kg | D91: 17.15
A92: 408037 | B92: Luva de emenda com rosca cônica para aço CA-50 - D = 12,5 mm - fornecimento e instalação | C92: un | D92: 29.15
A93: 408038 | B93: Luva de emenda com rosca cônica para aço CA-50 - D = 16 mm - fornecimento e instalação | C93: un | D93: 39.53
A94: 408039 | B94: Luva de emenda com rosca cônica para aço CA-50 - D = 20 mm - fornecimento e instalação | C94: un | D94: 53.16
A95: 408041 | B95: Luva de emenda com rosca cônica para aço CA-50 - D = 25 mm - fornecimento e instalação | C95: un | D95: 76.35
A96: 408042 | B96: Luva de emenda com rosca cônica para aço CA-50 - D = 32 mm - fornecimento e instalação | C96: un | D96: 114.56
A97: 408031 | B97: Luva de emenda prensada para aço CA-50 - D = 12,5 mm - fornecimento e instalação | C97: un | D97: 26.68
A98: 408032 | B98: Luva de emenda prensada para aço CA-50 - D = 16 mm - fornecimento e instalação | C98: un | D98: 37.02
A99: 408033 | B99: Luva de emenda prensada para aço CA-50 - D = 20 mm - fornecimento e instalação | C99: un | D99: 53.41
A100: 408035 | B100: Luva de emenda prensada para aço CA-50 - D = 25 mm - fornecimento e instalação | C100: un | D100: 92.84
A101: 408036 | B101: Luva de emenda prensada para aço CA-50 - D = 32 mm - fornecimento e instalação | C101: un | D101: 186.86
A102: 408067 | B102: Tela de aço eletrossoldada - fornecimento, preparo e colocação | C102: kg | D102: 15.44
A103: 407743 | B103: Treliça nervurada três barras longitudinais interligadas por duas diagonais sinusoidal - fornecimento e instalação | C103: kg | D103: 16.56
A104: 607137 | B104: Arco metálico galvanizado tipo MP 152S - arco alto - vão = 10,08 m e altura = 6,12 m - aterro rodoviário mínimo = 0,90 m e máximo = 5,00 m - areia e brita comerciais | C104: m | D104: 61881.05
A105: 606785 | B105: Arco metálico galvanizado tipo MP 152S - arco alto - vão = 10,08 m e altura = 6,12 m - aterro rodoviário mínimo = 0,90 m e máximo = 5,00 m - areia extraída e brita produzida | C105: m | D105: 61110.48
A106: 607139 | B106: Arco metálico galvanizado tipo MP 152S - arco alto - vão = 10,31 m e altura = 6,17 m - aterro rodoviário mínimo = 0,90 m e máximo = 4,90 m - areia e brita comerciais | C106: m | D106: 62768.65
A107: 606787 | B107: Arco metálico galvanizado tipo MP 152S - arco alto - vão = 10,31 m e altura = 6,17 m - aterro rodoviário mínimo = 0,90 m e máximo = 4,90 m - areia extraída e brita produzida | C107: m | D107: 61624.4
A108: 607140 | B108: Arco metálico galvanizado tipo MP 152S - arco alto - vão = 10,36 m e altura = 5,38 m - aterro rodoviário mínimo = 1,20 m e máximo = 3,60 m - areia e brita comerciais | C108: m | D108: 57294.32
A109: 606788 | B109: Arco metálico galvanizado tipo MP 152S - arco alto - vão = 10,36 m e altura = 5,38 m - aterro rodoviário mínimo = 1,20 m e máximo = 3,60 m - areia extraída e brita produzida | C109: m | D109: 56940.61
A110: 607141 | B110: Arco metálico galvanizado tipo MP 152S - arco alto - vão = 10,54 m e altura = 6,05 m - aterro rodoviário mínimo = 1,20 m e máximo = 4,20 m - areia e brita comerciais | C110: m | D110: 63860.25
A111: 606789 | B111: Arco metálico galvanizado tipo MP 152S - arco alto - vão = 10,54 m e altura = 6,05 m - aterro rodoviário mínimo = 1,20 m e máximo = 4,20 m - areia extraída e brita produzida | C111: m | D111: 63059.6
A112: 607144 | B112: Arco metálico galvanizado tipo MP 152S - arco alto - vão = 10,57 m e altura = 5,41 m - aterro rodoviário mínimo = 1,20 m e máximo = 4,10 m - areia e brita comerciais | C112: m | D112: 74608.52
A113: 606792 | B113: Arco metálico galvanizado tipo MP 152S - arco alto - vão = 10,57 m e altura = 5,41 m - aterro rodoviário mínimo = 1,20 m e máximo = 4,10 m - areia extraída e brita produzida | C113: m | D113: 73875.84
A114: 607142 | B114: Arco metálico galvanizado tipo MP 152S - arco alto - vão = 10,74 m e altura = 6,48 m - aterro rodoviário mínimo = 1,20 m e máximo = 4,70 m - areia e brita comerciais | C114: m | D114: 67022.11
A115: 606790 | B115: Arco metálico galvanizado tipo MP 152S - arco alto - vão = 10,74 m e altura = 6,48 m - aterro rodoviário mínimo = 1,20 m e máximo = 4,70 m - areia extraída e brita produzida | C115: m | D115: 66157.49
A116: 607145 | B116: Arco metálico galvanizado tipo MP 152S - arco alto - vão = 10,77 m e altura = 6,10 m - aterro rodoviário mínimo = 1,20 m e máximo = 4,70 m - areia e brita comerciais | C116: m | D116: 82462.47
A117: 606793 | B117: Arco metálico galvanizado tipo MP 152S - arco alto - vão = 10,77 m e altura = 6,10 m - aterro rodoviário mínimo = 1,20 m e máximo = 4,70 m - areia extraída e brita produzida | C117: m | D117: 81637.27
A118: 607146 | B118: Arco metálico galvanizado tipo MP 152S - arco alto - vão = 10,97 m e altura = 6,53 m - aterro rodoviário mínimo = 1,20 m e máximo = 4,70 m - areia e brita comerciais | C118: m | D118: 86018.43
A119: 606794 | B119: Arco metálico galvanizado tipo MP 152S - arco alto - vão = 10,97 m e altura = 6,53 m - aterro rodoviário mínimo = 1,20 m e máximo = 4,70 m - areia extraída e brita produzida | C119: m | D119: 85128.48
A120: 607143 | B120: Arco metálico galvanizado tipo MP 152S - arco alto - vão = 11,35 m e altura = 7,12 m - aterro rodoviário mínimo = 1,20 m e máximo = 4,70 m - areia e brita comerciais | C120: m | D120: 72443.64
A121: 606791 | B121: Arco metálico galvanizado tipo MP 152S - arco alto - vão = 11,35 m e altura = 7,12 m - aterro rodoviário mínimo = 1,20 m e máximo = 4,70 m - areia extraída e brita produzida | C121: m | D121: 71447.42
A122: 607147 | B122: Arco metálico galvanizado tipo MP 152S - arco alto - vão = 11,58 m e altura = 7,16 m - aterro rodoviário mínimo = 1,20 m e máximo = 6,40 m - areia e brita comerciais | C122: m | D122: 92829.15
A123: 606795 | B123: Arco metálico galvanizado tipo MP 152S - arco alto - vão = 11,58 m e altura = 7,16 m - aterro rodoviário mínimo = 1,20 m e máximo = 6,40 m - areia extraída e brita produzida | C123: m | D123: 91806.73
A124: 607112 | B124: Arco metálico galvanizado tipo MP 152S - arco alto - vão = 6,12 m e altura = 2,77 m - aterro rodoviário mínimo = 0,75 m e máximo = 5,40 m - areia e brita comerciais | C124: m | D124: 30123.86
A125: 606760 | B125: Arco metálico galvanizado tipo MP 152S - arco alto - vão = 6,12 m e altura = 2,77 m - aterro rodoviário mínimo = 0,75 m e máximo = 5,40 m - areia extraída e brita produzida | C125: m | D125: 29854.23
A126: 607113 | B126: Arco metálico galvanizado tipo MP 152S - arco alto - vão = 6,30 m e altura = 3,68 m - aterro rodoviário mínimo = 0,75 m e máximo = 7,50 m - areia e brita comerciais | C126: m | D126: 35290.64
A127: 606761 | B127: Arco metálico galvanizado tipo MP 152S - arco alto - vão = 6,30 m e altura = 3,68 m - aterro rodoviário mínimo = 0,75 m e máximo = 7,50 m - areia extraída e brita produzida | C127: m | D127: 34981.46
A128: 606762 | B128: Arco metálico galvanizado tipo MP 152S - arco alto - vão = 6,55 m e altura = 3,56 m - aterro rodoviário mínimo = 0,75 m e máximo = 4,9 m - areia extraída e brita produzida | C128: m | D128: 34706.57
A129: 607114 | B129: Arco metálico galvanizado tipo MP 152S - arco alto - vão = 6,55 m e altura = 3,56 m - aterro rodoviário mínimo = 0,75 m e máximo = 4,90 m - areia e brita comerciais | C129: m | D129: 35019.34
A130: 607116 | B130: Arco metálico galvanizado tipo MP 152S - arco alto - vão = 6,78 m e altura = 3,61 m - aterro rodoviário mínimo = 0,75 m e máximo = 4,80 m - areia e brita comerciais | C130: m | D130: 37126.59
A131: 606764 | B131: Arco metálico galvanizado tipo MP 152S - arco alto - vão = 6,78 m e altura = 3,61 m - aterro rodoviário mínimo = 0,75 m e máximo = 4,80 m - areia extraída e brita produzida | C131: m | D131: 36797.55
A132: 607115 | B132: Arco metálico galvanizado tipo MP 152S - arco alto - vão = 6,96 m e altura = 4,42 m - aterro rodoviário mínimo = 0,75 m e máximo = 8,10 m - areia e brita comerciais | C132: m | D132: 42191.16
A133: 606763 | B133: Arco metálico galvanizado tipo MP 152S - arco alto - vão = 6,96 m e altura = 4,42 m - aterro rodoviário mínimo = 0,75 m e máximo = 8,10 m - areia extraída e brita produzida | C133: m | D133: 41793.85
A134: 607117 | B134: Arco metálico galvanizado tipo MP 152S - arco alto - vão = 6,99 m e altura = 4,27 m - aterro rodoviário mínimo = 0,75 m e máximo = 5,70 m - areia e brita comerciais | C134: m | D134: 42186.92
A135: 606765 | B135: Arco metálico galvanizado tipo MP 152S - arco alto - vão = 6,99 m e altura = 4,27 m - aterro rodoviário mínimo = 0,75 m e máximo = 5,70 m - areia extraída e brita produzida | C135: m | D135: 41800.2
A136: 607118 | B136: Arco metálico galvanizado tipo MP 152S - arco alto - vão = 7,01 m e altura = 3,63 m - aterro rodoviário mínimo = 0,75 m e máximo = 4,60 m - areia e brita comerciais | C136: m | D136: 37803.92
A137: 606766 | B137: Arco metálico galvanizado tipo MP 152S - arco alto - vão = 7,01 m e altura = 3,63 m - aterro rodoviário mínimo = 0,75 m e máximo = 4,60 m - areia extraída e brita produzida | C137: m | D137: 37461.7
A138: 607120 | B138: Arco metálico galvanizado tipo MP 152S - arco alto - vão = 7,24 m e altura = 3,68 m - aterro rodoviário mínimo = 0,90 m e máximo = 4,4 m - areia e brita comerciais | C138: m | D138: 38486.23
A139: 606768 | B139: Arco metálico galvanizado tipo MP 152S - arco alto - vão = 7,24 m e altura = 3,68 m - aterro rodoviário mínimo = 0,90 m e máximo = 4,40 m - areia extraída e brita produzida | C139: m | D139: 38128.48
A140: 607119 | B140: Arco metálico galvanizado tipo MP 152S - arco alto - vão = 7,42 m e altura = 4,52 m - aterro rodoviário mínimo = 0,90 m e máximo = 6,40 m - areia e brita comerciais | C140: m | D140: 44241.01
A141: 606767 | B141: Arco metálico galvanizado tipo MP 152S - arco alto - vão = 7,42 m e altura = 4,52 m - aterro rodoviário mínimo = 0,90 m e máximo = 6,40 m - areia extraída e brita produzida | C141: m | D141: 43808.65
A142: 607121 | B142: Arco metálico galvanizado tipo MP 152S - arco alto - vão = 7,47 m e altura = 4,19 m - aterro rodoviário mínimo = 0,90 m e máximo = 4,30 m - areia e brita comerciais | C142: m | D142: 41707.69
A143: 606769 | B143: Arco metálico galvanizado tipo MP 152S - arco alto - vão = 7,47 m e altura = 4,19 m - aterro rodoviário mínimo = 0,90 m e máximo = 4,30 m - areia extraída e brita produzida | C143: m | D143: 41297.97
A144: 607123 | B144: Arco metálico galvanizado tipo MP 152S - arco alto - vão = 7,67 m e altura = 3,99 m - aterro rodoviário mínimo = 0,90 m e máximo = 4,10 m - areia e brita comerciais | C144: m | D144: 41123.56
A145: 606771 | B145: Arco metálico galvanizado tipo MP 152S - arco alto - vão = 7,67 m e altura = 3,99 m - aterro rodoviário mínimo = 0,90 m e máximo = 4,10 m - areia extraída e brita produzida | C145: m | D145: 40718.38
A146: 607122 | B146: Arco metálico galvanizado tipo MP 152S - arco alto - vão = 7,85 m e altura = 4,60 m - aterro rodoviário mínimo = 0,90 m e máximo = 6,00 m - areia e brita comerciais | C146: m | D146: 45631.46
A147: 606770 | B147: Arco metálico galvanizado tipo MP 152S - arco alto - vão = 7,85 m e altura = 4,60 m - aterro rodoviário mínimo = 0,90 m e máximo = 6,00 m - areia extraída e brita produzida | C147: m | D147: 45165.53
A148: 607125 | B148: Arco metálico galvanizado tipo MP 152S - arco alto - vão = 7,90 m e altura = 4,04 m - aterro rodoviário mínimo = 0,90 m e máximo = 4,00 m - areia e brita comerciais | C148: m | D148: 42495.06
A149: 606773 | B149: Arco metálico galvanizado tipo MP 152S - arco alto - vão = 7,90 m e altura = 4,04 m - aterro rodoviário mínimo = 0,90 m e máximo = 4,00 m - areia extraída e brita produzida | C149: m | D149: 42071.54
A150: 607124 | B150: Arco metálico galvanizado tipo MP 152S - arco alto - vão = 8,08 m e altura = 4,65 m - aterro rodoviário mínimo = 0,90 m e máximo = 5,80 m - areia e brita comerciais | C150: m | D150: 46357.47
A151: 606772 | B151: Arco metálico galvanizado tipo MP 152S - arco alto - vão = 8,08 m e altura = 4,65 m - aterro rodoviário mínimo = 0,90 m e máximo = 5,80 m - areia extraída e brita produzida | C151: m | D151: 45873.02
A152: 607126 | B152: Arco metálico galvanizado tipo MP 152S - arco alto - vão = 8,31 m e altura = 4,70 m - aterro rodoviário mínimo = 0,90 m e máximo = 5,60 m - areia e brita comerciais | C152: m | D152: 47618.73
A153: 606774 | B153: Arco metálico galvanizado tipo MP 152S - arco alto - vão = 8,31 m e altura = 4,70 m - aterro rodoviário mínimo = 0,90 m e máximo = 5,60 m - areia extraída e brita produzida | C153: m | D153: 47113.96
A154: 607127 | B154: Arco metálico galvanizado tipo MP 152S - arco alto - vão = 8,36 m e altura = 4,11 m - aterro rodoviário mínimo = 0,90 m e máximo = 3,70 m - areia e brita comerciais | C154: m | D154: 43878.21
A155: 606775 | B155: Arco metálico galvanizado tipo MP 152S - arco alto - vão = 8,36 m e altura = 4,11 m - aterro rodoviário mínimo = 0,90 m e máximo = 3,70 m - areia extraída e brita produzida | C155: m | D155: 43422.43
A156: 607129 | B156: Arco metálico galvanizado tipo MP 152S - arco alto - vão = 8,59 m e altura = 4,39 m - aterro rodoviário mínimo = 0,90 m e máximo = 3,60 m - areia e brita comerciais | C156: m | D156: 45904.69
A157: 606777 | B157: Arco metálico galvanizado tipo MP 152S - arco alto - vão = 8,59 m e altura = 4,39 m - aterro rodoviário mínimo = 0,90 m e máximo = 3,60 m - areia extraída e brita produzida | C157: m | D157: 45409.63
A158: 607128 | B158: Arco metálico galvanizado tipo MP 152S - arco alto - vão = 8,97 m e altura = 5,00 m - aterro rodoviário mínimo = 0,90 m e máximo = 5,80 m - areia e brita comerciais | C158: m | D158: 50487.25
A159: 606776 | B159: Arco metálico galvanizado tipo MP 152S - arco alto - vão = 8,97 m e altura = 5,00 m - aterro rodoviário mínimo = 0,90 m e máximo = 5,80 m - areia extraída e brita produzida | C159: m | D159: 49910.4
A160: 607130 | B160: Arco metálico galvanizado tipo MP 152S - arco alto - vão = 9,17 m e altura = 5,49 m - aterro rodoviário mínimo = 0,90 m e máximo = 5,60 m - areia e brita comerciais | C160: m | D160: 53831.2
A161: 606778 | B161: Arco metálico galvanizado tipo MP 152S - arco alto - vão = 9,17 m e altura = 5,49 m - aterro rodoviário mínimo = 0,90 m e máximo = 5,60 m - areia extraída e brita produzida | C161: m | D161: 53195.94
A162: 607131 | B162: Arco metálico galvanizado tipo MP 152S - arco alto - vão = 9,22 m e altura = 4,70 m - aterro rodoviário mínimo = 0,90 m e máximo = 4,10 m - areia e brita comerciais | C162: m | D162: 50503.73
A163: 606779 | B163: Arco metálico galvanizado tipo MP 152S - arco alto - vão = 9,22 m e altura = 4,70 m - aterro rodoviário mínimo = 0,90 m e máximo = 4,10 m - areia extraída e brita produzida | C163: m | D163: 49942.58
A164: 607133 | B164: Arco metálico galvanizado tipo MP 152S - arco alto - vão = 9,45 m e altura = 4,75 m - aterro rodoviário mínimo = 0,90 m e máximo = 4,00 m - areia e brita comerciais | C164: m | D164: 51323.07
A165: 606781 | B165: Arco metálico galvanizado tipo MP 152S - arco alto - vão = 9,45 m e altura = 4,75 m - aterro rodoviário mínimo = 0,90 m e máximo = 4,00 m - areia extraída e brita produzida | C165: m | D165: 50738.8
A166: 607132 | B166: Arco metálico galvanizado tipo MP 152S - arco alto - vão = 9,63 m e altura = 5,59 m - aterro rodoviário mínimo = 0,90 m e máximo = 5,30 m - areia e brita comerciais | C166: m | D166: 55942.15
A167: 606780 | B167: Arco metálico galvanizado tipo MP 152S - arco alto - vão = 9,63 m e altura = 5,59 m - aterro rodoviário mínimo = 0,90 m e máximo = 5,30 m - areia extraída e brita produzida | C167: m | D167: 55261.52
A168: 607134 | B168: Arco metálico galvanizado tipo MP 152S - arco alto - vão = 9,65 m e altura = 5,41 m - aterro rodoviário mínimo = 0,90 m e máximo = 4,70 m - areia e brita comerciais | C168: m | D168: 55385.33
A169: 606782 | B169: Arco metálico galvanizado tipo MP 152S - arco alto - vão = 9,65 m e altura = 5,41 m - aterro rodoviário mínimo = 0,90 m e máximo = 4,70 m - areia extraída e brita produzida | C169: m | D169: 54721.13
A170: 607136 | B170: Arco metálico galvanizado tipo MP 152S - arco alto - vão = 9,68 m e altura = 5,23 m - aterro rodoviário mínimo = 0,90 m e máximo = 3,90 m - areia e brita comerciais | C170: m | D170: 54675.37
A171: 606784 | B171: Arco metálico galvanizado tipo MP 152S - arco alto - vão = 9,68 m e altura = 5,23 m - aterro rodoviário mínimo = 0,90 m e máximo = 3,90 m - areia extraída e brita produzida | C171: m | D171: 54027.15
A172: 607135 | B172: Arco metálico galvanizado tipo MP 152S - arco alto - vão = 9,86 m e altura = 6,07 m - aterro rodoviário mínimo = 0,90 m e máximo = 5,20 m - areia e brita comerciais | C172: m | D172: 60995.96
A173: 606783 | B173: Arco metálico galvanizado tipo MP 152S - arco alto - vão = 9,86 m e altura = 6,07 m - aterro rodoviário mínimo = 0,90 m e máximo = 5,20 m - areia extraída e brita produzida | C173: m | D173: 60250.14
A174: 607138 | B174: Arco metálico galvanizado tipo MP 152S - arco alto - vão = 9,91 m e altura = 5,28 m - aterro rodoviário mínimo = 0,90 m e máximo = 3,80 m - areia e brita comerciais | C174: m | D174: 55616.75
A175: 606786 | B175: Arco metálico galvanizado tipo MP 152S - arco alto - vão = 9,91 m e altura = 5,28 m - aterro rodoviário mínimo = 0,90 m e máximo = 3,80 m - areia extraída e brita produzida | C175: m | D175: 54929.87
A176: 606842 | B176: Arco metálico galvanizado tipo MP 152S - ovoide - vão = 7,21 m e altura = 7,82 m - aterro rodoviário mínimo = 0,75 m e máximo = 6,70 m - areia e brita comerciais | C176: m | D176: 68671.61
A177: 606832 | B177: Arco metálico galvanizado tipo MP 152S - ovoide - vão = 7,21 m e altura = 7,82 m - aterro rodoviário mínimo = 0,75 m e máximo = 6,70 m - areia extraída e brita produzida | C177: m | D177: 68235.37
A178: 606843 | B178: Arco metálico galvanizado tipo MP 152S - ovoide - vão = 7,31 m e altura = 7,87 m - aterro rodoviário mínimo = 0,90 m e máximo = 6,80 m - areia e brita comerciais | C178: m | D178: 71360.22
A179: 606833 | B179: Arco metálico galvanizado tipo MP 152S - ovoide - vão = 7,31 m e altura = 7,87 m - aterro rodoviário mínimo = 0,90 m e máximo = 6,80 m - areia extraída e brita produzida | C179: m | D179: 70903.81
A180: 606845 | B180: Arco metálico galvanizado tipo MP 152S - ovoide - vão = 7,57 m e altura = 8,44 m - aterro rodoviário mínimo = 0,90 m e máximo = 5,60 m - areia e brita comerciais | C180: m | D180: 73944.83
A181: 606835 | B181: Arco metálico galvanizado tipo MP 152S - ovoide - vão = 7,57 m e altura = 8,44 m - aterro rodoviário mínimo = 0,90 m e máximo = 5,60 m - areia extraída e brita produzida | C181: m | D181: 73488.72
A182: 606844 | B182: Arco metálico galvanizado tipo MP 152S - ovoide - vão = 7,77 m e altura = 7,90 m - aterro rodoviário mínimo = 0,90 m e máximo = 6,80 m - areia e brita comerciais | C182: m | D182: 72459.55
A183: 606834 | B183: Arco metálico galvanizado tipo MP 152S - ovoide - vão = 7,77 m e altura = 7,90 m - aterro rodoviário mínimo = 0,90 m e máximo = 6,80 m - areia extraída e brita produzida | C183: m | D183: 71988.94
A184: 606847 | B184: Arco metálico galvanizado tipo MP 152S - ovoide - vão = 8,13 m e altura = 8,01 m - aterro rodoviário mínimo = 0,90 m e máximo = 3,50 m - areia e brita comerciais | C184: m | D184: 77335.68
A185: 606837 | B185: Arco metálico galvanizado tipo MP 152S - ovoide - vão = 8,13 m e altura = 8,01 m - aterro rodoviário mínimo = 0,90 m e máximo = 3,50 m - areia extraída e brita produzida | C185: m | D185: 76823.63
A186: 606846 | B186: Arco metálico galvanizado tipo MP 152S - ovoide - vão = 8,36 m e altura = 8,23 m - aterro rodoviário mínimo = 0,90 m e máximo = 4,30 m - areia e brita comerciais | C186: m | D186: 78267.57
A187: 606836 | B187: Arco metálico galvanizado tipo MP 152S - ovoide - vão = 8,36 m e altura = 8,23 m - aterro rodoviário mínimo = 0,90 m e máximo = 4,30 m - areia extraída e brita produzida | C187: m | D187: 77750.57
A188: 606848 | B188: Arco metálico galvanizado tipo MP 152S - ovoide - vão = 8,56 m e altura = 8,48 m - aterro rodoviário mínimo = 0,90 m e máximo = 5,30 m - areia e brita comerciais | C188: m | D188: 77832.19
A189: 606838 | B189: Arco metálico galvanizado tipo MP 152S - ovoide - vão = 8,56 m e altura = 8,48 m - aterro rodoviário mínimo = 0,90 m e máximo = 5,30 m - areia extraída e brita produzida | C189: m | D189: 77295.08
A190: 606849 | B190: Arco metálico galvanizado tipo MP 152S - ovoide - vão = 8,71 m e altura = 9,32 m - aterro rodoviário mínimo = 0,90 m e máximo = 6,00 m - areia e brita comerciais | C190: m | D190: 84398.91
A191: 606839 | B191: Arco metálico galvanizado tipo MP 152S - ovoide - vão = 8,71 m e altura = 9,32 m - aterro rodoviário mínimo = 0,90 m e máximo = 6,00 m - areia extraída e brita produzida | C191: m | D191: 83873.85
A192: 606850 | B192: Arco metálico galvanizado tipo MP 152S - ovoide - vão = 9,15 m e altura = 9,04 m - aterro rodoviário mínimo = 0,90 m e máximo = 4,70 m - areia e brita comerciais | C192: m | D192: 85121.42
A193: 606840 | B193: Arco metálico galvanizado tipo MP 152S - ovoide - vão = 9,15 m e altura = 9,04 m - aterro rodoviário mínimo = 0,90 m e máximo = 4,70 m - areia extraída e brita produzida | C193: m | D193: 84548.98
A194: 606851 | B194: Arco metálico galvanizado tipo MP 152S - ovoide - vão = 9,15 m e altura = 9,50 m - aterro rodoviário mínimo = 0,90 m e máximo = 5,70 m - areia e brita comerciais | C194: m | D194: 85612.71
A195: 606841 | B195: Arco metálico galvanizado tipo MP 152S - ovoide - vão = 9,15 m e altura = 9,50 m - aterro rodoviário mínimo = 0,90 m e máximo = 5,70 m - areia extraída e brita produzida | C195: m | D195: 85061.84
A196: 605604 | B196: Argamassa de solo-cimento com 10% de cimento e material de jazida - preparo e injeção em tunnel liner | C196: m³ | D196: 345.97
A197: 605695 | B197: Bueiro metálico com chapas múltiplas MP 100 com revestimento em epóxi - D = 0,60 m - brita comercial | C197: m | D197: 1632.81
A198: 605607 | B198: Bueiro metálico com chapas múltiplas MP 100 com revestimento em epóxi - D = 0,60 m - brita produzida | C198: m | D198: 1596.4
A199: 605696 | B199: Bueiro metálico com chapas múltiplas MP 100 com revestimento em epóxi - D = 0,70 m - brita comercial | C199: m | D199: 1879.11
A200: 605608 | B200: Bueiro metálico com chapas múltiplas MP 100 com revestimento em epóxi - D = 0,70 m - brita produzida | C200: m | D200: 1840.41
... 6172 more rows

Sheet EQUIP. SICRO
A1: Código | B1: Descrição | C1: Valor de Aquisição (R$) | D1: Depreciação (R$/h) | E1: Oportunidade de Capital (R$/h) | F1: Seguros e Impostos (R$/h) | G1: Manutenção (R$/h) | H1: Operação (R$/h) | I1: Mão de Obra de Operação (R$/h) | J1: Custo Produtivo (R$/h) | K1: Custo Improdutivo (R$/h)
A2: E9001 | B2: Conjunto vibratório para tubos de concreto com encaixe PB e 3 jogos de fôrmas - D = 0,60 m - 2,20 kW | C2: 77433.5968 | D2: 10.3245 | E2: 2.3888 | F2: 0 | G2: 7.7434 | H2: 0 | I2: 0 | J2: 20.4567 | K2: 12.7133
A3: E9002 | B3: Conjunto vibratório para tubos de concreto com encaixe PB e 3 jogos de fôrmas - D = 0,80 m - 2,20 kW | C3: 84438.9286 | D3: 11.2585 | E3: 2.6049 | F3: 0 | G3: 8.4439 | H3: 0 | I3: 0 | J3: 22.3073 | K3: 13.8634
A4: E9003 | B4: Conjunto vibratório para tubos de concreto com encaixe PB e 3 jogos de fôrmas - D = 1,00 m - 2,20 kW | C4: 92881.9768 | D4: 12.3843 | E4: 2.8654 | F4: 0 | G4: 9.2882 | H4: 0 | I4: 0 | J4: 24.5379 | K4: 15.2497
A5: E9004 | B5: Conjunto vibratório para tubos de concreto com encaixe PB e 3 jogos de fôrmas - D = 1,20 m - 2,20 kW | C5: 93495.1096 | D5: 12.466 | E5: 2.8843 | F5: 0 | G5: 9.3495 | H5: 0 | I5: 0 | J5: 24.6998 | K5: 15.3503
A6: E9005 | B6: Conjunto vibratório para tubos de concreto com encaixe PB e 3 jogos de fôrmas - D = 1,50 m - 2,20 kW | C6: 95612.0551 | D6: 12.7483 | E6: 2.9496 | F6: 0 | G6: 9.5612 | H6: 0 | I6: 0 | J6: 25.2591 | K6: 15.6979
A7: E9006 | B7: Equipamento para sondagem manual | C7: 2423.2113 | D7: 0.4119 | E7: 0.0897 | F7: 0 | G7: 0.2423 | H7: 0 | I7: 0 | J7: 0.7439 | K7: 0.5016
A8: E9007 | B8: Bomba de pistão triplex com capacidade de 7,80 m³/h (130 l/min) - 8,20 kW | C8: 113886.2813 | D8: 9.1109 | E8: 2.108 | F8: 0 | G8: 7.972 | H8: 10.4553 | I8: 0 | J8: 29.6462 | K8: 11.2189
A9: E9008 | B9: Transportador manual de tubos de concreto com capacidade de 1 t | C9: 2796.12 | D9: 2.5165 | E9: 0.1725 | F9: 0 | G9: 1.3981 | H9: 0 | I9: 0 | J9: 4.0871 | K9: 2.689
A10: E9009 | B10: Embarcação rebocadora - 268 kW | C10: 668841.0808 | D10: 8.7089 | E10: 3.8808 | F10: 0 | G10: 19.353 | H10: 341.7088 | I10: 134.0799 | J10: 507.7314 | K10: 146.6696
A11: E9010 | B11: Balança plataforma digital à bateria, com mesa de 75 x 75 cm e capacidade de 500 kg | C11: 4072 | D11: 0.6108 | E11: 0.0837 | F11: 0 | G11: 0.3393 | H11: 0 | I11: 0 | J11: 1.0338 | K11: 0.6945
A12: E9011 | B12: Carro manual modelo plataforma de 200 x 80 cm com capacidade de 800 kg | C12: 2149.9745 | D12: 0.387 | E12: 0.0796 | F12: 0 | G12: 0.215 | H12: 0 | I12: 0 | J12: 0.6816 | K12: 0.4666
A13: E9014 | B13: Deflectômetro de impacto (FWD) instalado em picape com reboque e faixa de carga de 7 a 120 kN - 147 kW | C13: 1979257.019 | D13: 158.3406 | E13: 36.636 | F13: 0 | G13: 98.9629 | H13: 0 | I13: 27.958 | J13: 321.8975 | K13: 222.9346
A14: E9015 | B14: Elevador de obra com capacidade de 1.000 kg - 9 kW | C14: 56440.61 | D14: 4.5152 | E14: 1.0447 | F14: 0 | G14: 3.9508 | H14: 0 | I14: 24.563 | J14: 34.0737 | K14: 30.1229
A15: E9016 | B15: Usina misturadora móvel de reciclagem a frio com sistema de espuma de asfalto - 129 kW | C15: 8484205.863 | D15: 494.912 | E15: 152.6804 | F15: 61.864 | G15: 636.3154 | H15: 121.1952 | I15: 34.3466 | J15: 1501.3136 | K15: 743.803
A16: E9017 | B16: Escavadeira hidráulica sobre esteira com capacidade de 0,4 m³ - 64 kW | C16: 927234.1931 | D16: 64.9064 | E16: 17.1631 | F16: 0 | G16: 64.9064 | H16: 55.833 | I16: 27.7788 | J16: 230.5877 | K16: 109.8483
A17: E9020 | B17: Recicladora a frio - 455 kW | C17: 5004619.02 | D17: 291.9361 | E17: 90.0623 | F17: 0 | G17: 417.0516 | H17: 610.6737 | I17: 34.3466 | J17: 1444.0703 | K17: 416.345
A18: E9021 | B18: Grupo gerador - 456 kVA | C18: 320400 | D18: 16.02 | E18: 5.6482 | F18: 0 | G18: 11.4429 | H18: 465.387 | I18: 0 | J18: 498.4981 | K18: 21.6682
A19: E9022 | B19: Pórtico metálico rolante com capacidade de 25 t - 30 kW | C19: 872084.3798 | D19: 39.2438 | E19: 14.7971 | F19: 0 | G19: 30.523 | H19: 0 | I19: 24.563 | J19: 109.1269 | K19: 78.6039
A20: E9023 | B20: Guindaste móvel sobre esteiras com dragline com capacidade de 1,9 a 2,3 m³ - 270 kW | C20: 3734501.244 | D20: 130.7075 | E20: 63.3651 | F20: 0 | G20: 186.7251 | H20: 90.5945 | I20: 34.3466 | J20: 505.7388 | K20: 228.4192
A21: E9024 | B21: Misturador de nata cimento - 1,50 kW | C21: 7541.4177 | D21: 0.6033 | E21: 0.1396 | F21: 0 | G21: 0.5279 | H21: 0 | I21: 24.563 | J21: 25.8338 | K21: 25.3059
A22: E9025 | B22: Conjunto bomba e macaco hidráulico para protensão com capacidade de 7.000 kN - 15 kW | C22: 103170.157 | D22: 5.8954 | E22: 1.8187 | F22: 0 | G22: 5.8954 | H22: 0 | I22: 34.3466 | J22: 47.9561 | K22: 42.0607
A23: E9026 | B23: Bomba para injeção de nata de cimento com capacidade de 2 MPa - 2,20 kW | C23: 29687.2731 | D23: 2.375 | E23: 0.5495 | F23: 0 | G23: 2.0781 | H23: 0 | I23: 0 | J23: 5.0026 | K23: 2.9245
A24: E9028 | B24: Bomba de alta pressão para hidrojateamento com capacidade de 18 MPa - 5,20 kW | C24: 5174.7961 | D24: 0.414 | E24: 0.0958 | F24: 0 | G24: 0.4657 | H24: 8.6124 | I24: 24.563 | J24: 34.1509 | K24: 25.0728
A25: E9029 | B25: Conjunto bomba e macaco hidráulico para protensão com capacidade de 8.000 kN - 20 kW | C25: 131192.501 | D25: 7.4967 | E25: 2.3127 | F25: 0 | G25: 7.4967 | H25: 0 | I25: 34.3466 | J25: 51.6527 | K25: 44.156
A26: E9030 | B26: Bomba de protensão com leitura digital para tensionamento de estais - 3 kW | C26: 13403.4335 | D26: 0.7659 | E26: 0.2363 | F26: 0 | G26: 0.7659 | H26: 0 | I26: 0 | J26: 1.7681 | K26: 1.0022
A27: E9031 | B27: Elevador de cremalheira com cabine simples, com capacidade de 1.500 kg e altura de até 100 m - 15 kW | C27: 267448.5447 | D27: 21.3959 | E27: 4.9505 | F27: 0 | G27: 18.7214 | H27: 0 | I27: 24.563 | J27: 69.6308 | K27: 50.9094
A28: E9032 | B28: Equipamento para regulagem final de estais com até 37 cordoalhas - D = 15,7 mm - 20 kW | C28: 86985.7694 | D28: 4.9706 | E28: 1.5334 | F28: 0 | G28: 4.9706 | H28: 0 | I28: 34.3466 | J28: 45.8212 | K28: 40.8506
A29: E9033 | B29: Equipamento para regulagem final de estais de 38 a 55 cordoalhas - D = 15,7 mm - 30 kW | C29: 124265.3849 | D29: 7.1009 | E29: 2.1906 | F29: 0 | G29: 7.1009 | H29: 0 | I29: 34.3466 | J29: 50.739 | K29: 43.6381
A30: E9034 | B30: Equipamento para regulagem final de estais de 56 a 73 cordoalhas - D = 15,7 mm - 40 kW | C30: 186398.0774 | D30: 10.6513 | E30: 3.2859 | F30: 0 | G30: 10.6513 | H30: 0 | I30: 34.3466 | J30: 58.9351 | K30: 48.2838
A31: E9035 | B31: Equipamento para regulagem final de estais de 74 a 91 cordoalhas - D = 15,7 mm - 50 kW | C31: 248530.7699 | D31: 14.2018 | E31: 4.3812 | F31: 0 | G31: 14.2018 | H31: 0 | I31: 34.3466 | J31: 67.1314 | K31: 52.9296
A32: E9036 | B32: Grua fixa para alturas de 60 a 102 m, com alcance de 60 m com capacidade de 1.500 kg na ponta da lança - 37 kW | C32: 3261851.481 | D32: 163.0926 | E32: 57.5018 | F32: 0 | G32: 186.3915 | H32: 0 | I32: 34.3466 | J32: 441.3325 | K32: 254.941
A33: E9038 | B33: Macaco hidráulico monocordoalha para tensionamento de estais - 3 kW | C33: 17891.564 | D33: 1.0224 | E33: 0.3154 | F33: 0 | G33: 1.0224 | H33: 0 | I33: 34.3466 | J33: 36.7068 | K33: 35.6844
A34: E9039 | B34: Máquina de solda por termofusão para tubos PEAD com gerador de 4 kW | C34: 116659.2494 | D34: 6.6662 | E34: 2.0565 | F34: 0 | G34: 6.6662 | H34: 5.1001 | I34: 34.3466 | J34: 54.8356 | K34: 43.0693
A35: E9040 | B35: Serra mármore - 1,45 kW | C35: 467.6328 | D35: 0.0421 | E35: 0.0087 | F35: 0 | G35: 0.0234 | H35: 0 | I35: 0 | J35: 0.0742 | K35: 0.0508
A36: E9042 | B36: Trator sobre esteiras com lâmina - 97 kW | C36: 1059265.187 | D36: 41.1936 | E36: 18.1546 | F36: 0 | G36: 58.8481 | H36: 91.1313 | I36: 27.7788 | J36: 237.1064 | K36: 87.127
A37: E9043 | B37: Embarcação de alumínio com comprimento de 6 m e motor de popa - 18,60 kW | C37: 23625.3258 | D37: 0.3691 | E37: 0.1392 | F37: 0 | G37: 0.4102 | H37: 35.2068 | I37: 35.0584 | J37: 71.1837 | K37: 35.5667
A38: E9044 | B38: Central de concreto com capacidade de 150 m³/h - dosadora e misturadora | C38: 3378543.522 | D38: 193.0596 | E38: 59.5589 | F38: 0 | G38: 168.9272 | H38: 0 | I38: 34.3466 | J38: 455.8923 | K38: 286.9651
A39: E9045 | B39: Conjunto bomba e macaco hidráulico para elevação com capacidade de 496 kN | C39: 63211.2046 | D39: 5.0569 | E39: 1.17 | F39: 0 | G39: 5.0569 | H39: 5.4514 | I39: 34.3466 | J39: 51.0818 | K39: 40.5735
A40: E9046 | B40: Conjunto bomba e macaco hidráulico para elevação com capacidade de 929 kN | C40: 76759.6997 | D40: 6.1408 | E40: 1.4208 | F40: 0 | G40: 6.1408 | H40: 5.4514 | I40: 34.3466 | J40: 53.5004 | K40: 41.9082
A41: E9047 | B41: Conjunto bomba e macaco hidráulico para elevação com capacidade de 1.390 kN | C41: 112311.0937 | D41: 8.9849 | E41: 2.0789 | F41: 0 | G41: 8.9849 | H41: 5.4514 | I41: 34.3466 | J41: 59.8467 | K41: 45.4104
A42: E9048 | B42: Conjunto bomba e macaco hidráulico para elevação com capacidade de 1.859 kN | C42: 130371.9355 | D42: 10.4298 | E42: 2.4132 | F42: 0 | G42: 10.4298 | H42: 5.4514 | I42: 34.3466 | J42: 63.0708 | K42: 47.1896
A43: E9049 | B43: Bomba de alta pressão para hidrojateamento com capacidade de 250 MPa - 72 kW | C43: 505124.6662 | D43: 40.41 | E43: 9.3499 | F43: 0 | G43: 45.4612 | H43: 72.4756 | I43: 24.563 | J43: 192.2597 | K43: 74.3229
A44: E9050 | B44: Guindaste móvel sobre pneus com 2 eixos com capacidade de 18 t - 97 kW | C44: 2870645.946 | D44: 143.5323 | E44: 50.6054 | F44: 0 | G44: 184.5415 | H44: 32.5469 | I44: 27.958 | J44: 439.1841 | K44: 222.0957
A45: E9051 | B45: Máquina levantadora e posicionadora de via - 7,40 kW | C45: 793519.7856 | D45: 63.4816 | E45: 14.6881 | F45: 0 | G45: 55.5464 | H45: 9.8049 | I45: 24.563 | J45: 168.084 | K45: 102.7327
A46: E9052 | B46: Empilhadeira a diesel com capacidade de 10 t - 82 kW | C46: 852905.4591 | D46: 68.2324 | E46: 15.7873 | F46: 0 | G46: 59.7034 | H46: 82.5416 | I46: 24.563 | J46: 250.8277 | K46: 108.5827
A47: E9053 | B47: Perfuratriz hidráulica montada em flutuante - 32 kW | C47: 364739.2496 | D47: 11.3981 | E47: 2.3442 | F47: 0 | G47: 10.1316 | H47: 21.4742 | I47: 29.9639 | J47: 75.312 | K47: 43.7062
A48: E9054 | B48: Equipamento sobre forma-trilho para execução e acabamento de pavimento de concreto - 13,40 kW | C48: 1318577.307 | D48: 105.4862 | E48: 24.4069 | F48: 0 | G48: 65.9289 | H48: 17.7548 | I48: 24.563 | J48: 238.1398 | K48: 154.4561
A49: E9055 | B49: Guincho pneumático com capacidade de 2,5 t | C49: 526505.3379 | D49: 47.3855 | E49: 9.7456 | F49: 0 | G49: 26.3253 | H49: 0 | I49: 0 | J49: 83.4564 | K49: 57.1311
A50: E9056 | B50: Plataforma autoelevatória de 12 x 24 m com capacidade de 150 t | C50: 889475.1939 | D50: 6.949 | E50: 5.0021 | F50: 0 | G50: 15.4423 | H50: 0 | I50: 92.2038 | J50: 119.5972 | K50: 104.1549
A51: E9057 | B51: Batelão sem propulsão com capacidade de 66 m³ | C51: 237859.1377 | D51: 1.8583 | E51: 1.3376 | F51: 0 | G51: 3.0971 | H51: 0 | I51: 23.9886 | J51: 30.2816 | K51: 27.1845
A52: E9058 | B52: Plataforma flutuante de 12 x 24 x 1,8 m com capacidade de 150 t | C52: 711396.2137 | D52: 5.5578 | E52: 4.0007 | F52: 0 | G52: 9.263 | H52: 0 | I52: 23.9886 | J52: 42.8101 | K52: 33.5471
A53: E9059 | B53: Plataforma autoelevatória de 12 x 24 m montada na obra com capacidade de 150 t | C53: 889475.1939 | D53: 6.949 | E53: 5.0021 | F53: 0 | G53: 15.4423 | H53: 0 | I53: 92.2038 | J53: 119.5972 | K53: 104.1549
A54: E9060 | B54: Perfuratriz pneumática rotopercussiva montada em flutuante com pressão de 0,70 MPa e capacidade de 2.500 gpm | C54: 21603.5317 | D54: 0.6751 | E54: 0.1388 | F54: 0 | G54: 0.6001 | H54: 0 | I54: 59.9278 | J54: 61.3418 | K54: 60.7417
A55: E9061 | B55: Lixadeira elétrica manual angular - 2 kW | C55: 1388.3666 | D55: 0.1111 | E55: 0.0257 | F55: 0 | G55: 0.0694 | H55: 0 | I55: 0 | J55: 0.2062 | K55: 0.1368
A56: E9062 | B56: Soprador de ar quente manual - 1,60 kW | C56: 4766.1746 | D56: 0.6355 | E56: 0.098 | F56: 0 | G56: 0.3972 | H56: 0 | I56: 0 | J56: 1.1307 | K56: 0.7335
A57: E9063 | B57: Equipamento de estabilização dinâmica da via - 300 kW | C57: 24330586.7 | D57: 973.2235 | E57: 412.8292 | F57: 0 | G57: 973.2235 | H57: 241.5852 | I57: 34.3466 | J57: 2635.208 | K57: 1420.3993
A58: E9064 | B58: Transportador manual gerica com capacidade de 180 l | C58: 1106.6947 | D58: 1.1067 | E58: 0.0683 | F58: 0 | G58: 0.5533 | H58: 0 | I58: 0 | J58: 1.7283 | K58: 1.175
A59: E9065 | B59: Carro controle ferroviário - 186 kW | C59: 30118776.75 | D59: 1204.7511 | E59: 511.0403 | F59: 0 | G59: 1054.1572 | H59: 149.7828 | I59: 34.3466 | J59: 2954.078 | K59: 1750.138
A60: E9066 | B60: Grupo gerador - 14 kVA | C60: 68715.8583 | D60: 3.4358 | E60: 1.2114 | F60: 0 | G60: 2.4541 | H60: 14.0254 | I60: 0 | J60: 21.1267 | K60: 4.6472
A61: E9067 | B61: Veículo ferroviário para capina química com capacidade de 12.000 l - 115 kW | C61: 1692057.331 | D61: 67.6823 | E61: 28.71 | F61: 0 | G61: 42.3014 | H61: 92.6077 | I61: 24.563 | J61: 255.8644 | K61: 120.9553
A62: E9068 | B62: Perfuratriz hidráulica rotopercussiva para CCPH - 123 kW | C62: 2641778.926 | D62: 176.1186 | E62: 47.541 | F62: 0 | G62: 176.1186 | H62: 123.8124 | I62: 27.7788 | J62: 551.3694 | K62: 251.4384
A63: E9069 | B63: Vibrador de imersão para concreto - 4,10 kW | C63: 4110.5912 | D63: 0.6577 | E63: 0.1522 | F63: 0 | G63: 0.4111 | H63: 6.7906 | I63: 0 | J63: 8.0116 | K63: 0.8099
A64: E9070 | B64: Ponte rolante com capacidade de 5 t e vão de até 15 m - 10 kW | C64: 371841.3836 | D64: 14.8737 | E64: 6.3092 | F64: 0 | G64: 9.296 | H64: 0 | I64: 24.563 | J64: 55.0419 | K64: 45.7459
A65: E9071 | B65: Transportador manual carrinho de mão com capacidade de 80 l | C65: 521.2016 | D65: 0.5212 | E65: 0.0322 | F65: 0 | G65: 0.2606 | H65: 0 | I65: 0 | J65: 0.814 | K65: 0.5534
A66: E9072 | B66: Martelo hidráulico vibratório com unidade hidráulica - 486 kW | C66: 2864780.368 | D66: 190.9854 | E66: 51.5541 | F66: 0 | G66: 167.1122 | H66: 489.21 | I66: 34.3466 | J66: 933.2083 | K66: 276.8861
A67: E9073 | B67: Bomba de concreto rebocável com capacidade de 30 m³/h - 74 kW | C67: 486048.1791 | D67: 38.8839 | E67: 8.9968 | F67: 0 | G67: 38.8839 | H67: 94.3524 | I67: 24.563 | J67: 205.68 | K67: 72.4437
A68: E9074 | B68: Tanque de estocagem de asfalto com agitadores de 60.000 l | C68: 818448.4968 | D68: 34.102 | E68: 11.8355 | F68: 0 | G68: 21.3138 | H68: 0 | I68: 0 | J68: 67.2513 | K68: 45.9375
A69: E9075 | B69: Trado cavadeira de 12" | C69: 150.5414 | D69: 0.0753 | E69: 0.007 | F69: 0 | G69: 0.0376 | H69: 0 | I69: 0 | J69: 0.1199 | K69: 0.0823
A70: E9076 | B70: Equipamento para pintura eletrostática com cabine dupla de 7,00 kW e estufa de 80.000 kCal | C70: 173762.5745 | D70: 11.1705 | E70: 3.0632 | F70: 0 | G70: 6.2058 | H70: 0 | I70: 24.563 | J70: 45.0025 | K70: 38.7967
A71: E9077 | B71: Perfuratriz de circulação reversa tipo Wirth ou similar com unidade hidráulica (Power Pack) - 273 kW | C71: 5174866.455 | D71: 344.9911 | E71: 93.126 | F71: 0 | G71: 344.9911 | H71: 183.2021 | I71: 27.7788 | J71: 994.0891 | K71: 465.8959
A72: E9078 | B72: Treliça lançadeira com capacidade de carga de 100 a 120 t e vão máximo de 45 m - 110 kW | C72: 3547977.244 | D72: 94.6127 | E72: 58.3761 | F72: 0 | G72: 59.133 | H72: 0 | I72: 34.3466 | J72: 246.4684 | K72: 187.3354
A73: E9079 | B73: Bomba submersível com capacidade de 360 m³/h - 23 kW | C73: 180147.436 | D73: 14.4118 | E73: 3.3345 | F73: 0 | G73: 12.6103 | H73: 0 | I73: 0 | J73: 30.3566 | K73: 17.7463
A74: E9080 | B74: Carrelone com capacidade máxima de 70 t | C74: 1794554.603 | D74: 80.755 | E74: 30.4491 | F74: 0 | G74: 44.8639 | H74: 0 | I74: 24.563 | J74: 180.631 | K74: 135.7671
A75: E9081 | B75: Fischietti simples com capacidade de 70 t | C75: 107777.4146 | D75: 4.85 | E75: 1.8287 | F75: 0 | G75: 2.6944 | H75: 0 | I75: 24.563 | J75: 33.9361 | K75: 31.2417
A76: E9083 | B76: Vagão fechado FLT com capacidade de 99 t | C76: 775000 | D76: 12.2708 | E76: 12.3529 | F76: 0 | G76: 6.4583 | H76: 0 | I76: 0 | J76: 31.082 | K76: 24.6237
A77: E9084 | B77: Vagão tanque convencional TCT com capacidade de 97 t e 103.000 l | C77: 1195000 | D77: 18.9208 | E77: 19.0473 | F77: 0 | G77: 9.9583 | H77: 0 | I77: 0 | J77: 47.9264 | K77: 37.9681
A78: E9085 | B78: Vagão gôndola GDE com capacidade de 93,5 t / 29 m³ | C78: 563000 | D78: 8.9142 | E78: 8.9738 | F78: 0 | G78: 4.6917 | H78: 0 | I78: 0 | J78: 22.5797 | K78: 17.888
A79: E9086 | B79: Bomba de concreto rebocável com capacidade de 41 m³/h - 74 kW | C79: 536198.1791 | D79: 42.8959 | E79: 9.925 | F79: 0 | G79: 42.8959 | H79: 94.3524 | I79: 24.563 | J79: 214.6322 | K79: 77.3839
A80: E9089 | B80: Roçadeira costal - 1,40 kW | C80: 2668.6095 | D80: 0.4003 | E80: 0.0549 | F80: 0 | G80: 0.3113 | H80: 7.2874 | I80: 0 | J80: 8.0539 | K80: 0.4552
A81: E9091 | B81: Embarcação empurradora fluvial - 372 kW | C81: 1121382.701 | D81: 14.6013 | E81: 6.5065 | F81: 0 | G81: 32.4474 | H81: 474.3123 | I81: 134.0799 | J81: 661.9474 | K81: 155.1877
A82: E9093 | B82: Veículo leve - 53 kW (sem motorista) | C82: 75367.5615 | D82: 4.5221 | E82: 1.3951 | F82: 0.5653 | G82: 4.5221 | H82: 22.5721 | I82: 0 | J82: 33.5767 | K82: 6.4825
A83: E9094 | B83: Guindaste móvel sobre pneus com 6 eixos com capacidade máxima de 350 t - 450 kW | C83: 17476803.93 | D83: 873.8402 | E83: 308.0911 | F83: 124.8343 | G83: 1123.5088 | H83: 150.9908 | I83: 27.958 | J83: 2609.2232 | K83: 1334.7236
A84: E9095 | B84: Guindaste móvel sobre pneus com 8 eixos com capacidade máxima de 500 t - 500 kW | C84: 29463015.41 | D84: 1473.1508 | E84: 519.3909 | F84: 210.4501 | G84: 1894.051 | H84: 167.7675 | I84: 27.958 | J84: 4292.7683 | K84: 2230.9498
A85: E9096 | B85: Minicarregadeira de pneus - 45,50 kW | C85: 303378.4303 | D85: 21.2365 | E85: 5.6155 | F85: 0 | G85: 21.2365 | H85: 76.3342 | I85: 27.7788 | J85: 152.2015 | K85: 54.6308
A86: E9101 | B86: Removedora de faixas de sinalização viária - 9,69 kW | C86: 51059.5602 | D86: 4.0848 | E86: 0.9451 | F86: 0 | G86: 3.5742 | H86: 16.0489 | I86: 0 | J86: 24.653 | K86: 5.0299
A87: E9102 | B87: Extrusora para sarjeta de concreto - 10,44 kW | C87: 66124.9993 | D87: 5.29 | E87: 1.224 | F87: 0 | G87: 4.6287 | H87: 10.509 | I87: 24.563 | J87: 46.2147 | K87: 31.077
A88: E9103 | B88: Extrusora para meio-fio de concreto - 10,44 kW | C88: 55126.8497 | D88: 4.4101 | E88: 1.0204 | F88: 0 | G88: 3.8589 | H88: 10.509 | I88: 24.563 | J88: 44.3614 | K88: 29.9935
A89: E9105 | B89: Embarcação empurradora multipropósito - 2 x 186 kW | C89: 5377096.024 | D89: 70.0143 | E89: 31.1991 | F89: 0 | G89: 155.5873 | H89: 474.3123 | I89: 134.0799 | J89: 865.1929 | K89: 235.2933
A90: E9106 | B90: Balsa de convés com capacidade de 200 t | C90: 2036507.336 | D90: 15.9102 | E90: 11.4527 | F90: 0 | G90: 26.517 | H90: 0 | I90: 23.9886 | J90: 77.8685 | K90: 51.3515
A91: E9107 | B91: Compactador manual com soquete vibratório - 2,24 kW | C91: 9534.4367 | D91: 0.6356 | E91: 0.1716 | F91: 0 | G91: 0.6356 | H91: 3.71 | I91: 0 | J91: 5.1528 | K91: 0.8072
A92: E9108 | B92: Soldadora de trilho por caldeamento na via - 400 kW | C92: 8940339.277 | D92: 143.0454 | E92: 143.4209 | F92: 0 | G92: 178.8068 | H92: 322.1136 | I92: 68.6932 | J92: 856.0799 | K92: 355.1595
A93: E9110 | B93: Escavadeira hidráulica sobre esteiras para rocha com caçamba com capacidade de 1,56 m³ - 118 kW | C93: 1370354.644 | D93: 137.0355 | E93: 27.1771 | F93: 0 | G93: 137.0355 | H93: 150.4539 | I93: 27.7788 | J93: 479.4808 | K93: 191.9914
A94: E9111 | B94: Jateador abrasivo úmido com capacidade de 350 kg de abrasivo | C94: 188446.5149 | D94: 16.9602 | E94: 3.4881 | F94: 0 | G94: 16.9602 | H94: 0 | I94: 24.563 | J94: 61.9715 | K94: 45.0113
A95: E9112 | B95: Sinalizador direcional móvel com sistema fotovoltaico de energia e montado em chassi sobre pneus | C95: 22990.6766 | D95: 2.0692 | E95: 0.4256 | F95: 0 | G95: 1.1495 | H95: 0 | I95: 0 | J95: 3.6443 | K95: 2.4948
A96: E9113 | B96: Painel de Mensagem Variável - PMV móvel, com sistema fotovoltaico de energia e montado em chassi sobre pneus | C96: 175118.1791 | D96: 15.7606 | E96: 3.2414 | F96: 0 | G96: 8.7559 | H96: 0 | I96: 0 | J96: 27.7579 | K96: 19.002
A97: E9116 | B97: Semáforo móvel com 3 lentes e bateria - D = 200 mm | C97: 7485.1199 | D97: 0.6737 | E97: 0.1385 | F97: 0 | G97: 0.3743 | H97: 0 | I97: 0 | J97: 1.1865 | K97: 0.8122
A98: E9117 | B98: Carregadeira de pneus para rocha com capacidade de 2,50 m³ - 105 kW | C98: 718628.9244 | D98: 71.8629 | E98: 14.252 | F98: 0 | G98: 71.8629 | H98: 133.8785 | I98: 27.7788 | J98: 319.6351 | K98: 113.8937
A99: E9118 | B99: Cortadora de pavimento com disco diamantado de 450 a 1.500 mm - 55,40 kW | C99: 444418.1329 | D99: 35.5535 | E99: 8.2262 | F99: 0 | G99: 35.5535 | H99: 55.7659 | I99: 24.563 | J99: 159.6621 | K99: 68.3427
A100: E9119 | B100: Minicarregadeira sobre pneus com valetadeira - 55,40 kW | C100: 482048.6182 | D100: 33.7434 | E100: 8.9227 | F100: 0 | G100: 33.7434 | H100: 92.9432 | I100: 27.7788 | J100: 197.1315 | K100: 70.4449
A101: E9120 | B101: Equipamento de cravação sobre esteira para geodreno com haste para profundidade de até 20 m - 258 kW | C101: 3732827.63 | D101: 261.2979 | E101: 69.0946 | F101: 0 | G101: 261.2979 | H101: 225.0769 | I101: 24.563 | J101: 841.3303 | K101: 354.9555
A102: E9121 | B102: Plataforma elevatória articulada elétrica com alcance de 6 m com capacidade de 500 kg - 1,5 kW | C102: 71007.3624 | D102: 4.7338 | E102: 1.2778 | F102: 0 | G102: 4.7338 | H102: 0 | I102: 24.563 | J102: 35.3084 | K102: 30.5746
A103: E9122 | B103: Perfuratriz tipo Bottom Feed para coluna de brita - 194 kW | C103: 4446355.71 | D103: 296.4237 | E103: 80.0159 | F103: 0 | G103: 296.4237 | H103: 130.1876 | I103: 27.7788 | J103: 830.8297 | K103: 404.2184
A104: E9125 | B104: Veículo tipo van furgão com capacidade de 1,54 t - 93 kW | C104: 211710.063 | D104: 10.5855 | E104: 3.8099 | F104: 1.5437 | G104: 10.5855 | H104: 31.2048 | I104: 24.5499 | J104: 82.2793 | K104: 40.489
A105: E9126 | B105: Draga backhoe com capacidade de 7 m³ - 1.000 kW | C105: 86860350.42 | D105: 977.1789 | E105: 703.406 | F105: 0 | G105: 2171.5088 | H105: 1275.033 | I105: 64.2342 | J105: 5191.3609 | K105: 1744.8191
A106: E9127 | B106: Escavadeira hidráulica com martelo hidráulico de 520 kg - 75 kW | C106: 1511784.657 | D106: 172.7754 | E106: 29.9819 | F106: 0 | G106: 215.9692 | H106: 65.4293 | I106: 27.7788 | J106: 511.9346 | K106: 230.5361
A107: E9134 | B107: Miniônibus com capacidade para 30 passageiros - 111 kW | C107: 516091.8397 | D107: 22.1182 | E107: 9.098 | F107: 3.6864 | G107: 33.1773 | H107: 141.5287 | I107: 26.4611 | J107: 236.0697 | K107: 61.3637
A108: E9141 | B108: Rebarbador hidráulico com bomba manual com capacidade de força de 9.000 kgf | C108: 89888.9818 | D108: 7.1911 | E108: 1.6638 | F108: 0 | G108: 4.4944 | H108: 0 | I108: 0 | J108: 13.3493 | K108: 8.8549
A109: E9144 | B109: Pórtico metálico rolante com talha com capacidade de 5 t - 10 kW | C109: 310972.0645 | D109: 12.4389 | E109: 5.2764 | F109: 0 | G109: 7.7743 | H109: 0 | I109: 24.563 | J109: 50.0526 | K109: 42.2783
A110: E9148 | B110: Macaco de protensão de fios com bomba - 3,72 kW | C110: 95595.1308 | D110: 5.4626 | E110: 1.6852 | F110: 0 | G110: 5.4626 | H110: 0 | I110: 34.3466 | J110: 46.957 | K110: 41.4944
A111: E9149 | B111: Máquina de aplicação e extração de grampo elástico tipo Pandrol - 6,70 kW | C111: 265885.6464 | D111: 21.2709 | E111: 4.9215 | F111: 0 | G111: 21.2709 | H111: 8.8774 | I111: 0 | J111: 56.3407 | K111: 26.1924
A112: E9151 | B112: Britador de mandíbulas móvel sobre esteiras, sem peneira, com capacidade de 140 m³/h - 170 kW | C112: 3533609.78 | D112: 201.9206 | E112: 62.2925 | F112: 0 | G112: 201.9206 | H112: 205.3474 | I112: 34.3466 | J112: 705.8277 | K112: 298.5597
A113: E9152 | B113: Ferramenta de fixação à pólvora de ação direta | C113: 1129.2747 | D113: 0.096 | E113: 0.0209 | F113: 0 | G113: 0.0903 | H113: 0 | I113: 0 | J113: 0.2072 | K113: 0.1169
A114: E9153 | B114: Ferramenta de fixação à pólvora e sistema à pistão | C114: 1048.1458 | D114: 0.0891 | E114: 0.0194 | F114: 0 | G114: 0.0839 | H114: 0 | I114: 0 | J114: 0.1924 | K114: 0.1085
A115: E9154 | B115: Equipamento para selagem com material asfáltico rebocável com capacidade de 370 l - 35 kW | C115: 410825.8236 | D115: 26.4102 | E115: 7.2423 | F115: 0 | G115: 8.8034 | H115: 35.2312 | I115: 24.563 | J115: 102.2501 | K115: 58.2155
A116: E9155 | B116: Caldeira de asfalto rebocável com capacidade de 600 l - 5,20 kW | C116: 121904.1739 | D116: 7.8367 | E116: 2.149 | F116: 0 | G116: 2.6122 | H116: 4.8854 | I116: 0 | J116: 17.4833 | K116: 9.9857
A117: E9156 | B117: Soprador de ar costal - 2,6 kW | C117: 2336.6845 | D117: 0.3739 | E117: 0.0865 | F117: 0 | G117: 0.3271 | H117: 4.3062 | I117: 0 | J117: 5.0937 | K117: 0.4604
A118: E9157 | B118: Locomotiva diesel-elétrica CC - bitola métrica - 2.237 kW | C118: 8250000 | D118: 132 | E118: 132.3465 | F118: 0 | G118: 165 | H118: 1801.4203 | I118: 32.2412 | J118: 2263.008 | K118: 296.5877
A119: E9158 | B119: Locomotiva diesel-elétrica CC - bitola larga - 2.237 kW | C119: 8250000 | D119: 132 | E119: 132.3465 | F119: 0 | G119: 165 | H119: 1801.4203 | I119: 32.2412 | J119: 2263.008 | K119: 296.5877
A120: E9159 | B120: Vagão plataforma PNE com capacidade de 82 t - bitola métrica | C120: 667000 | D120: 10.5608 | E120: 10.6314 | F120: 0 | G120: 5.5583 | H120: 0 | I120: 0 | J120: 26.7505 | K120: 21.1922
A121: E9160 | B121: Vagão plataforma PNT com capacidade de 98 t - bitola larga | C121: 746000 | D121: 11.8117 | E121: 11.8906 | F121: 0 | G121: 6.2167 | H121: 0 | I121: 0 | J121: 29.919 | K121: 23.7023
A122: E9161 | B122: Vagão fechado com porta para carga e descarga de paletes FLD com capacidade de 64 t - bitola métrica | C122: 678000 | D122: 10.735 | E122: 10.8068 | F122: 0 | G122: 5.65 | H122: 0 | I122: 0 | J122: 27.1918 | K122: 21.5418
A123: E9162 | B123: Vagão fechado com porta para carga e descarga de paletes FLT com capacidade de 99 t - bitola larga | C123: 775000 | D123: 12.2708 | E123: 12.3529 | F123: 0 | G123: 6.4583 | H123: 0 | I123: 0 | J123: 31.082 | K123: 24.6237
A124: E9163 | B124: Vagão hopper aberto com descarga automática HNE com capacidade de 45 m³ - bitola métrica | C124: 843000 | D124: 13.3475 | E124: 13.4367 | F124: 0 | G124: 7.025 | H124: 0 | I124: 0 | J124: 33.8092 | K124: 26.7842
A125: E9164 | B125: Vagão hopper aberto com descarga automática HNT com capacidade de 63 m³ - bitola larga | C125: 855000 | D125: 13.5375 | E125: 13.628 | F125: 0 | G125: 7.125 | H125: 0 | I125: 0 | J125: 34.2905 | K125: 27.1655
A126: E9167 | B126: Equipamento para carga e descarga de TLS de até 250 m - 90 kW | C126: 2640609.623 | D126: 42.2498 | E126: 42.3607 | F126: 0 | G126: 52.8122 | H126: 72.4756 | I126: 34.3466 | J126: 244.2449 | K126: 118.9571
A127: E9168 | B127: Carregadeira de pneus com implemento de garfo - 195 kW | C127: 1821479.953 | D127: 127.5036 | E127: 33.7156 | F127: 0 | G127: 127.5036 | H127: 104.6869 | I127: 27.7788 | J127: 421.1885 | K127: 188.998
A128: E9200 | B128: Carregadeira de pneus para rocha com capacidade de 2,50 m³ - 105 kW com periculosidade | C128: 718628.9244 | D128: 71.8629 | E128: 14.252 | F128: 0 | G128: 71.8629 | H128: 133.8785 | I128: 34.1456 | J128: 326.0019 | K128: 120.2605
A129: E9203 | B129: Escavadeira hidráulica com martelo hidráulico de 1.700 kg - 103 kW com periculosidade | C129: 2288975.751 | D129: 261.5972 | E129: 45.3953 | F129: 0 | G129: 326.9965 | H129: 89.8563 | I129: 34.1456 | J129: 757.9909 | K129: 341.1381
A130: E9204 | B130: Perfuratriz sobre esteiras - 145 kW com periculosidade | C130: 2070909.324 | D130: 138.0606 | E130: 37.2677 | F130: 0 | G130: 138.0606 | H130: 145.9577 | I130: 34.1456 | J130: 493.4922 | K130: 209.4739
A131: E9205 | B131: Equipamento de corte a plasma CNC - 12.000 x 5.500 mm - 19,5 kW | C131: 885359 | D131: 70.8287 | E131: 16.388 | F131: 0 | G131: 53.1215 | H131: 0 | I131: 0 | J131: 140.3382 | K131: 87.2167
A132: E9206 | B132: Equipamento de solda MIG automática com acessórios - 14,6 kVA | C132: 87350.7541 | D132: 6.9881 | E132: 1.6169 | F132: 0 | G132: 6.9881 | H132: 0 | I132: 0 | J132: 15.5931 | K132: 8.605
A133: E9207 | B133: Máquina de solda elétrica retificadora 425 A - 18,70 kW | C133: 4542.3417 | D133: 0.3634 | E133: 0.0841 | F133: 0 | G133: 0.3634 | H133: 0 | I133: 0 | J133: 0.8109 | K133: 0.4475
A134: E9209 | B134: Martelete perfurador/rompedor a ar comprimido de 25 kg para rocha, com insalubridade, com capacidade de 2.040 gpm | C134: 19631.5611 | D134: 1.5705 | E134: 0.3634 | F134: 0 | G134: 1.5705 | H134: 0 | I134: 31.3856 | J134: 34.89 | K134: 33.3195
A135: E9213 | B135: Jumbo eletro-hidráulico com 3 braços - 155 kW/237 kW com periculosidade | C135: 11647643.62 | D135: 776.5096 | E135: 209.6091 | F135: 0 | G135: 970.637 | H135: 218.4333 | I135: 42.7455 | J135: 2217.9345 | K135: 1028.8642
A136: E9242 | B136: Estação transmissora de superfície para televisionamento | C136: 11335.2469 | D136: 0.7287 | E136: 0.1998 | F136: 0 | G136: 0.4048 | H136: 0 | I136: 0 | J136: 1.3333 | K136: 0.9285
A137: E9243 | B137: Câmara hiperbárica com filtro, serpentina e reservatório de ar para mergulho raso - D = 1,80 m e H = 2,22 m. | C137: 299544.5447 | D137: 5.242 | E137: 4.8515 | F137: 0 | G137: 7.4886 | H137: 0 | I137: 46.0098 | J137: 63.5919 | K137: 56.1033
A138: E9244 | B138: Estação transmissora de superfície para comunicação sem fio | C138: 37680.0236 | D138: 2.4223 | E138: 0.6642 | F138: 0 | G138: 1.3457 | H138: 0 | I138: 0 | J138: 4.4322 | K138: 3.0865
A139: E9245 | B139: Estação transmissora de superfície para comunicação com fio | C139: 6315.3518 | D139: 0.406 | E139: 0.1113 | F139: 0 | G139: 0.2255 | H139: 0 | I139: 0 | J139: 0.7428 | K139: 0.5173
A140: E9246 | B140: Painel de controle de ar com manômetros e pneufatômetros | C140: 12119.2769 | D140: 0.7791 | E140: 0.2136 | F140: 0 | G140: 0.4328 | H140: 0 | I140: 0 | J140: 1.4255 | K140: 0.9927
A141: E9247 | B141: Sistema de Sino aberto (sinete) para mergulho até 50 m - 33,50 kW | C141: 549188.8569 | D141: 14.645 | E141: 9.036 | F141: 0 | G141: 14.645 | H141: 0 | I141: 46.0098 | J141: 84.3358 | K141: 69.6908
A142: E9248 | B142: Sistema de ar comprimido para mergulho até 30 m com pressão de trabalho de 1,4 MPa - 7,46 kW | C142: 50245.867 | D142: 3.3497 | E142: 0.9042 | F142: 0 | G142: 3.3497 | H142: 8.5105 | I142: 0 | J142: 16.1141 | K142: 4.2539
A143: E9249 | B143: Sistema de ar comprimido para mergulho até 50 m com pressão de trabalho de 1,7 MPa - 16,18 kW | C143: 76886.4399 | D143: 5.1258 | E143: 1.3836 | F143: 0 | G143: 5.1258 | H143: 18.4585 | I143: 0 | J143: 30.0937 | K143: 6.5094
A144: E9251 | B144: Fonte de plasma para corte manual - 65A - 15 kW | C144: 31137.4848 | D144: 2.491 | E144: 0.5764 | F144: 0 | G144: 2.491 | H144: 0 | I144: 0 | J144: 5.5584 | K144: 3.0674
A145: E9252 | B145: Serra de esquadria com braço telescópico - D = 250 mm (10") - 1,80 kW | C145: 5080.658 | D145: 0.4573 | E145: 0.094 | F145: 0 | G145: 0.254 | H145: 0 | I145: 0 | J145: 0.8053 | K145: 0.5513
A146: E9253 | B146: Rebordeadeira diâmetro máximo 3,00 m - 4,85 kW | C146: 77631.7472 | D146: 3.1053 | E146: 1.3172 | F146: 0 | G146: 2.7171 | H146: 0 | I146: 0 | J146: 7.1396 | K146: 4.4225
A147: E9254 | B147: Dobradeira viradeira manual comprimento máximo de dobra de até 2.000 mm | C147: 19400.3263 | D147: 0.776 | E147: 0.3292 | F147: 0 | G147: 0.679 | H147: 0 | I147: 0 | J147: 1.7842 | K147: 1.1052
A148: E9255 | B148: Fonte de plasma para corte manual - 45A - 10 kW | C148: 21892.9382 | D148: 1.7514 | E148: 0.4052 | F148: 0 | G148: 1.7514 | H148: 0 | I148: 0 | J148: 3.908 | K148: 2.1566
A149: E9256 | B149: Equipamento para pintura com cal rebocável com dois bicos aplicadores e capacidade de 2.200 l | C149: 64944.527 | D149: 3.7111 | E149: 1.1449 | F149: 0 | G149: 3.7111 | H149: 0 | I149: 24.563 | J149: 33.1301 | K149: 29.419
A150: E9501 | B150: Ventilador axial para ventilação forçada com velocidade de saída de 32,8 m/s - D = 1.000 mm - 30 kW | C150: 441717.6896 | D150: 39.7546 | E150: 8.1762 | F150: 0 | G150: 26.5031 | H150: 0 | I150: 0 | J150: 74.4339 | K150: 47.9308
A151: E9502 | B151: Bate-estaca de gravidade para 6 t - 119 kW | C151: 976625.5361 | D151: 55.8072 | E151: 17.2165 | F151: 0 | G151: 41.8554 | H151: 103.8145 | I151: 27.7788 | J151: 246.4724 | K151: 100.8025
A152: E9503 | B152: Guilhotina hidráulica 16 x 6.100 mm - 30 kW | C152: 1328267.254 | D152: 53.1307 | E152: 22.5374 | F152: 0 | G152: 46.4894 | H152: 0 | I152: 24.563 | J152: 146.7205 | K152: 100.2311
A153: E9505 | B153: Prensa dobradeira capacidade 320 t - comprimento até 3.100 mm - 30 kW | C153: 839640.9694 | D153: 33.5856 | E153: 14.2466 | F153: 0 | G153: 29.3874 | H153: 0 | I153: 24.563 | J153: 101.7826 | K153: 72.3952
A154: E9507 | B154: Plotadora de recorte com computador e programa computacional | C154: 87491.5067 | D154: 13.1237 | E154: 1.7994 | F154: 0 | G154: 8.7492 | H154: 0 | I154: 0 | J154: 23.6723 | K154: 14.9231
A155: E9510 | B155: Ventilador centrífugo baixa pressão com capacidade de 58 m³/min - 3,68 kW | C155: 12517.5198 | D155: 1.1266 | E155: 0.2317 | F155: 0 | G155: 0.7511 | H155: 0 | I155: 0 | J155: 2.1094 | K155: 1.3583
A156: E9511 | B156: Carregadeira de pneus com capacidade de 3,40 m³ - 195 kW | C156: 1820356.319 | D156: 127.4249 | E156: 33.6948 | F156: 0 | G156: 127.4249 | H156: 104.6869 | I156: 27.7788 | J156: 421.0103 | K156: 188.8985
A157: E9512 | B157: Veículo leve - 53 kW | C157: 75367.5615 | D157: 4.5221 | E157: 1.3951 | F157: 0.5653 | G157: 4.5221 | H157: 22.5721 | I157: 24.5499 | J157: 58.1266 | K157: 31.0324
A158: E9513 | B158: Compressor de ar portátil de 160,46 l/s (340 PCM) - 81 kW | C158: 296814.0316 | D158: 19.7876 | E158: 5.3414 | F158: 0 | G158: 19.7876 | H158: 92.4063 | I158: 0 | J158: 137.3229 | K158: 25.129
A159: E9514 | B159: Distribuidor de agregados sobre pneus autopropelido - 130 kW | C159: 865346.6711 | D159: 49.4484 | E159: 15.2548 | F159: 0 | G159: 43.2673 | H159: 165.7543 | I159: 27.7788 | J159: 301.5036 | K159: 92.482
A160: E9515 | B160: Escavadeira hidráulica sobre esteiras com caçamba com capacidade de 1,56 m³ - 118 kW | C160: 1370354.644 | D160: 95.9248 | E160: 25.3653 | F160: 0 | G160: 95.9248 | H160: 102.9421 | I160: 27.7788 | J160: 347.9358 | K160: 149.0689
A161: E9516 | B161: Perfuratriz hidráulica sobre esteiras - 283 kW | C161: 4905924.258 | D161: 327.0616 | E161: 88.2862 | F161: 0 | G161: 327.0616 | H161: 189.9128 | I161: 27.7788 | J161: 960.101 | K161: 443.1266
A162: E9518 | B162: Grade de 24 discos rebocável de D = 60 cm (24") | C162: 41861.6424 | D162: 2.6911 | E162: 0.738 | F162: 0 | G162: 1.4951 | H162: 0 | I162: 0 | J162: 4.9242 | K162: 3.4291
A163: E9519 | B163: Betoneira com motor a gasolina com capacidade de 600 l - 10 kW | C163: 38966.8959 | D163: 3.1174 | E163: 0.7213 | F163: 0 | G163: 2.338 | H163: 16.5624 | I163: 24.563 | J163: 47.3021 | K163: 28.4017
A164: E9521 | B164: Grupo gerador - 3,2 kVA | C164: 3866.99 | D164: 0.1933 | E164: 0.0682 | F164: 0 | G164: 0.1381 | H164: 3.9371 | I164: 0 | J164: 4.3367 | K164: 0.2615
A165: E9522 | B165: Caldeira de asfalto rebocável com capacidade de 1.500 l - 6,5 kW | C165: 195178.1791 | D165: 12.5472 | E165: 3.4407 | F165: 0 | G165: 4.1824 | H165: 6.1067 | I165: 0 | J165: 26.277 | K165: 15.9879
A166: E9523 | B166: Motoscraper - 304 kW | C166: 5807918.609 | D166: 273.3138 | E166: 100.1268 | F166: 0 | G166: 307.478 | H166: 326.4084 | I166: 27.7788 | J166: 1035.1058 | K166: 401.2194
A167: E9524 | B167: Motoniveladora - 93 kW | C167: 1211709.636 | D167: 60.5855 | E167: 21.3607 | F167: 0 | G167: 77.8956 | H167: 93.6143 | I167: 27.7788 | J167: 281.2349 | K167: 109.725
A168: E9525 | B168: Ponte rolante com capacidade de 15 t e vão de até 15 m - 20 kW | C168: 3033700.371 | D168: 121.348 | E168: 51.4743 | F168: 0 | G168: 75.8425 | H168: 0 | I168: 49.126 | J168: 297.7908 | K168: 221.9483
A169: E9526 | B169: Retroescavadeira de pneus com capacidade de 0,76 m³ - 58 kW | C169: 520598.7054 | D169: 36.4419 | E169: 9.6363 | F169: 0 | G169: 36.4419 | H169: 50.5987 | I169: 27.7788 | J169: 160.8976 | K169: 73.857
A170: E9527 | B170: Martelete perfurador/rompedor a ar comprimido de 25 kg para rocha com capacidade de 2.040 gpm | C170: 19631.5611 | D170: 1.5705 | E170: 0.3634 | F170: 0 | G170: 1.5705 | H170: 0 | I170: 24.563 | J170: 28.0674 | K170: 26.4969
A171: E9528 | B171: Empilhadeira a diesel com capacidade de 4 t - 60 kW | C171: 501880.6335 | D171: 40.1505 | E171: 9.2898 | F171: 0 | G171: 35.1316 | H171: 60.3963 | I171: 24.563 | J171: 169.5312 | K171: 74.0033
A172: E9529 | B172: Jateador para estruturas metálicas com transportador a roletes - 22 kW | C172: 3908909.289 | D172: 260.594 | E172: 70.3441 | F172: 0 | G172: 195.4455 | H172: 0 | I172: 24.563 | J172: 550.9466 | K172: 355.5011
A173: E9530 | B173: Rolo compactador liso vibratório autopropelido por pneus de 11 t - 97 kW | C173: 567090.5791 | D173: 37.806 | E173: 10.2053 | F173: 0 | G173: 37.806 | H173: 104.1501 | I173: 27.7788 | J173: 217.7462 | K173: 75.7901
A174: E9532 | B174: Equipamento de solda MIG com acessórios - 14,6 kVA | C174: 67304.0728 | D174: 5.3843 | E174: 1.2458 | F174: 0 | G174: 5.3843 | H174: 0 | I174: 0 | J174: 12.0144 | K174: 6.6301
A175: E9535 | B175: Serra circular com bancada - D = 30 cm - 4 kW | C175: 7238.3277 | D175: 0.6514 | E175: 0.134 | F175: 0 | G175: 0.3619 | H175: 0 | I175: 24.563 | J175: 25.7103 | K175: 25.3484
A176: E9536 | B176: Embarcação de transporte de pessoal e apoio logístico - 30 kW | C176: 115539.3456 | D176: 1.8053 | E176: 0.6807 | F176: 0 | G176: 2.0059 | H176: 56.7852 | I176: 35.0584 | J176: 96.3355 | K176: 37.5444
A177: E9538 | B177: Conjunto vibratório para meio tubo de concreto com encaixe PB e 3 jogos de fôrmas - D = 0,30 m - 2,20 kW | C177: 17419.7212 | D177: 2.3226 | E177: 0.5374 | F177: 0 | G177: 1.742 | H177: 0 | I177: 0 | J177: 4.602 | K177: 2.86
A178: E9539 | B178: Equipamento de batimetria monofeixe | C178: 98355.1383 | D178: 6.3228 | E178: 1.7339 | F178: 0 | G178: 3.5127 | H178: 0 | I178: 30.3816 | J178: 41.951 | K178: 38.4383
A179: E9540 | B179: Trator sobre esteiras com lâmina - 127 kW | C179: 1063413.094 | D179: 41.355 | E179: 18.2257 | F179: 0 | G179: 59.0785 | H179: 119.3162 | I179: 27.7788 | J179: 265.7542 | K179: 87.3595
A180: E9541 | B180: Trator sobre esteiras com lâmina - 259 kW | C180: 4843563.219 | D180: 188.3608 | E180: 83.0133 | F180: 0 | G180: 269.0868 | H180: 243.33 | I180: 27.7788 | J180: 811.5697 | K180: 299.1529
A181: E9543 | B181: Compressor de ar respirável para recarga de cilindros de mergulho com capacidade de até 35 MPa e 3,58 l/s - 5,52 kW | C181: 50868.7229 | D181: 3.3912 | E181: 0.9154 | F181: 0 | G181: 3.3912 | H181: 0 | I181: 0 | J181: 7.6978 | K181: 4.3066
A182: E9544 | B182: Vassoura mecânica rebocável com largura de 2,44 m | C182: 74244.6475 | D182: 6.682 | E182: 1.3743 | F182: 0 | G182: 4.4547 | H182: 0 | I182: 0 | J182: 12.511 | K182: 8.0563
A183: E9545 | B183: Vibroacabadora de asfalto sobre esteiras - 82 kW | C183: 1824294.819 | D183: 91.2147 | E183: 32.1597 | F183: 0 | G183: 117.2761 | H183: 104.5527 | I183: 34.3466 | J183: 379.5498 | K183: 157.721
A184: E9547 | B184: Máquina de solda elétrica transformadora 250 A - 9,20 kW | C184: 855.1773 | D184: 0.0684 | E184: 0.0158 | F184: 0 | G184: 0.0684 | H184: 0 | I184: 0 | J184: 0.1526 | K184: 0.0842
A185: E9548 | B185: Bomba centrífuga com capacidade de 7,1 a 22 m³/h - 1,50 kW | C185: 2454.9968 | D185: 0.1964 | E185: 0.0454 | F185: 0 | G185: 0.1718 | H185: 0 | I185: 0 | J185: 0.4136 | K185: 0.2418
A186: E9551 | B186: Obturador mecânico simples com extensão de 12 m | C186: 5223.8413 | D186: 0.4701 | E186: 0.0967 | F186: 0 | G186: 0.2612 | H186: 0 | I186: 0 | J186: 0.828 | K186: 0.5668
A187: E9552 | B187: Nível ótico com capacidade de aumento de 32x | C187: 12941.5572 | D187: 1.0353 | E187: 0.2395 | F187: 0 | G187: 0.6471 | H187: 0 | I187: 0 | J187: 1.9219 | K187: 1.2748
A188: E9553 | B188: Estação total eletrônica com alcance máximo de 3.000 m | C188: 28999.0217 | D188: 2.6099 | E188: 0.5368 | F188: 0 | G188: 1.45 | H188: 0 | I188: 0 | J188: 4.5967 | K188: 3.1467
A189: E9556 | B189: Compactador manual de placa vibratória - 3,00 kW | C189: 10653.8725 | D189: 0.7103 | E189: 0.1917 | F189: 0 | G189: 0.7103 | H189: 4.9687 | I189: 0 | J189: 6.581 | K189: 0.902
A190: E9558 | B190: Tanque de estocagem de asfalto com capacidade de 30.000 l | C190: 691169.5097 | D190: 28.7987 | E190: 9.995 | F190: 0 | G190: 17.9992 | H190: 0 | I190: 0 | J190: 56.7929 | K190: 38.7937
A191: E9559 | B191: Aquecedor de fluido térmico - 12 kW | C191: 688520.9837 | D191: 30.9834 | E191: 9.5584 | F191: 0 | G191: 20.6556 | H191: 12.0793 | I191: 0 | J191: 73.2767 | K191: 40.5418
A192: E9560 | B192: Ônibus com capacidade para 80 passageiros - 175 kW | C192: 849269.0547 | D192: 36.3972 | E192: 14.9714 | F192: 6.0662 | G192: 54.5959 | H192: 223.1308 | I192: 26.4611 | J192: 361.6226 | K192: 83.8959
A193: E9561 | B193: GPS geodésico de simples frequência (L1) | C193: 28017.3722 | D193: 2.2414 | E193: 0.5186 | F193: 0 | G193: 1.4009 | H193: 0 | I193: 0 | J193: 4.1609 | K193: 2.76
A194: E9562 | B194: GPS geodésico de dupla frequência (L1/L2) | C194: 60183.3115 | D194: 4.8147 | E194: 1.114 | F194: 0 | G194: 3.0092 | H194: 0 | I194: 0 | J194: 8.9379 | K194: 5.9287
A195: E9563 | B195: Perfuratriz hidráulica sobre esteiras com clamshell - 220 kW | C195: 2892786.083 | D195: 192.8524 | E195: 52.0581 | F195: 0 | G195: 192.8524 | H195: 147.6354 | I195: 27.7788 | J195: 613.1771 | K195: 272.6893
A196: E9565 | B196: Trator sobre esteiras com lâmina e escarificador - 259 kW | C196: 4854349.783 | D196: 188.7803 | E196: 83.1982 | F196: 0 | G196: 269.6861 | H196: 243.33 | I196: 27.7788 | J196: 812.7734 | K196: 299.7573
A197: E9566 | B197: Guindaste móvel sobre esteiras com clamshell de 1,9 m³ - 220 kW | C197: 4117183.424 | D197: 144.1014 | E197: 69.8583 | F197: 0 | G197: 205.8592 | H197: 73.8177 | I197: 34.3466 | J197: 527.9832 | K197: 248.3063
A198: E9567 | B198: Fresadora de piso de concreto - 6,7 kW | C198: 18941.0353 | D198: 1.5153 | E198: 0.3506 | F198: 0 | G198: 1.5153 | H198: 11.0968 | I198: 0 | J198: 14.478 | K198: 1.8659
A199: E9568 | B199: Furadeira de impacto de 12,5 mm - 0,80 kW | C199: 1385.1191 | D199: 0.1108 | E199: 0.0256 | F199: 0 | G199: 0.0693 | H199: 0 | I199: 0 | J199: 0.2057 | K199: 0.1364
A200: E9569 | B200: Guindaste móvel sobre esteiras com clamshell de 4,6 m³ - 403 kW | C200: 6100252.533 | D200: 74.135 | E200: 35.9396 | F200: 0 | G200: 105.9072 | H200: 135.2206 | I200: 68.6932 | J200: 419.8956 | K200: 178.7678
... 333 more rows

Sheet MATERIAL SICRO
A1: Código | B1: Descrição | C1: Unidade | D1: Preço Unitário (R$)
A2: M0003 | B2: Aço CA 25 | C2: kg | D2: 9.75
A3: M0004 | B3: Aço CA 50 | C3: kg | D3: 8.8906
A4: M0005 | B4: Brita 0 | C4: m³ | D4: 182.7738
A5: M0006 | B5: Fibra de poliamida para concreto | C5: kg | D5: 22.4916
A6: M0007 | B6: Fibra de aço para concreto | C6: kg | D6: 14.6178
A7: M0008 | B7: Detergente líquido neutro | C7: l | D7: 4.1644
A8: M0009 | B8: Aço CP 175 RB | C8: kg | D8: 11.6239
A9: M0010 | B9: Aditivo superplastificante para concreto e argamassa | C9: kg | D9: 12.2177
A10: M0011 | B10: Aditivo modificador de viscosidade para concreto e argamassa | C10: kg | D10: 8.2074
A11: M0012 | B11: Silicato de alumínio | C11: kg | D11: 2.0304
A12: M0013 | B12: Grampo de ancoragem em aço CA 50 - D = 12,5 mm | C12: kg | D12: 8.8906
A13: M0014 | B13: Aço CA 60 | C13: kg | D13: 10.8515
A14: M0015 | B14: Espoleta elétrica Nº 8 - D = 6,0 mm | C14: un | D14: 24.9733
A15: M0016 | B15: Grampo sargento em ferro fundido tipo C com abertura útil de 105 mm (4") | C15: un | D15: 56.5895
A16: M0017 | B16: Saco de aniagem ou de ráfia de 50 kg - C = 95 cm e L = 65 cm | C16: un | D16: 2.7448
A17: M0018 | B17: Grampo pesado em aço-carbono para cabo de aço - D = 13 mm (1/2") | C17: un | D17: 16.4216
A18: M0019 | B18: Esticador em aço tipo olhal x olhal para cabo de aço - D = 13 mm | C18: un | D18: 181.8018
A19: M0020 | B19: Grampo de ancoragem em aço CA 50 - D = 6,3 mm | C19: kg | D19: 11.5005
A20: M0021 | B20: Herbicida glifosato para áreas contínuas | C20: l | D20: 27.8712
A21: M0025 | B21: Adesivo plástico para tubos de PVC | C21: kg | D21: 53.4072
A22: M0026 | B22: Aditivo aglutinante para argamassa | C22: l | D22: 6.5137
A23: M0028 | B23: Areia média | C23: m³ | D23: 132.7004
A24: M0029 | B24: Sílica ativa para concreto e argamassa (microssílica) | C24: kg | D24: 1.9977
A25: M0030 | B25: Aditivo plastificante e retardador de pega para concreto e argamassa | C25: kg | D25: 6.1291
A26: M0032 | B26: Adesivo de contato para laminado elastoplástico | C26: kg | D26: 40.5805
A27: M0035 | B27: Diluente tipo aguarrás para tintas e vernizes | C27: l | D27: 12.7265
A28: M0039 | B28: Gasolina comum | C28: l | D28: 4.7321
A29: M0041 | B29: Contêiner com 2 banheiros - L = 2,44 m e C = 6,09 m (1 TEU) | C29: un | D29: 82036.9264
A30: M0042 | B30: Contêiner com janela - L = 2,44 m e C = 6,09 m (1 TEU) | C30: un | D30: 64095.4928
A31: M0043 | B31: Óleo diesel | C31: l | D31: 6.7107
A32: M0044 | B32: Abrasivo de vidro com granulometria de 210 a 420 micra | C32: kg | D32: 8.2482
A33: M0045 | B33: Barreira plástica monobloco para canalização de trânsito - C = 100 cm, L = 50 cm e H = 55 cm | C33: un | D33: 684.8714
A34: M0046 | B34: Barreira plástica para canalização de trânsito - C = 60 cm, L = 45 cm e H = 60 cm | C34: un | D34: 353.2098
A35: M0047 | B35: Cone de sinalização em polietileno - H = 75 cm e base quadrada de 40 x 40 cm | C35: un | D35: 99.5364
A36: M0048 | B36: Balizador cônico refletivo em polietileno semiflexível - H = 114 cm e base octogonal de D = 40 cm | C36: un | D36: 147.2572
A37: M0049 | B37: Delimitador de tráfego flexível com chumbador e duas faixas refletivas - H = 77 cm e D = 21 cm | C37: un | D37: 198.1911
A38: M0050 | B38: Aditivo natural tipo goma xantana para hidrossemeadura | C38: kg | D38: 107.2609
A39: M0051 | B39: Cilindro canalizador de tráfego em polietileno - H = 117 cm e base quadrada de 60 x 60 cm | C39: un | D39: 242.7116
A40: M0052 | B40: Fita adesiva de PVC - L = 50 mm e C = 50 m | C40: m | D40: 0.1139
A41: M0053 | B41: Tela plástica em polipropileno na cor laranja para tapume - L = 1,2 m | C41: m | D41: 2.1458
A42: M0054 | B42: Fita zebrada de cor laranja e branca - L = 7 a 8 cm | C42: m | D42: 0.0794
A43: M0055 | B43: Barreira plástica articulável modular - C = 240 cm e H = 100 cm | C43: un | D43: 1560.7601
A44: M0056 | B44: Ferramenta de corte para removedora de faixa de sinalização (Smith Cutter) | C44: un | D44: 5306.6158
A45: M0057 | B45: Contêiner com janela - L = 4,88 m e C = 6,09 m (1 TEU duplo) | C45: un | D45: 108937.4064
A46: M0058 | B46: Contêiner com janela e 2 banheiros - L = 4,88 m e C = 6,09 m (1 TEU duplo) | C46: un | D46: 112960.9394
A47: M0059 | B47: Contêiner com revestimento térmico, janela e banheiro - L = 2,44 m e C = 6,09 m (1 TEU) | C47: un | D47: 81877.0124
A48: M0060 | B48: Contêiner com janela - L = 2,44 m e C = 4,58 m (3/4 TEU) | C48: un | D48: 58886.8566
A49: M0065 | B49: Contêiner com janela e banheiro - L = 2,44 m e 4,58 m (3/4 TEU) | C49: un | D49: 59525.8821
A50: M0066 | B50: Contêiner com revestimento térmico, janela e banheiro - L = 2,44 m e C = 12,90 m (2 TEU) | C50: un | D50: 104274.2282
A51: M0067 | B51: Tubo PEAD PE 100 PN 10 com flanges - D = 160 mm | C51: m | D51: 193.8765
A52: M0068 | B52: Caibro de pinho - L = 7,5 cm e E = 10,0 cm | C52: m | D52: 19.6519
A53: M0069 | B53: Arame farpado em aço galvanizado - D = 1,60 mm | C53: m | D53: 0.9396
A54: M0071 | B54: Contêiner com 3 janelas para guarita - L = 2,44 m e C = 3,05 m (1/2 TEU) | C54: un | D54: 33208.3219
A55: M0072 | B55: Arame liso em aço galvanizado - D = 2,10 mm (14 BWG) | C55: kg | D55: 18.8988
A56: M0073 | B56: Muda de árvore com altura de 0,30 a 0,80 m | C56: un | D56: 10.6292
A57: M0074 | B57: Muda de arbusto com altura até 0,50 m | C57: un | D57: 22.3028
A58: M0075 | B58: Arame liso recozido em aço-carbono - D = 1,24 mm (18 BWG) | C58: kg | D58: 10.1091
A59: M0076 | B59: Disco de corte abrasivo para policorte - D = 300 mm | C59: un | D59: 15.4665
A60: M0080 | B60: Areia fina | C60: m³ | D60: 135.2004
A61: M0081 | B61: Areia grossa | C61: m³ | D61: 127.7004
A62: M0082 | B62: Areia média lavada | C62: m³ | D62: 140.2004
A63: M0083 | B63: Argamassa pré-dosada para grauteamento | C63: kg | D63: 1.7908
A64: M0084 | B64: Argamassa pré-dosada autoadensável para grauteamento | C64: kg | D64: 1.8006
A65: M0085 | B65: Ancoragem ativa para 4 cordoalhas - D = 12,7 mm | C65: un | D65: 341.3738
A66: M0086 | B66: Ancoragem ativa para 6 cordoalhas - D = 12,7 mm | C66: un | D66: 520.0979
A67: M0087 | B67: Ancoragem ativa para 7 cordoalhas - D = 12,7 mm | C67: un | D67: 600.6744
A68: M0088 | B68: Ancoragem ativa para 8 cordoalhas - D = 12,7 mm | C68: un | D68: 701.7346
A69: M0089 | B69: Ancoragem ativa para 9 cordoalhas - D = 12,7 mm | C69: un | D69: 792.5162
A70: M0091 | B70: Ancoragem ativa para 10 cordoalhas - D = 12,7 mm | C70: un | D70: 881.5971
A71: M0092 | B71: Ancoragem ativa para 12 cordoalhas - D = 12,7 mm | C71: un | D71: 1113.7745
A72: M0093 | B72: Ancoragem ativa para 15 cordoalhas - D = 12,7 mm | C72: un | D72: 1545.7468
A73: M0094 | B73: Ancoragem ativa para 19 cordoalhas - D = 12,7 mm | C73: un | D73: 1964.4973
A74: M0098 | B74: Bambu com diâmetro médio de 10 cm | C74: m | D74: 18.0855
A75: M0099 | B75: Equipamentos para a fábrica de dormentes de concreto protendido | C75: ISF | D75: 514.521
A76: M0100 | B76: Ancoragem ativa para 22 cordoalhas - D = 12,7 mm | C76: un | D76: 2544.6638
A77: M0101 | B77: Ancoragem ativa para 27 cordoalhas - D = 12,7 mm | C77: un | D77: 3114.886
A78: M0102 | B78: Ancoragem ativa para 31 cordoalhas - D = 12,7 mm | C78: un | D78: 4227.1225
A79: M0103 | B79: Aditivo acelerador de pega para concreto e argamassa projetados | C79: kg | D79: 5.7754
A80: M0104 | B80: Asfalto diluído de petróleo - CM-30 | C80: t | D80: -
A81: M0105 | B81: Ancoragem ativa para 4 cordoalhas - D = 15,2 mm | C81: un | D81: 426.0926
A82: M0106 | B82: Ancoragem ativa para 6 cordoalhas - D = 15,2 mm | C82: un | D82: 664.3366
A83: M0107 | B83: Geocomposto para drenagem | C83: m² | D83: 34.5564
A84: M0108 | B84: Ancoragem ativa para 7 cordoalhas - D = 15,2 mm | C84: un | D84: 781.4468
A85: M0109 | B85: Geodreno vertical - L = 10 cm e E = 5 mm | C85: m | D85: 4.41
A86: M0110 | B86: Ancoragem ativa para 10 cordoalhas - D = 15,2 mm | C86: un | D86: 1207.2644
A87: M0111 | B87: Ancoragem ativa para 9 cordoalhas - D = 15,2 mm | C87: un | D87: 1076.4843
A88: M0112 | B88: Disco diamantado segmentado para corte de pavimento - D = 1.000 mm | C88: un | D88: 5337.5262
A89: M0113 | B89: Ancoragem ativa para 12 cordoalhas - D = 15,2 mm | C89: un | D89: 1474.2485
A90: M0114 | B90: Disco diamantado segmentado para corte de pavimento - D = 1.500 mm | C90: un | D90: 23744.7056
A91: M0115 | B91: Biomanta vegetal de fibras de coco entrelaçadas com fios de polipropileno biodegradáveis - densidade 0,4 kg/m² | C91: m² | D91: 6.5
A92: M0116 | B92: Mangote flangeado de borracha reforçada com lonas sintéticas - C = 1,80 m e D = 0,30 m | C92: un | D92: 16894.0172
A93: M0117 | B93: Mangote flangeado de borracha reforçada com lonas sintéticas - C = 1,80 m e D = 0,40 m | C93: un | D93: 17936.842
A94: M0118 | B94: Mangote flangeado de borracha reforçada com lonas sintéticas - C = 1,80 m e D = 0,45 m | C94: un | D94: 23004.7476
A95: M0119 | B95: Mangote flangeado de borracha reforçada com lonas sintéticas - C = 1,80 m e D = 0,50 m | C95: un | D95: 19696.0363
A96: M0120 | B96: Tubo PEAD PE 100 PN 8 com flanges - D = 250 mm | C96: m | D96: 334.7771
A97: M0121 | B97: Tubo PEAD PE 100 PN 8 com flanges - D = 400 mm | C97: m | D97: 2138.6589
A98: M0122 | B98: Tubo PEAD PE 100 PN 8 com flanges - D = 450 mm | C98: m | D98: 2684.9608
A99: M0123 | B99: Tubo PEAD PE 100 PN 8 com flanges - D = 500 mm | C99: m | D99: 3007.716
A100: M0124 | B100: Flutuador bipartido em polietileno com núcleo de espuma em poliuretano para tubos - D = 0,30 m | C100: un | D100: 3287.417
A101: M0125 | B101: Flutuador bipartido em polietileno com núcleo de espuma em poliuretano para tubos - D = 0,40 m | C101: un | D101: 4560.5008
A102: M0126 | B102: Flutuador bipartido em polietileno com núcleo de espuma em poliuretano para tubos - D = 0,45 m | C102: un | D102: 5214.6051
A103: M0127 | B103: Flutuador bipartido em polietileno com núcleo de espuma em poliuretano para tubos - D = 0,50 m | C103: un | D103: 5669.4158
A104: M0128 | B104: Biomanta vegetal de fibras de palha entrelaçadas com fios de polipropileno biodegradáveis - densidade 0,6 kg/m² | C104: m² | D104: 5.2666
A105: M0129 | B105: Retentor de sedimento em fibras vegetais - D = 20 cm | C105: m | D105: 50.2447
A106: M0130 | B106: Ancoragem ativa para 15 cordoalhas - D = 15,2 mm | C106: un | D106: 1942.5674
A107: M0131 | B107: Tubo PEAD corrugado com paredes estruturadas para drenagem - D = 400 mm | C107: m | D107: 210.5874
A108: M0132 | B108: Tubo PEAD corrugado com paredes estruturadas para drenagem - D = 450 mm | C108: m | D108: 233.8945
A109: M0133 | B109: Tubo PEAD corrugado com paredes estruturadas para drenagem - D = 500 mm | C109: m | D109: 345.0941
A110: M0134 | B110: Tubo PEAD corrugado com paredes estruturadas para drenagem - D = 600 mm | C110: m | D110: 503.9138
A111: M0135 | B111: Tubo PEAD corrugado com paredes estruturadas para drenagem - D = 750 mm | C111: m | D111: 661.3933
A112: M0136 | B112: Tubo PEAD corrugado com paredes estruturadas para drenagem - D = 800 mm | C112: m | D112: 737.6409
A113: M0137 | B113: Tubo PEAD corrugado com paredes estruturadas para drenagem - D = 900 mm | C113: m | D113: 896.1409
A114: M0138 | B114: Ancoragem ativa para 19 cordoalhas - D = 15,2 mm | C114: un | D114: 2526.0382
A115: M0139 | B115: Tubo PEAD corrugado com paredes estruturadas para drenagem - D = 1.000 mm | C115: m | D115: 1319.4319
A116: M0140 | B116: Bentonita | C116: kg | D116: 4.4077
A117: M0141 | B117: Tubo PEAD corrugado com paredes estruturadas para drenagem - D = 1.050 mm | C117: m | D117: 1275.1056
A118: M0142 | B118: Tubo PEAD corrugado com paredes estruturadas para drenagem - D = 1.200 mm | C118: m | D118: 1744.262
A119: M0143 | B119: Tubo PEAD corrugado com paredes estruturadas para drenagem - D = 1.500 mm | C119: m | D119: 2405.2503
A120: M0144 | B120: Tubo PEAD corrugado com paredes estruturadas para drenagem - D = 1.800 mm | C120: m | D120: 7039.1558
A121: M0145 | B121: Ancoragem ativa para 22 cordoalhas - D = 15,2 mm | C121: un | D121: 3277.6082
A122: M0146 | B122: Ancoragem ativa para 27 cordoalhas - D = 15,2 mm | C122: un | D122: 4289.6617
A123: M0147 | B123: Tubo PEAD corrugado com paredes estruturadas para drenagem - D = 2.000 mm | C123: m | D123: 8471.0066
A124: M0148 | B124: Ancoragem ativa para lajes para 1 cordoalha - D = 12,7 mm | C124: un | D124: 248.1727
A125: M0149 | B125: Tubo PEAD corrugado com paredes estruturadas para drenagem - D = 2.500 mm | C125: m | D125: 13980.4354
A126: M0150 | B126: Tubo PEAD corrugado com paredes estruturadas para drenagem - D = 3.000 mm | C126: m | D126: 19404.8025
A127: M0151 | B127: Ancoragem ativa para lajes para 2 cordoalhas - D = 12,7 mm | C127: un | D127: 565.9739
A128: M0152 | B128: Ancoragem ativa para lajes para 3 cordoalhas - D = 12,7 mm | C128: un | D128: 1130.3531
A129: M0153 | B129: Ancoragem ativa para lajes para 4 cordoalhas - D = 12,7 mm | C129: un | D129: 1237.6444
A130: M0156 | B130: Bloco de concreto - L = 19 cm, A = 19 cm e C = 39 cm | C130: un | D130: 4.2633
A131: M0158 | B131: Tela metálica galvanizada dobrada em L - C = 2,0 m, L = 0,4 m e H = 0,4 m | C131: un | D131: 371.6572
A132: M0160 | B132: Extintor de incêndio tipo espuma mecânica - V = 10 l | C132: un | D132: 600.6883
A133: M0161 | B133: Barra de fibra de vidro (vergalhão) - D = 25,0 mm | C133: m | D133: 61.6751
A134: M0162 | B134: Corrente de elo soldado em aço galvanizado com acabamento polido - D = 3,18 mm (1/8") | C134: m | D134: 7.7319
A135: M0163 | B135: Gonzo com aba em aço galvanizado - D = 12,7 mm (1/2") | C135: un | D135: 2.9433
A136: M0164 | B136: Tubo em aço galvanizado - E = 1,50 mm e seção de 20 x 20 mm | C136: m | D136: 14.769
A137: M0166 | B137: Tubo em aço galvanizado - E = 2,25 mm e D = 20 mm (3/4") | C137: m | D137: 29.7005
A138: M0167 | B138: Tela de poliamida industrial - E = 0,40 mm e malha de 1,6 mm | C138: m² | D138: 14.8024
A139: M0168 | B139: Abraçadeira de poliamida - E = 3,6 mm e C = 200 mm | C139: un | D139: 0.2181
A140: M0169 | B140: Roda em aço e pneu com câmara de ar 83/203 mm (3,25"/8") para carrinho de mão | C140: un | D140: 59.1209
A141: M0173 | B141: Ancoragem ativa para lajes para 1 cordoalha - D = 15,2 mm | C141: un | D141: 319.4341
A142: M0178 | B142: Ancoragem ativa para lajes para 2 cordoalhas - D = 15,2 mm | C142: un | D142: 743.6819
A143: M0181 | B143: Ancoragem ativa para lajes para 3 cordoalhas - D = 15,2 mm | C143: un | D143: 1414.5745
A144: M0184 | B144: Ancoragem ativa para lajes para 4 cordoalhas - D = 15,2 mm | C144: un | D144: 1521.0306
A145: M0191 | B145: Brita 1 | C145: m³ | D145: 180.2738
A146: M0192 | B146: Brita 2 | C146: m³ | D146: 167.7738
A147: M0193 | B147: Brita 3 | C147: m³ | D147: 166.1905
A148: M0194 | B148: Escória de aciaria | C148: m³ | D148: 17.5936
A149: M0198 | B149: Parafuso de cabeça chata em aço - D = 4,5 mm e bucha plástica - D = 8 mm (S8) | C149: un | D149: 0.3636
A150: M0199 | B150: Coroa de botões cruzados linha R32 - D = 43 mm (1 11/16’’) | C150: un | D150: 352.7934
A151: M0201 | B151: Coroa de botões esféricos linha T38 - D = 89 mm (3 1/2") | C151: un | D151: 1028.5947
A152: M0202 | B152: Coroa de botões esféricos linha T45 - D = 76 mm (3") | C152: un | D152: 675.3204
A153: M0204 | B153: Instalações físicas para a central de pré-moldagem de dormentes de concreto protendido | C153: CMCC | D153: 1854.6
A154: M0217 | B154: Enxofre | C154: kg | D154: 5.2065
A155: M0220 | B155: Adubo à base de nitrogênio, fósforo e potássio (NPK) | C155: kg | D155: 4.5388
A156: M0222 | B156: Filer calcário | C156: kg | D156: 0.2223
A157: M0223 | B157: Sementes para hidrossemeadura | C157: kg | D157: 34.9849
A158: M0224 | B158: Guia-chapéu pré-moldada - C = 120 cm | C158: un | D158: 55.0507
A159: M0225 | B159: Adubo orgânico composto | C159: kg | D159: 0.2621
A160: M0229 | B160: Gabião tipo colchão em liga de zinco e alumínio revestido com polímero de malha hexagonal - E = 0,17 m | C160: m² | D160: 213.1059
A161: M0230 | B161: Gabião tipo caixa em liga de zinco e alumínio de malha hexagonal - C = 2,00 m, L = 1,00 m e H = 0,50 m | C161: un | D161: 635.0489
A162: M0231 | B162: Gabião tipo caixa em liga de zinco e alumínio de malha hexagonal - C = 2,00 m, L = 1,00 m e H = 1,00 m | C162: un | D162: 1033.6688
A163: M0232 | B163: Gabião tipo caixa em liga de zinco e alumínio revestido com polímero de malha hexagonal - C = 2,00 m, L = 1,00 m e H = 0,50 m | C163: un | D163: 788.5876
A164: M0233 | B164: Gabião tipo caixa em liga de zinco e alumínio revestido com polímero de malha hexagonal - C = 2,00 m, L = 1,00 m e H = 1,00 m | C164: un | D164: 1104.2592
A165: M0234 | B165: Gabião tipo saco em liga de zinco e alumínio revestido com polímero de malha hexagonal - D = 0,65 m | C165: m³ | D165: 584.0482
A166: M0235 | B166: Gabião tipo colchão em liga de zinco e alumínio revestido com polímero de malha hexagonal - E = 0,23 m | C166: m² | D166: 223.9602
A167: M0236 | B167: Gabião tipo colchão em liga de zinco e alumínio revestido com polímero de malha hexagonal - E = 0,30 m | C167: m² | D167: 246.5174
A168: M0237 | B168: Energia elétrica | C168: kWh | D168: 0.687
A169: M0253 | B169: Cabo de cobre flexível antichama isolado em PVC - tensão de 450/750 V e seção de 16 mm² | C169: m | D169: 13.8202
A170: M0254 | B170: Mistura gasosa de argônio e dióxido de carbono para solda MIG/MAG | C170: m³ | D170: 46.8128
A171: M0256 | B171: Tinta à base de etil silicato de zinco bicomponente para fundo preparador de pintura | C171: l | D171: 94.6358
A172: M0257 | B172: Diluente para tinta à base de etil silicato de zinco | C172: l | D172: 29.3461
A173: M0260 | B173: Cabo de cobre PP flexível isolado em PVC - tensão de 300/500 V e seção de 3 x 1,5 mm² | C173: m | D173: 4.3977
A174: M0264 | B174: Bomba de combustível industrial eletrônica simples | C174: un | D174: 24061.74
A175: M0265 | B175: Tanque de combustível aéreo horizontal com escada para visita - capacidade de 5.000 l | C175: un | D175: 20390.5867
A176: M0266 | B176: Cabo de cobre flexível antichama isolado em PVC - tensão de 0,6/1,0 kV e seção de 240 mm² | C176: m | D176: 145.7622
A177: M0267 | B177: Módulo de torre de elevador de cremalheira | C177: un | D177: 3818.6868
A178: M0268 | B178: Módulo de ancoragem de torre de elevador de cremalheira | C178: un | D178: 2918.3613
A179: M0269 | B179: Cabo de cobre flexível antichama isolado em PVC - tensão de 0,6/1,0 kV e seção de 50 mm² | C179: m | D179: 33.9793
A180: M0284 | B180: Caibro de pinho - L = 7,5 cm e E = 7,5 cm | C180: m | D180: 13.4358
A181: M0285 | B181: Pontalete para escoramento - D = 15 cm | C181: m | D181: 9.136
A182: M0286 | B182: Tábua - E = 2,5 cm e L = 30 cm | C182: m | D182: 13.5597
A183: M0289 | B183: Tábua - E = 2,5 cm e L = 15 cm | C183: m | D183: 4.9363
A184: M0290 | B184: Tábua - E = 2,5 cm e L = 10 cm | C184: m | D184: 3.5803
A185: M0301 | B185: Pontalete para escoramento - D = 10 cm | C185: m | D185: 5.6634
A186: M0310 | B186: Peça de madeira - L = 7,5 cm e E = 2,5 cm | C186: m | D186: 3.2969
A187: M0311 | B187: Filtro de aspiração de ar externo com capacidade 3,58 l/s para compressor de ar respirável | C187: un | D187: 188.5876
A188: M0312 | B188: Filtro de purificação de ar comprimido com capacidade de 35 MPa para compressor de ar respirável | C188: un | D188: 193.629
A189: M0344 | B189: Cal hidratada - a granel | C189: kg | D189: 0.6219
A190: M0345 | B190: Cal hidratada - saco | C190: kg | D190: 0.8353
A191: M0346 | B191: Disco de aço para bomba de projeção via seca | C191: un | D191: 290
A192: M0347 | B192: Disco de aço para bomba de projeção via úmida | C192: un | D192: 809.9669
A193: M0348 | B193: Disco de borracha para bomba de projeção via seca | C193: un | D193: 247.1296
A194: M0349 | B194: Disco de borracha para bomba de projeção via úmida | C194: un | D194: 574.1348
A195: M0350 | B195: Bico para bomba de projeção | C195: un | D195: 290
A196: M0351 | B196: Mangote para bomba de projeção | C196: m | D196: 232.7154
A197: M0365 | B197: Cantoneira em ferro de abas iguais - L = 25,4 mm e E = 4,76 mm | C197: kg | D197: 11.0251
A198: M0366 | B198: Cantoneira em aço ASTM A36 galvanizado | C198: kg | D198: 10.6242
A199: M0395 | B199: Chapa de alumínio - E = 1,5 mm | C199: m² | D199: 191.5598
A200: M0408 | B200: Chumbador de expansão controlada por torque em aço zincado para concreto - D = 12,5 mm | C200: un | D200: 13.4182
... 1457 more rows
